{"text_format":"1","workbook":"xlsx","n_sheets":7,"sheets":["Etusivu","Lähtötiedot","Vertailu","Toimenpiteiden valitseminen","Yhteenveto valinnoista","Kuvaajat","Temp"],"not_rendered":{"charts":4,"images":59,"macros":1,"external_links":0,"defined_names":3,"comments":0,"pivot_tables":0},"unopened":[],"bounds":{"document_bytes":16777216,"sheet_cells":100000,"rows_first":2000,"rows_last":500,"rows_between":2000,"halvings":0,"cell_chars":16384,"cell_head_chars":4096},"cells_cut":0,"cells_raw":0,"read":"whole","date_system":"1900"}

{"sheet":"Etusivu","index":0,"n_rows":49,"n_cols":4,"rows_kept":49,"cut":false,"hidden":false,"merged":[[5,1,5,10],[4,1,4,10],[1,1,1,10],[0,1,0,10],[2,1,2,10],[3,1,3,10]]}
[null,"KERROSTALOJEN KORJAUSTOIMINNAN"]
[null,"ENERGIATALOUDELLISTEN VALINTOJEN VERTAILU"]
[null,"Rakenne- ja LVIS-teknisten energiansäästötoimenpiteiden"]
[null,"valinta rakenne- ja laitetasolla"]
[]
[null,"Tekijä: Antti Kurvinen | Tampereen teknillinen yliopisto | Rakennusteknikkan laitos | RTT"]
[]
[]
[]
[]
[]
[]
[]
[]
[]
[]
[]
[]
[]
[]
[]
[]
[]
[]
[]
[]
[]
[]
[]
[]
[null,"HUOM!"," - Tämän sovelluksen tekijä ei vastaa sovelluksen antamista tuloksista!"]
[null,null," - Sovellus on kuitenkin testattu case-kohteen tiedoilla ja sen on todettu tällöin antavan"]
[null,null,"    oikeita tuloksia. Kuvaajat on kuitenkin aina syytä tarkistaa, kun lähtötietoja muutetaan."]
[null,null," - Sovelluksen toiminnan kannalta on välttämätöntä, että ActiveX-komponentit ja makrot sallitaan!"]
[null,null," - Taulukosta on suojattu ainoastaan ensimmäinen välilehti sekä VBA-projekti. Tämän vuoksi"]
[null,null,"     käyttäjän tulee olla tarkkana siitä, mitä soluja muokkaa: väärien solujen muokkaaminen"]
[null,null,"     voi johtaa sovelluksen virheelliseen toimintaan! Muokattavaksi tarkoitetut solut on merkitty"]
[null,null,"     vaaleansinisellä värillä ->"]
[null,null," - Havaituista virheistä voi ilmoittaa sähköpostilla osoitteeseen: antti.kurvinen@tut.fi. "]
[null,null,"   Osoitteeseen voi lähettää myös palautetta, kehitysehdotuksia sekä kysymyksiä."]
[null,null," - Tämän sovelluksen toimintaa on esitelty tarkemmin diplomityössäni "]
[null,null,"   \"Korjaustoiminnan energiataloudellisten valintojen systematiikka\", joka on"]
[null,null,"   ladattavissa ympäristöministeriön lähiöohjelmaan kuuluvan EVAKO-hankkeen"]
[null,null,"   hankesivuilta. (Löytyy osoitteesta www.ara.fi/elavalahio, josta valitaan edelleen"]
[null,null,"                             Hankkeet | Tutkimus- ja selvityshankkeet | EVAKO )"]
[]
[null,null,null,"Antti Kurvinen, DI"]
[null,null,null,"Tampereen teknillinen yliopisto | Rakennustekniikan laitos | Rakennustuotanto ja -talous"]
[null,null,null,"p. 040-1981887 | e-mail: antti.kurvinen@tut.fi"]

{"sheet":"Lähtötiedot","index":1,"n_rows":61,"n_cols":12,"rows_kept":61,"cut":false,"hidden":false,"merged":[[5,8,5,12],[12,5,12,6],[0,1,0,12],[44,4,45,4],[44,5,45,5],[44,6,45,6],[44,8,45,8],[35,5,36,5],[35,6,36,6],[35,8,36,8],[42,4,43,4],[42,5,43,5],[42,6,43,6],[42,8,43,8],[39,2,39,8],[35,7,36,7],[4,2,4,3],[8,2,9,2],[55,2,55,8],[31,4,32,4],[31,5,32,5],[31,6,32,6],[31,8,32,8],[33,4,34,4],[33,5,34,5],[33,6,34,6],[33,8,34,8],[42,2,43,2],[44,2,45,2],[46,2,47,2],[46,4,47,4],[46,5,47,5],[46,8,47,8],[50,2,50,8],[20,2,21,2],[42,7,43,7],[7,3,7,6],[22,8,23,8],[20,7,21,7],[22,7,23,7],[44,7,45,7],[46,7,47,7],[46,6,47,6],[31,7,32,7],[33,7,34,7],[12,8,12,9],[6,3,6,6],[8,3,9,6],[33,2,34,2],[35,2,36,2],[35,4,36,4],[22,4,23,4],[22,5,23,5],[22,6,23,6],[13,11,13,12],[20,8,21,8],[24,2,25,2],[31,2,32,2],[28,2,28,8],[17,2,17,8],[24,7,25,7],[13,8,13,9],[20,4,21,4],[20,5,21,5],[20,6,21,6],[22,2,23,2],[24,4,25,4],[24,8,25,8],[24,5,25,5],[24,6,25,6],[6,8,6,9],[6,11,6,12],[7,8,7,9],[7,11,7,12],[8,8,8,9],[8,11,8,12],[12,11,12,12],[9,8,9,9],[9,11,9,12],[10,8,10,9],[10,11,10,12],[11,8,11,9],[11,10,11,12]]}
[]
[null,null,"KERROSTALOJEN KORJAUSTOIMINNAN ENERGIATALOUDELLISTEN VALINTOJEN VERTAILU"]
[null,null,null,null,"Rakenne- ja LVIS-teknisten energiansäästötoimenpiteiden valinta rakenne- ja laitetasolla"]
[]
[null,null,"Kohteen lähtötiedot"]
[null,null,null,null,null,null,null,null,"LÄHTÖTIEDOT ENNEN REMONTTIA"]
[null,null,"Laatija","Antti Kurvinen",null,null,null,null,"Laskentakorko",null,0.05]
[null,null,"Päivämäärä",{"$f":"TODAY()","v":"2010-07-29"},null,null,null,null,"Bruttopinta-ala [brm2]",null,5468,"m2"]
[null,null,"Hankkeen nimi","SUREURO pilot: Kitiniitynkatu 2",null,null,null,null,"Asuntopinta-ala [hum2]",null,3284,"m2"]
[null,null,null,null,null,null,null,null,"Normeerattu\nenergiankulutus\nennen korjausta",null,1179,"MWh"]
[null,null,null,null,null,null,null,null,"ET-luku ennen korjausta",null,{"$f":"IF(K10=\"\",\"\",(K10*1000)/K8)","v":215.61814191660571},"kWh/brm2/vuosi"]
[null,null,null,null,null,null,null,null,"ET-luokka\nennen korjausta",null,{"$f":"IF(K11=\"\",\"\",IF(K11<=100,\"A\",IF(K11<=120,\"B\",IF(K11<=140,\"C\",IF(K11<=180,\"D\",IF(K11<=230,\"E\",IF(K11<=280,\"F\",\"G\")))))))","v":"E"}]
[null,null,null,null,null,"PINTA-ALATIEDOT REMONTIN JÄLKEEN",null,null,"Lämmitysenergian hinta",null,50,"€/MWh"]
[null,null,null,null,null,"Brutto-ala [brm2]",7236,null,"Sähköenergian hinta",null,70,"€/MWh"]
[null,null,null,null,null,"Asuntopinta-ala [hum2]",4645]
[null,null,"TARKASTELTAVAT ENERGIANSÄÄSTÖTOIMENPITEET"]
[]
[null,null,"YLÄPOHJA"]
[null,null,"TUNNUS","HARKITTAVA\nENERGIANSÄÄSTÖTOIMENPIDE","RAKENNUS-\nKUSTANNUS\n[€]","LÄMMITYSENERGIAN \nKULUTUKSEN\nMUUTOS [MWh/a]","SÄHKÖENERGIAN\nKULUTUKSEN\nMUUTOS [MWh/a]","MUUT\nKUSTANNUSMUUTOKSIA\nAIHEUTTAVAT ERÄT\n[€/a]","PITOAIKA\n[a]"]
[null,null,"PYP","ERISTYS 150 + 50 mm",102828,-35,0,0,40]
[null,null,"YP1","ERISTYS 200 + 50 mm",105456,-6,0,0,40]
[null,null,null,"ERISTEMUUTOS 200 mm → 250 mm"]
[null,null,"YP2","ERISTYS 250 + 50 mm",110864,-4,0,0,40]
[null,null,null,"ERISTEMUUTOS 250 mm → 300 mm"]
[null,null,"YP3"]
[]
[]
[]
[null,null,"ULKOSEINÄ"]
[null,null,"TUNNUS","HARKITTAVA\nENERGIANSÄÄSTÖTOIMENPIDE","RAKENNUS-\nKUSTANNUS\n[€]","LÄMMITYSENERGIAN \nKULUTUKSEN\nMUUTOS [MWh/a]","SÄHKÖENERGIAN\nKULUTUKSEN\nMUUTOS [MWh/a]","MUUT\nKUSTANNUSMUUTOKSIA\nAIHEUTTAVAT ERÄT\n[€/a]","PITOAIKA\n[a]"]
[null,null,"PUS","LISÄERISTYS 80 mm",484600,-87,0,0,40]
[null,null,"US1","LISÄERISTYS 100 mm",489700,-9,0,0,40]
[null,null,null,"ERISTEMUUTOS 80 mm → 100 mm"]
[null,null,"US2","LISÄERISTYS 150 mm",538400,-17,0,0,40]
[null,null,null,"ERISTEMUUTOS 100 mm → 150 mm"]
[null,null,"US3"]
[]
[]
[]
[null,null,"IKKUNAT"]
[null,null,"TUNNUS","HARKITTAVA\nENERGIANSÄÄSTÖTOIMENPIDE","RAKENNUS-\nKUSTANNUS\n[€]","LÄMMITYSENERGIAN \nKULUTUKSEN\nMUUTOS [MWh/a]","SÄHKÖENERGIAN\nKULUTUKSEN\nMUUTOS [MWh/a]","MUUT\nKUSTANNUSMUUTOKSIA\nAIHEUTTAVAT ERÄT\n[€/a]","PITOAIKA\n[a]"]
[null,null,"PIKK","UUSI IKKUNA U=1,8",359480,-104,0,0,30]
[null,null,"IKK1","UUSI IKKUNA U=1,4",372020,-46,0,0,30]
[null,null,null,"U = 1,8 → U = 1,4 "]
[null,null,"IKK2","UUSI IKKUNA U=1,0",382888,-45,0,0,30]
[null,null,null,"U = 1,4 → U = 1,0 "]
[null,null,"IKK3"]
[]
[]
[]
[null,null,"VEDENKULUTUKSEN MITTAUS"]
[null,null,"TUNNUS","HARKITTAVA\nENERGIANSÄÄSTÖTOIMENPIDE","RAKENNUS-\nKUSTANNUS\n[€]","LÄMMITYSENERGIAN \nKULUTUKSEN\nMUUTOS [MWh/a]","SÄHKÖENERGIAN\nKULUTUKSEN\nMUUTOS [MWh/a]","MUUT\nKUSTANNUSMUUTOKSIA\nAIHEUTTAVAT ERÄT\n[€/a]","PITOAIKA\n[a]"]
[null,null,"VKM","ASUNTOKOHTAINEN MITTAUS",46800,-29,0,-9857,15]
[]
[]
[null,null,"ILMANVAIHTOJÄRJESTELMÄ"]
[null,null,"TUNNUS","HARKITTAVA\nENERGIANSÄÄSTÖTOIMENPIDE","RAKENNUS-\nKUSTANNUS\n[€]","LÄMMITYSENERGIAN \nKULUTUKSEN\nMUUTOS [MWh/a]","SÄHKÖENERGIAN\nKULUTUKSEN\nMUUTOS [MWh/a]","MUUT\nKUSTANNUSMUUTOKSIA\nAIHEUTTAVAT ERÄT\n[€/a]","PITOAIKA\n[a]"]
[null,null,"PIV","VANHAN KUNNOSTUS",39200,0,0,784,30]
[null,null,"IV1","KESKITETTY KONEELLINEN TULO- JA\n      POISTOILMANVAIHTO LTO 50 %",117600,-259,38.6,1176,30]
[null,null,"IV2","HAJAUTETTU KONEELLINEN TULO- JA\n      POISTOILMANVAIHTO LTO 50 %",137200,-259,38.6,1960,30]
[null,null,"IV3"]

{"sheet":"Vertailu","index":2,"n_rows":94,"n_cols":12,"rows_kept":94,"cut":false,"hidden":false,"merged":[[0,1,0,13],[1,12,1,13],[2,12,2,13],[4,2,4,5],[74,2,74,11],[52,2,52,11],[30,2,30,11],[8,2,8,11]]}
[]
[null,null,"KERROSTALOJEN KORJAUSTOIMINNAN ENERGIATALOUDELLISTEN VALINTOJEN VERTAILU"]
[null,null,null,null,null,"Rakenne- ja LVIS-teknisten energiansäästötoimenpiteiden valinta rakenne- ja laitetasolla"]
[]
[null,null,"Energiansäästötoimenpiteiden vertailu"]
[]
[]
[]
[null,null,"VALINTAJÄRJESTYS JÄRJESTETTYNÄ SISÄISEN KORON MUKAAN"]
[]
[null,null,"VALINTA-\nJÄRJESTYS","SISÄINEN\nKORKO","TOIMENPITEEN\nTUNNUS","KUSTANNUSTEN\nMUUTOS\n[€]","LÄMMITYSENERGIAN \nKULUTUKSEN\nMUUTOS [MWh/a]","SÄHKÖENERGIAN\nKULUTUKSEN\nMUUTOS [MWh/a]","VUOSITTAINEN\nKOKONAIS-\nENERGIANSÄÄSTÖ\n[MWh/a]","KUSTANNUSTEN VUOSIMUUTOS\n[€/a]","PITOAIKA\n[a]","KUSTANNUS /\nENERGIANSÄÄSTÖ\n[€/(kWh/a)]"]
[null,null,{"$f":"IF(ISNA(VLOOKUP(1,'Toimenpiteiden valitseminen'!$D$21:$O$50,1,FALSE)),\"\",VLOOKUP(1,'Toimenpiteiden valitseminen'!$D$21:$O$50,1,FALSE))","v":1},{"$f":"IF(ISNA(VLOOKUP(1,'Toimenpiteiden valitseminen'!$D$21:$O$50,3,FALSE)),\"\",VLOOKUP(1,'Toimenpiteiden valitseminen'!$D$21:$O$50,3,FALSE))","v":0.23089228481829616},{"$f":"IF(ISNA(VLOOKUP(1,'Toimenpiteiden valitseminen'!$D$21:$O$50,4,FALSE)),\"\",VLOOKUP(1,'Toimenpiteiden valitseminen'!$D$21:$O$50,4,FALSE))","v":"VKM"},{"$f":"IF(ISNA(VLOOKUP(1,'Toimenpiteiden valitseminen'!$D$21:$O$50,6,FALSE)),\"\",VLOOKUP(1,'Toimenpiteiden valitseminen'!$D$21:$O$50,6,FALSE))","v":46800},{"$f":"IF(ISNA(VLOOKUP(1,'Toimenpiteiden valitseminen'!$D$21:$O$50,7,FALSE)),\"\",VLOOKUP(1,'Toimenpiteiden valitseminen'!$D$21:$O$50,7,FALSE))","v":-29},{"$f":"IF(ISNA(VLOOKUP(1,'Toimenpiteiden valitseminen'!$D$21:$O$50,8,FALSE)),\"\",VLOOKUP(1,'Toimenpiteiden valitseminen'!$D$21:$O$50,8,FALSE))","v":0},{"$f":"IF(AND(G12=\"\",H12=\"\"),\"\",-(G12+H12))","v":29},{"$f":"IF(ISNA(VLOOKUP(1,'Toimenpiteiden valitseminen'!$D$21:$O$50,9,FALSE)),\"\",VLOOKUP(1,'Toimenpiteiden valitseminen'!$D$21:$O$50,9,FALSE))","v":-11307},{"$f":"IF(ISNA(VLOOKUP(1,'Toimenpiteiden valitseminen'!$D$21:$O$50,10,FALSE)),\"\",VLOOKUP(1,'Toimenpiteiden valitseminen'!$D$21:$O$50,10,FALSE))","v":15},{"$f":"IF(AND(G12=\"\",H12=\"\"),\"\",F12/(1000*I12))","v":1.6137931034482758}]
[null,null,{"$f":"IF(ISNA(VLOOKUP(2,'Toimenpiteiden valitseminen'!$D$21:$O$50,1,FALSE)),\"\",VLOOKUP(2,'Toimenpiteiden valitseminen'!$D$21:$O$50,1,FALSE))","v":2},{"$f":"IF(ISNA(VLOOKUP(2,'Toimenpiteiden valitseminen'!$D$21:$O$50,3,FALSE)),\"\",VLOOKUP(2,'Toimenpiteiden valitseminen'!$D$21:$O$50,3,FALSE))","v":0.20628414639059262},{"$f":"IF(ISNA(VLOOKUP(2,'Toimenpiteiden valitseminen'!$D$21:$O$50,4,FALSE)),\"\",VLOOKUP(2,'Toimenpiteiden valitseminen'!$D$21:$O$50,4,FALSE))","v":"IKK2"},{"$f":"IF(ISNA(VLOOKUP(2,'Toimenpiteiden valitseminen'!$D$21:$O$50,6,FALSE)),\"\",VLOOKUP(2,'Toimenpiteiden valitseminen'!$D$21:$O$50,6,FALSE))","v":10868},{"$f":"IF(ISNA(VLOOKUP(2,'Toimenpiteiden valitseminen'!$D$21:$O$50,7,FALSE)),\"\",VLOOKUP(2,'Toimenpiteiden valitseminen'!$D$21:$O$50,7,FALSE))","v":-45},{"$f":"IF(ISNA(VLOOKUP(2,'Toimenpiteiden valitseminen'!$D$21:$O$50,8,FALSE)),\"\",VLOOKUP(2,'Toimenpiteiden valitseminen'!$D$21:$O$50,8,FALSE))","v":0},{"$f":"IF(AND(G13=\"\",H13=\"\"),\"\",-(G13+H13))","v":45},{"$f":"IF(ISNA(VLOOKUP(2,'Toimenpiteiden valitseminen'!$D$21:$O$50,9,FALSE)),\"\",VLOOKUP(2,'Toimenpiteiden valitseminen'!$D$21:$O$50,9,FALSE))","v":-2250},{"$f":"IF(ISNA(VLOOKUP(2,'Toimenpiteiden valitseminen'!$D$21:$O$50,10,FALSE)),\"\",VLOOKUP(2,'Toimenpiteiden valitseminen'!$D$21:$O$50,10,FALSE))","v":30},{"$f":"IF(AND(G13=\"\",H13=\"\"),\"\",F13/(1000*I13))","v":0.24151111111111112}]
[null,null,{"$f":"IF(ISNA(VLOOKUP(3,'Toimenpiteiden valitseminen'!$D$21:$O$50,1,FALSE)),\"\",VLOOKUP(3,'Toimenpiteiden valitseminen'!$D$21:$O$50,1,FALSE))","v":3},{"$f":"IF(ISNA(VLOOKUP(3,'Toimenpiteiden valitseminen'!$D$21:$O$50,3,FALSE)),\"\",VLOOKUP(3,'Toimenpiteiden valitseminen'!$D$21:$O$50,3,FALSE))","v":0.18220341625823658},{"$f":"IF(ISNA(VLOOKUP(3,'Toimenpiteiden valitseminen'!$D$21:$O$50,4,FALSE)),\"\",VLOOKUP(3,'Toimenpiteiden valitseminen'!$D$21:$O$50,4,FALSE))","v":"IKK1"},{"$f":"IF(ISNA(VLOOKUP(3,'Toimenpiteiden valitseminen'!$D$21:$O$50,6,FALSE)),\"\",VLOOKUP(3,'Toimenpiteiden valitseminen'!$D$21:$O$50,6,FALSE))","v":12540},{"$f":"IF(ISNA(VLOOKUP(3,'Toimenpiteiden valitseminen'!$D$21:$O$50,7,FALSE)),\"\",VLOOKUP(3,'Toimenpiteiden valitseminen'!$D$21:$O$50,7,FALSE))","v":-46},{"$f":"IF(ISNA(VLOOKUP(3,'Toimenpiteiden valitseminen'!$D$21:$O$50,8,FALSE)),\"\",VLOOKUP(3,'Toimenpiteiden valitseminen'!$D$21:$O$50,8,FALSE))","v":0},{"$f":"IF(AND(G14=\"\",H14=\"\"),\"\",-(G14+H14))","v":46},{"$f":"IF(ISNA(VLOOKUP(3,'Toimenpiteiden valitseminen'!$D$21:$O$50,9,FALSE)),\"\",VLOOKUP(3,'Toimenpiteiden valitseminen'!$D$21:$O$50,9,FALSE))","v":-2300},{"$f":"IF(ISNA(VLOOKUP(3,'Toimenpiteiden valitseminen'!$D$21:$O$50,10,FALSE)),\"\",VLOOKUP(3,'Toimenpiteiden valitseminen'!$D$21:$O$50,10,FALSE))","v":30},0.27260869565217394]
[null,null,{"$f":"IF(ISNA(VLOOKUP(4,'Toimenpiteiden valitseminen'!$D$21:$O$50,1,FALSE)),\"\",VLOOKUP(4,'Toimenpiteiden valitseminen'!$D$21:$O$50,1,FALSE))","v":4},{"$f":"IF(ISNA(VLOOKUP(4,'Toimenpiteiden valitseminen'!$D$21:$O$50,3,FALSE)),\"\",VLOOKUP(4,'Toimenpiteiden valitseminen'!$D$21:$O$50,3,FALSE))","v":0.11255324685591461},{"$f":"IF(ISNA(VLOOKUP(4,'Toimenpiteiden valitseminen'!$D$21:$O$50,4,FALSE)),\"\",VLOOKUP(4,'Toimenpiteiden valitseminen'!$D$21:$O$50,4,FALSE))","v":"YP1"},{"$f":"IF(ISNA(VLOOKUP(4,'Toimenpiteiden valitseminen'!$D$21:$O$50,6,FALSE)),\"\",VLOOKUP(4,'Toimenpiteiden valitseminen'!$D$21:$O$50,6,FALSE))","v":2628},{"$f":"IF(ISNA(VLOOKUP(4,'Toimenpiteiden valitseminen'!$D$21:$O$50,7,FALSE)),\"\",VLOOKUP(4,'Toimenpiteiden valitseminen'!$D$21:$O$50,7,FALSE))","v":-6},{"$f":"IF(ISNA(VLOOKUP(4,'Toimenpiteiden valitseminen'!$D$21:$O$50,8,FALSE)),\"\",VLOOKUP(4,'Toimenpiteiden valitseminen'!$D$21:$O$50,8,FALSE))","v":0},6,{"$f":"IF(ISNA(VLOOKUP(4,'Toimenpiteiden valitseminen'!$D$21:$O$50,9,FALSE)),\"\",VLOOKUP(4,'Toimenpiteiden valitseminen'!$D$21:$O$50,9,FALSE))","v":-300},{"$f":"IF(ISNA(VLOOKUP(4,'Toimenpiteiden valitseminen'!$D$21:$O$50,10,FALSE)),\"\",VLOOKUP(4,'Toimenpiteiden valitseminen'!$D$21:$O$50,10,FALSE))","v":40},0.438]
[null,null,{"$f":"IF(ISNA(VLOOKUP(5,'Toimenpiteiden valitseminen'!$D$21:$O$50,1,FALSE)),\"\",VLOOKUP(5,'Toimenpiteiden valitseminen'!$D$21:$O$50,1,FALSE))","v":5},{"$f":"IF(ISNA(VLOOKUP(5,'Toimenpiteiden valitseminen'!$D$21:$O$50,3,FALSE)),\"\",VLOOKUP(5,'Toimenpiteiden valitseminen'!$D$21:$O$50,3,FALSE))","v":0.11076264665508979},{"$f":"IF(ISNA(VLOOKUP(5,'Toimenpiteiden valitseminen'!$D$21:$O$50,4,FALSE)),\"\",VLOOKUP(5,'Toimenpiteiden valitseminen'!$D$21:$O$50,4,FALSE))","v":"IV1"},{"$f":"IF(ISNA(VLOOKUP(5,'Toimenpiteiden valitseminen'!$D$21:$O$50,6,FALSE)),\"\",VLOOKUP(5,'Toimenpiteiden valitseminen'!$D$21:$O$50,6,FALSE))","v":78400},{"$f":"IF(ISNA(VLOOKUP(5,'Toimenpiteiden valitseminen'!$D$21:$O$50,7,FALSE)),\"\",VLOOKUP(5,'Toimenpiteiden valitseminen'!$D$21:$O$50,7,FALSE))","v":-259},{"$f":"IF(ISNA(VLOOKUP(5,'Toimenpiteiden valitseminen'!$D$21:$O$50,8,FALSE)),\"\",VLOOKUP(5,'Toimenpiteiden valitseminen'!$D$21:$O$50,8,FALSE))","v":38.6},220.4,{"$f":"IF(ISNA(VLOOKUP(5,'Toimenpiteiden valitseminen'!$D$21:$O$50,9,FALSE)),\"\",VLOOKUP(5,'Toimenpiteiden valitseminen'!$D$21:$O$50,9,FALSE))","v":-9072},{"$f":"IF(ISNA(VLOOKUP(5,'Toimenpiteiden valitseminen'!$D$21:$O$50,10,FALSE)),\"\",VLOOKUP(5,'Toimenpiteiden valitseminen'!$D$21:$O$50,10,FALSE))","v":30},0.35571687840290384]
[null,null,{"$f":"IF(ISNA(VLOOKUP(6,'Toimenpiteiden valitseminen'!$D$21:$O$50,1,FALSE)),\"\",VLOOKUP(6,'Toimenpiteiden valitseminen'!$D$21:$O$50,1,FALSE))","v":6},{"$f":"IF(ISNA(VLOOKUP(6,'Toimenpiteiden valitseminen'!$D$21:$O$50,3,FALSE)),\"\",VLOOKUP(6,'Toimenpiteiden valitseminen'!$D$21:$O$50,3,FALSE))","v":8.4838772415913144E-2},{"$f":"IF(ISNA(VLOOKUP(6,'Toimenpiteiden valitseminen'!$D$21:$O$50,4,FALSE)),\"\",VLOOKUP(6,'Toimenpiteiden valitseminen'!$D$21:$O$50,4,FALSE))","v":"US1"},{"$f":"IF(ISNA(VLOOKUP(6,'Toimenpiteiden valitseminen'!$D$21:$O$50,6,FALSE)),\"\",VLOOKUP(6,'Toimenpiteiden valitseminen'!$D$21:$O$50,6,FALSE))","v":5100},{"$f":"IF(ISNA(VLOOKUP(6,'Toimenpiteiden valitseminen'!$D$21:$O$50,7,FALSE)),\"\",VLOOKUP(6,'Toimenpiteiden valitseminen'!$D$21:$O$50,7,FALSE))","v":-9},{"$f":"IF(ISNA(VLOOKUP(6,'Toimenpiteiden valitseminen'!$D$21:$O$50,8,FALSE)),\"\",VLOOKUP(6,'Toimenpiteiden valitseminen'!$D$21:$O$50,8,FALSE))","v":0},9,{"$f":"IF(ISNA(VLOOKUP(6,'Toimenpiteiden valitseminen'!$D$21:$O$50,9,FALSE)),\"\",VLOOKUP(6,'Toimenpiteiden valitseminen'!$D$21:$O$50,9,FALSE))","v":-450},{"$f":"IF(ISNA(VLOOKUP(6,'Toimenpiteiden valitseminen'!$D$21:$O$50,10,FALSE)),\"\",VLOOKUP(6,'Toimenpiteiden valitseminen'!$D$21:$O$50,10,FALSE))","v":40},0.56666666666666665]
[null,null,{"$f":"IF(ISNA(VLOOKUP(7,'Toimenpiteiden valitseminen'!$D$21:$O$50,1,FALSE)),\"\",VLOOKUP(7,'Toimenpiteiden valitseminen'!$D$21:$O$50,1,FALSE))","v":7},{"$f":"IF(ISNA(VLOOKUP(7,'Toimenpiteiden valitseminen'!$D$21:$O$50,3,FALSE)),\"\",VLOOKUP(7,'Toimenpiteiden valitseminen'!$D$21:$O$50,3,FALSE))","v":7.4878886376319134E-2},{"$f":"IF(ISNA(VLOOKUP(7,'Toimenpiteiden valitseminen'!$D$21:$O$50,4,FALSE)),\"\",VLOOKUP(7,'Toimenpiteiden valitseminen'!$D$21:$O$50,4,FALSE))","v":"IV2"},{"$f":"IF(ISNA(VLOOKUP(7,'Toimenpiteiden valitseminen'!$D$21:$O$50,6,FALSE)),\"\",VLOOKUP(7,'Toimenpiteiden valitseminen'!$D$21:$O$50,6,FALSE))","v":98000},{"$f":"IF(ISNA(VLOOKUP(7,'Toimenpiteiden valitseminen'!$D$21:$O$50,7,FALSE)),\"\",VLOOKUP(7,'Toimenpiteiden valitseminen'!$D$21:$O$50,7,FALSE))","v":-259},{"$f":"IF(ISNA(VLOOKUP(7,'Toimenpiteiden valitseminen'!$D$21:$O$50,8,FALSE)),\"\",VLOOKUP(7,'Toimenpiteiden valitseminen'!$D$21:$O$50,8,FALSE))","v":38.6},220.4,{"$f":"IF(ISNA(VLOOKUP(7,'Toimenpiteiden valitseminen'!$D$21:$O$50,9,FALSE)),\"\",VLOOKUP(7,'Toimenpiteiden valitseminen'!$D$21:$O$50,9,FALSE))","v":-8288},{"$f":"IF(ISNA(VLOOKUP(7,'Toimenpiteiden valitseminen'!$D$21:$O$50,10,FALSE)),\"\",VLOOKUP(7,'Toimenpiteiden valitseminen'!$D$21:$O$50,10,FALSE))","v":30},0.44464609800362975]
[null,null,{"$f":"IF(ISNA(VLOOKUP(8,'Toimenpiteiden valitseminen'!$D$21:$O$50,1,FALSE)),\"\",VLOOKUP(8,'Toimenpiteiden valitseminen'!$D$21:$O$50,1,FALSE))","v":8},{"$f":"IF(ISNA(VLOOKUP(8,'Toimenpiteiden valitseminen'!$D$21:$O$50,3,FALSE)),\"\",VLOOKUP(8,'Toimenpiteiden valitseminen'!$D$21:$O$50,3,FALSE))","v":2.0663177460476936E-2},{"$f":"IF(ISNA(VLOOKUP(8,'Toimenpiteiden valitseminen'!$D$21:$O$50,4,FALSE)),\"\",VLOOKUP(8,'Toimenpiteiden valitseminen'!$D$21:$O$50,4,FALSE))","v":"YP2"},{"$f":"IF(ISNA(VLOOKUP(8,'Toimenpiteiden valitseminen'!$D$21:$O$50,6,FALSE)),\"\",VLOOKUP(8,'Toimenpiteiden valitseminen'!$D$21:$O$50,6,FALSE))","v":5408},{"$f":"IF(ISNA(VLOOKUP(8,'Toimenpiteiden valitseminen'!$D$21:$O$50,7,FALSE)),\"\",VLOOKUP(8,'Toimenpiteiden valitseminen'!$D$21:$O$50,7,FALSE))","v":-4},{"$f":"IF(ISNA(VLOOKUP(8,'Toimenpiteiden valitseminen'!$D$21:$O$50,8,FALSE)),\"\",VLOOKUP(8,'Toimenpiteiden valitseminen'!$D$21:$O$50,8,FALSE))","v":0},4,{"$f":"IF(ISNA(VLOOKUP(8,'Toimenpiteiden valitseminen'!$D$21:$O$50,9,FALSE)),\"\",VLOOKUP(8,'Toimenpiteiden valitseminen'!$D$21:$O$50,9,FALSE))","v":-200},{"$f":"IF(ISNA(VLOOKUP(8,'Toimenpiteiden valitseminen'!$D$21:$O$50,10,FALSE)),\"\",VLOOKUP(8,'Toimenpiteiden valitseminen'!$D$21:$O$50,10,FALSE))","v":40},1.3520000000000001]
[null,null,{"$f":"IF(ISNA(VLOOKUP(9,'Toimenpiteiden valitseminen'!$D$21:$O$50,1,FALSE)),\"\",VLOOKUP(9,'Toimenpiteiden valitseminen'!$D$21:$O$50,1,FALSE))","v":""},{"$f":"IF(ISNA(VLOOKUP(9,'Toimenpiteiden valitseminen'!$D$21:$O$50,3,FALSE)),\"\",VLOOKUP(9,'Toimenpiteiden valitseminen'!$D$21:$O$50,3,FALSE))","v":""},{"$f":"IF(ISNA(VLOOKUP(9,'Toimenpiteiden valitseminen'!$D$21:$O$50,4,FALSE)),\"\",VLOOKUP(9,'Toimenpiteiden valitseminen'!$D$21:$O$50,4,FALSE))","v":""},{"$f":"IF(ISNA(VLOOKUP(9,'Toimenpiteiden valitseminen'!$D$21:$O$50,6,FALSE)),\"\",VLOOKUP(9,'Toimenpiteiden valitseminen'!$D$21:$O$50,6,FALSE))","v":""},{"$f":"IF(ISNA(VLOOKUP(9,'Toimenpiteiden valitseminen'!$D$21:$O$50,7,FALSE)),\"\",VLOOKUP(9,'Toimenpiteiden valitseminen'!$D$21:$O$50,7,FALSE))","v":""},{"$f":"IF(ISNA(VLOOKUP(9,'Toimenpiteiden valitseminen'!$D$21:$O$50,8,FALSE)),\"\",VLOOKUP(9,'Toimenpiteiden valitseminen'!$D$21:$O$50,8,FALSE))","v":""},"",{"$f":"IF(ISNA(VLOOKUP(9,'Toimenpiteiden valitseminen'!$D$21:$O$50,9,FALSE)),\"\",VLOOKUP(9,'Toimenpiteiden valitseminen'!$D$21:$O$50,9,FALSE))","v":""},{"$f":"IF(ISNA(VLOOKUP(9,'Toimenpiteiden valitseminen'!$D$21:$O$50,10,FALSE)),\"\",VLOOKUP(9,'Toimenpiteiden valitseminen'!$D$21:$O$50,10,FALSE))","v":""},""]
[null,null,{"$f":"IF(ISNA(VLOOKUP(10,'Toimenpiteiden valitseminen'!$D$21:$O$50,1,FALSE)),\"\",VLOOKUP(10,'Toimenpiteiden valitseminen'!$D$21:$O$50,1,FALSE))","v":""},{"$f":"IF(ISNA(VLOOKUP(10,'Toimenpiteiden valitseminen'!$D$21:$O$50,3,FALSE)),\"\",VLOOKUP(10,'Toimenpiteiden valitseminen'!$D$21:$O$50,3,FALSE))","v":""},{"$f":"IF(ISNA(VLOOKUP(10,'Toimenpiteiden valitseminen'!$D$21:$O$50,4,FALSE)),\"\",VLOOKUP(10,'Toimenpiteiden valitseminen'!$D$21:$O$50,4,FALSE))","v":""},{"$f":"IF(ISNA(VLOOKUP(10,'Toimenpiteiden valitseminen'!$D$21:$O$50,6,FALSE)),\"\",VLOOKUP(10,'Toimenpiteiden valitseminen'!$D$21:$O$50,6,FALSE))","v":""},{"$f":"IF(ISNA(VLOOKUP(10,'Toimenpiteiden valitseminen'!$D$21:$O$50,7,FALSE)),\"\",VLOOKUP(10,'Toimenpiteiden valitseminen'!$D$21:$O$50,7,FALSE))","v":""},{"$f":"IF(ISNA(VLOOKUP(10,'Toimenpiteiden valitseminen'!$D$21:$O$50,8,FALSE)),\"\",VLOOKUP(10,'Toimenpiteiden valitseminen'!$D$21:$O$50,8,FALSE))","v":""},"",{"$f":"IF(ISNA(VLOOKUP(10,'Toimenpiteiden valitseminen'!$D$21:$O$50,9,FALSE)),\"\",VLOOKUP(10,'Toimenpiteiden valitseminen'!$D$21:$O$50,9,FALSE))","v":""},{"$f":"IF(ISNA(VLOOKUP(10,'Toimenpiteiden valitseminen'!$D$21:$O$50,10,FALSE)),\"\",VLOOKUP(10,'Toimenpiteiden valitseminen'!$D$21:$O$50,10,FALSE))","v":""},""]
[null,null,{"$f":"IF(ISNA(VLOOKUP(11,'Toimenpiteiden valitseminen'!$D$21:$O$50,1,FALSE)),\"\",VLOOKUP(11,'Toimenpiteiden valitseminen'!$D$21:$O$50,1,FALSE))","v":""},{"$f":"IF(ISNA(VLOOKUP(11,'Toimenpiteiden valitseminen'!$D$21:$O$50,3,FALSE)),\"\",VLOOKUP(11,'Toimenpiteiden valitseminen'!$D$21:$O$50,3,FALSE))","v":""},{"$f":"IF(ISNA(VLOOKUP(11,'Toimenpiteiden valitseminen'!$D$21:$O$50,4,FALSE)),\"\",VLOOKUP(11,'Toimenpiteiden valitseminen'!$D$21:$O$50,4,FALSE))","v":""},{"$f":"IF(ISNA(VLOOKUP(11,'Toimenpiteiden valitseminen'!$D$21:$O$50,6,FALSE)),\"\",VLOOKUP(11,'Toimenpiteiden valitseminen'!$D$21:$O$50,6,FALSE))","v":""},{"$f":"IF(ISNA(VLOOKUP(11,'Toimenpiteiden valitseminen'!$D$21:$O$50,7,FALSE)),\"\",VLOOKUP(11,'Toimenpiteiden valitseminen'!$D$21:$O$50,7,FALSE))","v":""},{"$f":"IF(ISNA(VLOOKUP(11,'Toimenpiteiden valitseminen'!$D$21:$O$50,8,FALSE)),\"\",VLOOKUP(11,'Toimenpiteiden valitseminen'!$D$21:$O$50,8,FALSE))","v":""},"",{"$f":"IF(ISNA(VLOOKUP(11,'Toimenpiteiden valitseminen'!$D$21:$O$50,9,FALSE)),\"\",VLOOKUP(11,'Toimenpiteiden valitseminen'!$D$21:$O$50,9,FALSE))","v":""},{"$f":"IF(ISNA(VLOOKUP(11,'Toimenpiteiden valitseminen'!$D$21:$O$50,10,FALSE)),\"\",VLOOKUP(11,'Toimenpiteiden valitseminen'!$D$21:$O$50,10,FALSE))","v":""},""]
[null,null,{"$f":"IF(ISNA(VLOOKUP(12,'Toimenpiteiden valitseminen'!$D$21:$O$50,1,FALSE)),\"\",VLOOKUP(12,'Toimenpiteiden valitseminen'!$D$21:$O$50,1,FALSE))","v":""},{"$f":"IF(ISNA(VLOOKUP(12,'Toimenpiteiden valitseminen'!$D$21:$O$50,3,FALSE)),\"\",VLOOKUP(12,'Toimenpiteiden valitseminen'!$D$21:$O$50,3,FALSE))","v":""},{"$f":"IF(ISNA(VLOOKUP(12,'Toimenpiteiden valitseminen'!$D$21:$O$50,4,FALSE)),\"\",VLOOKUP(12,'Toimenpiteiden valitseminen'!$D$21:$O$50,4,FALSE))","v":""},{"$f":"IF(ISNA(VLOOKUP(12,'Toimenpiteiden valitseminen'!$D$21:$O$50,6,FALSE)),\"\",VLOOKUP(12,'Toimenpiteiden valitseminen'!$D$21:$O$50,6,FALSE))","v":""},{"$f":"IF(ISNA(VLOOKUP(12,'Toimenpiteiden valitseminen'!$D$21:$O$50,7,FALSE)),\"\",VLOOKUP(12,'Toimenpiteiden valitseminen'!$D$21:$O$50,7,FALSE))","v":""},{"$f":"IF(ISNA(VLOOKUP(12,'Toimenpiteiden valitseminen'!$D$21:$O$50,8,FALSE)),\"\",VLOOKUP(12,'Toimenpiteiden valitseminen'!$D$21:$O$50,8,FALSE))","v":""},"",{"$f":"IF(ISNA(VLOOKUP(12,'Toimenpiteiden valitseminen'!$D$21:$O$50,9,FALSE)),\"\",VLOOKUP(12,'Toimenpiteiden valitseminen'!$D$21:$O$50,9,FALSE))","v":""},{"$f":"IF(ISNA(VLOOKUP(12,'Toimenpiteiden valitseminen'!$D$21:$O$50,10,FALSE)),\"\",VLOOKUP(12,'Toimenpiteiden valitseminen'!$D$21:$O$50,10,FALSE))","v":""},""]
[null,null,{"$f":"IF(ISNA(VLOOKUP(13,'Toimenpiteiden valitseminen'!$D$21:$O$50,1,FALSE)),\"\",VLOOKUP(13,'Toimenpiteiden valitseminen'!$D$21:$O$50,1,FALSE))","v":""},{"$f":"IF(ISNA(VLOOKUP(13,'Toimenpiteiden valitseminen'!$D$21:$O$50,3,FALSE)),\"\",VLOOKUP(13,'Toimenpiteiden valitseminen'!$D$21:$O$50,3,FALSE))","v":""},{"$f":"IF(ISNA(VLOOKUP(13,'Toimenpiteiden valitseminen'!$D$21:$O$50,4,FALSE)),\"\",VLOOKUP(13,'Toimenpiteiden valitseminen'!$D$21:$O$50,4,FALSE))","v":""},{"$f":"IF(ISNA(VLOOKUP(13,'Toimenpiteiden valitseminen'!$D$21:$O$50,6,FALSE)),\"\",VLOOKUP(13,'Toimenpiteiden valitseminen'!$D$21:$O$50,6,FALSE))","v":""},{"$f":"IF(ISNA(VLOOKUP(13,'Toimenpiteiden valitseminen'!$D$21:$O$50,7,FALSE)),\"\",VLOOKUP(13,'Toimenpiteiden valitseminen'!$D$21:$O$50,7,FALSE))","v":""},{"$f":"IF(ISNA(VLOOKUP(13,'Toimenpiteiden valitseminen'!$D$21:$O$50,8,FALSE)),\"\",VLOOKUP(13,'Toimenpiteiden valitseminen'!$D$21:$O$50,8,FALSE))","v":""},"",{"$f":"IF(ISNA(VLOOKUP(13,'Toimenpiteiden valitseminen'!$D$21:$O$50,9,FALSE)),\"\",VLOOKUP(13,'Toimenpiteiden valitseminen'!$D$21:$O$50,9,FALSE))","v":""},{"$f":"IF(ISNA(VLOOKUP(13,'Toimenpiteiden valitseminen'!$D$21:$O$50,10,FALSE)),\"\",VLOOKUP(13,'Toimenpiteiden valitseminen'!$D$21:$O$50,10,FALSE))","v":""},""]
[null,null,{"$f":"IF(ISNA(VLOOKUP(14,'Toimenpiteiden valitseminen'!$D$21:$O$50,1,FALSE)),\"\",VLOOKUP(14,'Toimenpiteiden valitseminen'!$D$21:$O$50,1,FALSE))","v":""},{"$f":"IF(ISNA(VLOOKUP(14,'Toimenpiteiden valitseminen'!$D$21:$O$50,3,FALSE)),\"\",VLOOKUP(14,'Toimenpiteiden valitseminen'!$D$21:$O$50,3,FALSE))","v":""},{"$f":"IF(ISNA(VLOOKUP(14,'Toimenpiteiden valitseminen'!$D$21:$O$50,4,FALSE)),\"\",VLOOKUP(14,'Toimenpiteiden valitseminen'!$D$21:$O$50,4,FALSE))","v":""},{"$f":"IF(ISNA(VLOOKUP(14,'Toimenpiteiden valitseminen'!$D$21:$O$50,6,FALSE)),\"\",VLOOKUP(14,'Toimenpiteiden valitseminen'!$D$21:$O$50,6,FALSE))","v":""},{"$f":"IF(ISNA(VLOOKUP(14,'Toimenpiteiden valitseminen'!$D$21:$O$50,7,FALSE)),\"\",VLOOKUP(14,'Toimenpiteiden valitseminen'!$D$21:$O$50,7,FALSE))","v":""},{"$f":"IF(ISNA(VLOOKUP(14,'Toimenpiteiden valitseminen'!$D$21:$O$50,8,FALSE)),\"\",VLOOKUP(14,'Toimenpiteiden valitseminen'!$D$21:$O$50,8,FALSE))","v":""},"",{"$f":"IF(ISNA(VLOOKUP(14,'Toimenpiteiden valitseminen'!$D$21:$O$50,9,FALSE)),\"\",VLOOKUP(14,'Toimenpiteiden valitseminen'!$D$21:$O$50,9,FALSE))","v":""},{"$f":"IF(ISNA(VLOOKUP(14,'Toimenpiteiden valitseminen'!$D$21:$O$50,10,FALSE)),\"\",VLOOKUP(14,'Toimenpiteiden valitseminen'!$D$21:$O$50,10,FALSE))","v":""},""]
[null,null,{"$f":"IF(ISNA(VLOOKUP(15,'Toimenpiteiden valitseminen'!$D$21:$O$50,1,FALSE)),\"\",VLOOKUP(15,'Toimenpiteiden valitseminen'!$D$21:$O$50,1,FALSE))","v":""},{"$f":"IF(ISNA(VLOOKUP(15,'Toimenpiteiden valitseminen'!$D$21:$O$50,3,FALSE)),\"\",VLOOKUP(15,'Toimenpiteiden valitseminen'!$D$21:$O$50,3,FALSE))","v":""},{"$f":"IF(ISNA(VLOOKUP(15,'Toimenpiteiden valitseminen'!$D$21:$O$50,4,FALSE)),\"\",VLOOKUP(15,'Toimenpiteiden valitseminen'!$D$21:$O$50,4,FALSE))","v":""},{"$f":"IF(ISNA(VLOOKUP(15,'Toimenpiteiden valitseminen'!$D$21:$O$50,6,FALSE)),\"\",VLOOKUP(15,'Toimenpiteiden valitseminen'!$D$21:$O$50,6,FALSE))","v":""},{"$f":"IF(ISNA(VLOOKUP(15,'Toimenpiteiden valitseminen'!$D$21:$O$50,7,FALSE)),\"\",VLOOKUP(15,'Toimenpiteiden valitseminen'!$D$21:$O$50,7,FALSE))","v":""},{"$f":"IF(ISNA(VLOOKUP(15,'Toimenpiteiden valitseminen'!$D$21:$O$50,8,FALSE)),\"\",VLOOKUP(15,'Toimenpiteiden valitseminen'!$D$21:$O$50,8,FALSE))","v":""},"",{"$f":"IF(ISNA(VLOOKUP(15,'Toimenpiteiden valitseminen'!$D$21:$O$50,9,FALSE)),\"\",VLOOKUP(15,'Toimenpiteiden valitseminen'!$D$21:$O$50,9,FALSE))","v":""},{"$f":"IF(ISNA(VLOOKUP(15,'Toimenpiteiden valitseminen'!$D$21:$O$50,10,FALSE)),\"\",VLOOKUP(15,'Toimenpiteiden valitseminen'!$D$21:$O$50,10,FALSE))","v":""},""]
[null,null,{"$f":"IF(ISNA(VLOOKUP(16,'Toimenpiteiden valitseminen'!$D$21:$O$50,1,FALSE)),\"\",VLOOKUP(16,'Toimenpiteiden valitseminen'!$D$21:$O$50,1,FALSE))","v":""},{"$f":"IF(ISNA(VLOOKUP(16,'Toimenpiteiden valitseminen'!$D$21:$O$50,3,FALSE)),\"\",VLOOKUP(16,'Toimenpiteiden valitseminen'!$D$21:$O$50,3,FALSE))","v":""},{"$f":"IF(ISNA(VLOOKUP(16,'Toimenpiteiden valitseminen'!$D$21:$O$50,4,FALSE)),\"\",VLOOKUP(16,'Toimenpiteiden valitseminen'!$D$21:$O$50,4,FALSE))","v":""},{"$f":"IF(ISNA(VLOOKUP(16,'Toimenpiteiden valitseminen'!$D$21:$O$50,6,FALSE)),\"\",VLOOKUP(16,'Toimenpiteiden valitseminen'!$D$21:$O$50,6,FALSE))","v":""},{"$f":"IF(ISNA(VLOOKUP(16,'Toimenpiteiden valitseminen'!$D$21:$O$50,7,FALSE)),\"\",VLOOKUP(16,'Toimenpiteiden valitseminen'!$D$21:$O$50,7,FALSE))","v":""},{"$f":"IF(ISNA(VLOOKUP(16,'Toimenpiteiden valitseminen'!$D$21:$O$50,8,FALSE)),\"\",VLOOKUP(16,'Toimenpiteiden valitseminen'!$D$21:$O$50,8,FALSE))","v":""},"",{"$f":"IF(ISNA(VLOOKUP(16,'Toimenpiteiden valitseminen'!$D$21:$O$50,9,FALSE)),\"\",VLOOKUP(16,'Toimenpiteiden valitseminen'!$D$21:$O$50,9,FALSE))","v":""},{"$f":"IF(ISNA(VLOOKUP(16,'Toimenpiteiden valitseminen'!$D$21:$O$50,10,FALSE)),\"\",VLOOKUP(16,'Toimenpiteiden valitseminen'!$D$21:$O$50,10,FALSE))","v":""},""]
[null,null,{"$f":"IF(ISNA(VLOOKUP(17,'Toimenpiteiden valitseminen'!$D$21:$O$50,1,FALSE)),\"\",VLOOKUP(17,'Toimenpiteiden valitseminen'!$D$21:$O$50,1,FALSE))","v":""},{"$f":"IF(ISNA(VLOOKUP(17,'Toimenpiteiden valitseminen'!$D$21:$O$50,3,FALSE)),\"\",VLOOKUP(17,'Toimenpiteiden valitseminen'!$D$21:$O$50,3,FALSE))","v":""},{"$f":"IF(ISNA(VLOOKUP(17,'Toimenpiteiden valitseminen'!$D$21:$O$50,4,FALSE)),\"\",VLOOKUP(17,'Toimenpiteiden valitseminen'!$D$21:$O$50,4,FALSE))","v":""},{"$f":"IF(ISNA(VLOOKUP(17,'Toimenpiteiden valitseminen'!$D$21:$O$50,6,FALSE)),\"\",VLOOKUP(17,'Toimenpiteiden valitseminen'!$D$21:$O$50,6,FALSE))","v":""},{"$f":"IF(ISNA(VLOOKUP(17,'Toimenpiteiden valitseminen'!$D$21:$O$50,7,FALSE)),\"\",VLOOKUP(17,'Toimenpiteiden valitseminen'!$D$21:$O$50,7,FALSE))","v":""},{"$f":"IF(ISNA(VLOOKUP(17,'Toimenpiteiden valitseminen'!$D$21:$O$50,8,FALSE)),\"\",VLOOKUP(17,'Toimenpiteiden valitseminen'!$D$21:$O$50,8,FALSE))","v":""},"",{"$f":"IF(ISNA(VLOOKUP(17,'Toimenpiteiden valitseminen'!$D$21:$O$50,9,FALSE)),\"\",VLOOKUP(17,'Toimenpiteiden valitseminen'!$D$21:$O$50,9,FALSE))","v":""},{"$f":"IF(ISNA(VLOOKUP(17,'Toimenpiteiden valitseminen'!$D$21:$O$50,10,FALSE)),\"\",VLOOKUP(17,'Toimenpiteiden valitseminen'!$D$21:$O$50,10,FALSE))","v":""},""]
[]
[]
[null,null,"VALINTAJÄRJESTYS JÄRJESTETTYNÄ TAKAISINMAKSUAJAN MUKAAN"]
[]
[null,null,"VALINTA-\nJÄRJESTYS","TAKAISIN-\nMAKSU-\nAIKA","TOIMENPITEEN\nTUNNUS","KUSTANNUSTEN\nMUUTOS\n[€]","LÄMMITYSENERGIAN \nKULUTUKSEN\nMUUTOS [MWh/a]","SÄHKÖENERGIAN\nKULUTUKSEN\nMUUTOS [MWh/a]","VUOSITTAINEN\nKOKONAIS-\nENERGIANSÄÄSTÖ\n[MWh/a]","KUSTANNUSTEN VUOSIMUUTOS\n[€/a]","PITOAIKA\n[a]","KUSTANNUS /\nENERGIANSÄÄSTÖ\n[€/(kWh/a)]"]
[null,null,{"$f":"IF(ISNA(VLOOKUP(1,'Toimenpiteiden valitseminen'!$B$21:$O$50,1,FALSE)),\"\",VLOOKUP(1,'Toimenpiteiden valitseminen'!$B$21:$O$50,1,FALSE))","v":1},{"$f":"IF(ISNA(VLOOKUP(1,'Toimenpiteiden valitseminen'!$B$21:$O$50,13,FALSE)),\"\",VLOOKUP(1,'Toimenpiteiden valitseminen'!$B$21:$O$50,13,FALSE))","v":4.1390289201379673},{"$f":"IF(ISNA(VLOOKUP(1,'Toimenpiteiden valitseminen'!$B$21:$O$50,6,FALSE)),\"\",VLOOKUP(1,'Toimenpiteiden valitseminen'!$B$21:$O$50,6,FALSE))","v":"VKM"},{"$f":"IF(ISNA(VLOOKUP(1,'Toimenpiteiden valitseminen'!$B$21:$O$50,8,FALSE)),\"\",VLOOKUP(1,'Toimenpiteiden valitseminen'!$B$21:$O$50,8,FALSE))","v":46800},{"$f":"IF(ISNA(VLOOKUP(1,'Toimenpiteiden valitseminen'!$B$21:$O$50,9,FALSE)),\"\",VLOOKUP(1,'Toimenpiteiden valitseminen'!$B$21:$O$50,9,FALSE))","v":-29},{"$f":"IF(ISNA(VLOOKUP(1,'Toimenpiteiden valitseminen'!$B$21:$O$50,10,FALSE)),\"\",VLOOKUP(1,'Toimenpiteiden valitseminen'!$B$21:$O$50,10,FALSE))","v":0},{"$f":"IF(AND(G34=\"\",H34=\"\"),\"\",-(G34+H34))","v":29},{"$f":"IF(ISNA(VLOOKUP(1,'Toimenpiteiden valitseminen'!$B$21:$O$50,11,FALSE)),\"\",VLOOKUP(1,'Toimenpiteiden valitseminen'!$B$21:$O$50,11,FALSE))","v":-11307},{"$f":"IF(ISNA(VLOOKUP(1,'Toimenpiteiden valitseminen'!$B$21:$O$50,12,FALSE)),\"\",VLOOKUP(1,'Toimenpiteiden valitseminen'!$B$21:$O$50,12,FALSE))","v":15},{"$f":"IF(AND(G34=\"\",H34=\"\"),\"\",F34/(1000*I34))","v":1.6137931034482758}]
[null,null,{"$f":"IF(ISNA(VLOOKUP(2,'Toimenpiteiden valitseminen'!$B$21:$O$50,1,FALSE)),\"\",VLOOKUP(2,'Toimenpiteiden valitseminen'!$B$21:$O$50,1,FALSE))","v":2},{"$f":"IF(ISNA(VLOOKUP(2,'Toimenpiteiden valitseminen'!$B$21:$O$50,13,FALSE)),\"\",VLOOKUP(2,'Toimenpiteiden valitseminen'!$B$21:$O$50,13,FALSE))","v":4.830222222222222},{"$f":"IF(ISNA(VLOOKUP(2,'Toimenpiteiden valitseminen'!$B$21:$O$50,6,FALSE)),\"\",VLOOKUP(2,'Toimenpiteiden valitseminen'!$B$21:$O$50,6,FALSE))","v":"IKK2"},{"$f":"IF(ISNA(VLOOKUP(2,'Toimenpiteiden valitseminen'!$B$21:$O$50,8,FALSE)),\"\",VLOOKUP(2,'Toimenpiteiden valitseminen'!$B$21:$O$50,8,FALSE))","v":10868},{"$f":"IF(ISNA(VLOOKUP(2,'Toimenpiteiden valitseminen'!$B$21:$O$50,9,FALSE)),\"\",VLOOKUP(2,'Toimenpiteiden valitseminen'!$B$21:$O$50,9,FALSE))","v":-45},{"$f":"IF(ISNA(VLOOKUP(2,'Toimenpiteiden valitseminen'!$B$21:$O$50,10,FALSE)),\"\",VLOOKUP(2,'Toimenpiteiden valitseminen'!$B$21:$O$50,10,FALSE))","v":0},{"$f":"IF(AND(G35=\"\",H35=\"\"),\"\",-(G35+H35))","v":45},{"$f":"IF(ISNA(VLOOKUP(2,'Toimenpiteiden valitseminen'!$B$21:$O$50,11,FALSE)),\"\",VLOOKUP(2,'Toimenpiteiden valitseminen'!$B$21:$O$50,11,FALSE))","v":-2250},{"$f":"IF(ISNA(VLOOKUP(2,'Toimenpiteiden valitseminen'!$B$21:$O$50,12,FALSE)),\"\",VLOOKUP(2,'Toimenpiteiden valitseminen'!$B$21:$O$50,12,FALSE))","v":30},{"$f":"IF(AND(G35=\"\",H35=\"\"),\"\",F35/(1000*I35))","v":0.24151111111111112}]
[null,null,{"$f":"IF(ISNA(VLOOKUP(3,'Toimenpiteiden valitseminen'!$B$21:$O$50,1,FALSE)),\"\",VLOOKUP(3,'Toimenpiteiden valitseminen'!$B$21:$O$50,1,FALSE))","v":3},{"$f":"IF(ISNA(VLOOKUP(3,'Toimenpiteiden valitseminen'!$B$21:$O$50,13,FALSE)),\"\",VLOOKUP(3,'Toimenpiteiden valitseminen'!$B$21:$O$50,13,FALSE))","v":5.4521739130434783},{"$f":"IF(ISNA(VLOOKUP(3,'Toimenpiteiden valitseminen'!$B$21:$O$50,6,FALSE)),\"\",VLOOKUP(3,'Toimenpiteiden valitseminen'!$B$21:$O$50,6,FALSE))","v":"IKK1"},{"$f":"IF(ISNA(VLOOKUP(3,'Toimenpiteiden valitseminen'!$B$21:$O$50,8,FALSE)),\"\",VLOOKUP(3,'Toimenpiteiden valitseminen'!$B$21:$O$50,8,FALSE))","v":12540},{"$f":"IF(ISNA(VLOOKUP(3,'Toimenpiteiden valitseminen'!$B$21:$O$50,9,FALSE)),\"\",VLOOKUP(3,'Toimenpiteiden valitseminen'!$B$21:$O$50,9,FALSE))","v":-46},{"$f":"IF(ISNA(VLOOKUP(3,'Toimenpiteiden valitseminen'!$B$21:$O$50,10,FALSE)),\"\",VLOOKUP(3,'Toimenpiteiden valitseminen'!$B$21:$O$50,10,FALSE))","v":0},{"$f":"IF(AND(G36=\"\",H36=\"\"),\"\",-(G36+H36))","v":46},{"$f":"IF(ISNA(VLOOKUP(3,'Toimenpiteiden valitseminen'!$B$21:$O$50,11,FALSE)),\"\",VLOOKUP(3,'Toimenpiteiden valitseminen'!$B$21:$O$50,11,FALSE))","v":-2300},{"$f":"IF(ISNA(VLOOKUP(3,'Toimenpiteiden valitseminen'!$B$21:$O$50,12,FALSE)),\"\",VLOOKUP(3,'Toimenpiteiden valitseminen'!$B$21:$O$50,12,FALSE))","v":30},0.27260869565217394]
[null,null,{"$f":"IF(ISNA(VLOOKUP(4,'Toimenpiteiden valitseminen'!$B$21:$O$50,1,FALSE)),\"\",VLOOKUP(4,'Toimenpiteiden valitseminen'!$B$21:$O$50,1,FALSE))","v":4},{"$f":"IF(ISNA(VLOOKUP(4,'Toimenpiteiden valitseminen'!$B$21:$O$50,13,FALSE)),\"\",VLOOKUP(4,'Toimenpiteiden valitseminen'!$B$21:$O$50,13,FALSE))","v":8.6419753086419746},{"$f":"IF(ISNA(VLOOKUP(4,'Toimenpiteiden valitseminen'!$B$21:$O$50,6,FALSE)),\"\",VLOOKUP(4,'Toimenpiteiden valitseminen'!$B$21:$O$50,6,FALSE))","v":"IV1"},{"$f":"IF(ISNA(VLOOKUP(4,'Toimenpiteiden valitseminen'!$B$21:$O$50,8,FALSE)),\"\",VLOOKUP(4,'Toimenpiteiden valitseminen'!$B$21:$O$50,8,FALSE))","v":78400},{"$f":"IF(ISNA(VLOOKUP(4,'Toimenpiteiden valitseminen'!$B$21:$O$50,9,FALSE)),\"\",VLOOKUP(4,'Toimenpiteiden valitseminen'!$B$21:$O$50,9,FALSE))","v":-259},{"$f":"IF(ISNA(VLOOKUP(4,'Toimenpiteiden valitseminen'!$B$21:$O$50,10,FALSE)),\"\",VLOOKUP(4,'Toimenpiteiden valitseminen'!$B$21:$O$50,10,FALSE))","v":38.6},220.4,{"$f":"IF(ISNA(VLOOKUP(4,'Toimenpiteiden valitseminen'!$B$21:$O$50,11,FALSE)),\"\",VLOOKUP(4,'Toimenpiteiden valitseminen'!$B$21:$O$50,11,FALSE))","v":-9072},{"$f":"IF(ISNA(VLOOKUP(4,'Toimenpiteiden valitseminen'!$B$21:$O$50,12,FALSE)),\"\",VLOOKUP(4,'Toimenpiteiden valitseminen'!$B$21:$O$50,12,FALSE))","v":30},0.35571687840290384]
[null,null,{"$f":"IF(ISNA(VLOOKUP(5,'Toimenpiteiden valitseminen'!$B$21:$O$50,1,FALSE)),\"\",VLOOKUP(5,'Toimenpiteiden valitseminen'!$B$21:$O$50,1,FALSE))","v":5},{"$f":"IF(ISNA(VLOOKUP(5,'Toimenpiteiden valitseminen'!$B$21:$O$50,13,FALSE)),\"\",VLOOKUP(5,'Toimenpiteiden valitseminen'!$B$21:$O$50,13,FALSE))","v":8.76},{"$f":"IF(ISNA(VLOOKUP(5,'Toimenpiteiden valitseminen'!$B$21:$O$50,6,FALSE)),\"\",VLOOKUP(5,'Toimenpiteiden valitseminen'!$B$21:$O$50,6,FALSE))","v":"YP1"},{"$f":"IF(ISNA(VLOOKUP(5,'Toimenpiteiden valitseminen'!$B$21:$O$50,8,FALSE)),\"\",VLOOKUP(5,'Toimenpiteiden valitseminen'!$B$21:$O$50,8,FALSE))","v":2628},{"$f":"IF(ISNA(VLOOKUP(5,'Toimenpiteiden valitseminen'!$B$21:$O$50,9,FALSE)),\"\",VLOOKUP(5,'Toimenpiteiden valitseminen'!$B$21:$O$50,9,FALSE))","v":-6},{"$f":"IF(ISNA(VLOOKUP(5,'Toimenpiteiden valitseminen'!$B$21:$O$50,10,FALSE)),\"\",VLOOKUP(5,'Toimenpiteiden valitseminen'!$B$21:$O$50,10,FALSE))","v":0},6,{"$f":"IF(ISNA(VLOOKUP(5,'Toimenpiteiden valitseminen'!$B$21:$O$50,11,FALSE)),\"\",VLOOKUP(5,'Toimenpiteiden valitseminen'!$B$21:$O$50,11,FALSE))","v":-300},{"$f":"IF(ISNA(VLOOKUP(5,'Toimenpiteiden valitseminen'!$B$21:$O$50,12,FALSE)),\"\",VLOOKUP(5,'Toimenpiteiden valitseminen'!$B$21:$O$50,12,FALSE))","v":40},0.438]
[null,null,{"$f":"IF(ISNA(VLOOKUP(6,'Toimenpiteiden valitseminen'!$B$21:$O$50,1,FALSE)),\"\",VLOOKUP(6,'Toimenpiteiden valitseminen'!$B$21:$O$50,1,FALSE))","v":6},{"$f":"IF(ISNA(VLOOKUP(6,'Toimenpiteiden valitseminen'!$B$21:$O$50,13,FALSE)),\"\",VLOOKUP(6,'Toimenpiteiden valitseminen'!$B$21:$O$50,13,FALSE))","v":11.333333333333334},{"$f":"IF(ISNA(VLOOKUP(6,'Toimenpiteiden valitseminen'!$B$21:$O$50,6,FALSE)),\"\",VLOOKUP(6,'Toimenpiteiden valitseminen'!$B$21:$O$50,6,FALSE))","v":"US1"},{"$f":"IF(ISNA(VLOOKUP(6,'Toimenpiteiden valitseminen'!$B$21:$O$50,8,FALSE)),\"\",VLOOKUP(6,'Toimenpiteiden valitseminen'!$B$21:$O$50,8,FALSE))","v":5100},{"$f":"IF(ISNA(VLOOKUP(6,'Toimenpiteiden valitseminen'!$B$21:$O$50,9,FALSE)),\"\",VLOOKUP(6,'Toimenpiteiden valitseminen'!$B$21:$O$50,9,FALSE))","v":-9},{"$f":"IF(ISNA(VLOOKUP(6,'Toimenpiteiden valitseminen'!$B$21:$O$50,10,FALSE)),\"\",VLOOKUP(6,'Toimenpiteiden valitseminen'!$B$21:$O$50,10,FALSE))","v":0},9,{"$f":"IF(ISNA(VLOOKUP(6,'Toimenpiteiden valitseminen'!$B$21:$O$50,11,FALSE)),\"\",VLOOKUP(6,'Toimenpiteiden valitseminen'!$B$21:$O$50,11,FALSE))","v":-450},{"$f":"IF(ISNA(VLOOKUP(6,'Toimenpiteiden valitseminen'!$B$21:$O$50,12,FALSE)),\"\",VLOOKUP(6,'Toimenpiteiden valitseminen'!$B$21:$O$50,12,FALSE))","v":40},0.56666666666666665]
[null,null,{"$f":"IF(ISNA(VLOOKUP(7,'Toimenpiteiden valitseminen'!$B$21:$O$50,1,FALSE)),\"\",VLOOKUP(7,'Toimenpiteiden valitseminen'!$B$21:$O$50,1,FALSE))","v":7},{"$f":"IF(ISNA(VLOOKUP(7,'Toimenpiteiden valitseminen'!$B$21:$O$50,13,FALSE)),\"\",VLOOKUP(7,'Toimenpiteiden valitseminen'!$B$21:$O$50,13,FALSE))","v":11.824324324324325},{"$f":"IF(ISNA(VLOOKUP(7,'Toimenpiteiden valitseminen'!$B$21:$O$50,6,FALSE)),\"\",VLOOKUP(7,'Toimenpiteiden valitseminen'!$B$21:$O$50,6,FALSE))","v":"IV2"},{"$f":"IF(ISNA(VLOOKUP(7,'Toimenpiteiden valitseminen'!$B$21:$O$50,8,FALSE)),\"\",VLOOKUP(7,'Toimenpiteiden valitseminen'!$B$21:$O$50,8,FALSE))","v":98000},{"$f":"IF(ISNA(VLOOKUP(7,'Toimenpiteiden valitseminen'!$B$21:$O$50,9,FALSE)),\"\",VLOOKUP(7,'Toimenpiteiden valitseminen'!$B$21:$O$50,9,FALSE))","v":-259},{"$f":"IF(ISNA(VLOOKUP(7,'Toimenpiteiden valitseminen'!$B$21:$O$50,10,FALSE)),\"\",VLOOKUP(7,'Toimenpiteiden valitseminen'!$B$21:$O$50,10,FALSE))","v":38.6},220.4,{"$f":"IF(ISNA(VLOOKUP(7,'Toimenpiteiden valitseminen'!$B$21:$O$50,11,FALSE)),\"\",VLOOKUP(7,'Toimenpiteiden valitseminen'!$B$21:$O$50,11,FALSE))","v":-8288},{"$f":"IF(ISNA(VLOOKUP(7,'Toimenpiteiden valitseminen'!$B$21:$O$50,12,FALSE)),\"\",VLOOKUP(7,'Toimenpiteiden valitseminen'!$B$21:$O$50,12,FALSE))","v":30},0.44464609800362975]
[null,null,{"$f":"IF(ISNA(VLOOKUP(8,'Toimenpiteiden valitseminen'!$B$21:$O$50,1,FALSE)),\"\",VLOOKUP(8,'Toimenpiteiden valitseminen'!$B$21:$O$50,1,FALSE))","v":8},{"$f":"IF(ISNA(VLOOKUP(8,'Toimenpiteiden valitseminen'!$B$21:$O$50,13,FALSE)),\"\",VLOOKUP(8,'Toimenpiteiden valitseminen'!$B$21:$O$50,13,FALSE))","v":27.04},{"$f":"IF(ISNA(VLOOKUP(8,'Toimenpiteiden valitseminen'!$B$21:$O$50,6,FALSE)),\"\",VLOOKUP(8,'Toimenpiteiden valitseminen'!$B$21:$O$50,6,FALSE))","v":"YP2"},{"$f":"IF(ISNA(VLOOKUP(8,'Toimenpiteiden valitseminen'!$B$21:$O$50,8,FALSE)),\"\",VLOOKUP(8,'Toimenpiteiden valitseminen'!$B$21:$O$50,8,FALSE))","v":5408},{"$f":"IF(ISNA(VLOOKUP(8,'Toimenpiteiden valitseminen'!$B$21:$O$50,9,FALSE)),\"\",VLOOKUP(8,'Toimenpiteiden valitseminen'!$B$21:$O$50,9,FALSE))","v":-4},{"$f":"IF(ISNA(VLOOKUP(8,'Toimenpiteiden valitseminen'!$B$21:$O$50,10,FALSE)),\"\",VLOOKUP(8,'Toimenpiteiden valitseminen'!$B$21:$O$50,10,FALSE))","v":0},4,{"$f":"IF(ISNA(VLOOKUP(8,'Toimenpiteiden valitseminen'!$B$21:$O$50,11,FALSE)),\"\",VLOOKUP(8,'Toimenpiteiden valitseminen'!$B$21:$O$50,11,FALSE))","v":-200},{"$f":"IF(ISNA(VLOOKUP(8,'Toimenpiteiden valitseminen'!$B$21:$O$50,12,FALSE)),\"\",VLOOKUP(8,'Toimenpiteiden valitseminen'!$B$21:$O$50,12,FALSE))","v":40},1.3520000000000001]
[null,null,{"$f":"IF(ISNA(VLOOKUP(9,'Toimenpiteiden valitseminen'!$B$21:$O$50,1,FALSE)),\"\",VLOOKUP(9,'Toimenpiteiden valitseminen'!$B$21:$O$50,1,FALSE))","v":9},{"$f":"IF(ISNA(VLOOKUP(9,'Toimenpiteiden valitseminen'!$B$21:$O$50,13,FALSE)),\"\",VLOOKUP(9,'Toimenpiteiden valitseminen'!$B$21:$O$50,13,FALSE))","v":57.294117647058826},{"$f":"IF(ISNA(VLOOKUP(9,'Toimenpiteiden valitseminen'!$B$21:$O$50,6,FALSE)),\"\",VLOOKUP(9,'Toimenpiteiden valitseminen'!$B$21:$O$50,6,FALSE))","v":"US2"},{"$f":"IF(ISNA(VLOOKUP(9,'Toimenpiteiden valitseminen'!$B$21:$O$50,8,FALSE)),\"\",VLOOKUP(9,'Toimenpiteiden valitseminen'!$B$21:$O$50,8,FALSE))","v":48700},{"$f":"IF(ISNA(VLOOKUP(9,'Toimenpiteiden valitseminen'!$B$21:$O$50,9,FALSE)),\"\",VLOOKUP(9,'Toimenpiteiden valitseminen'!$B$21:$O$50,9,FALSE))","v":-17},{"$f":"IF(ISNA(VLOOKUP(9,'Toimenpiteiden valitseminen'!$B$21:$O$50,10,FALSE)),\"\",VLOOKUP(9,'Toimenpiteiden valitseminen'!$B$21:$O$50,10,FALSE))","v":0},17,{"$f":"IF(ISNA(VLOOKUP(9,'Toimenpiteiden valitseminen'!$B$21:$O$50,11,FALSE)),\"\",VLOOKUP(9,'Toimenpiteiden valitseminen'!$B$21:$O$50,11,FALSE))","v":-850},{"$f":"IF(ISNA(VLOOKUP(9,'Toimenpiteiden valitseminen'!$B$21:$O$50,12,FALSE)),\"\",VLOOKUP(9,'Toimenpiteiden valitseminen'!$B$21:$O$50,12,FALSE))","v":40},2.8647058823529412]
[null,null,{"$f":"IF(ISNA(VLOOKUP(10,'Toimenpiteiden valitseminen'!$B$21:$O$50,1,FALSE)),\"\",VLOOKUP(10,'Toimenpiteiden valitseminen'!$B$21:$O$50,1,FALSE))","v":""},{"$f":"IF(ISNA(VLOOKUP(10,'Toimenpiteiden valitseminen'!$B$21:$O$50,13,FALSE)),\"\",VLOOKUP(10,'Toimenpiteiden valitseminen'!$B$21:$O$50,13,FALSE))","v":""},{"$f":"IF(ISNA(VLOOKUP(10,'Toimenpiteiden valitseminen'!$B$21:$O$50,6,FALSE)),\"\",VLOOKUP(10,'Toimenpiteiden valitseminen'!$B$21:$O$50,6,FALSE))","v":""},{"$f":"IF(ISNA(VLOOKUP(10,'Toimenpiteiden valitseminen'!$B$21:$O$50,8,FALSE)),\"\",VLOOKUP(10,'Toimenpiteiden valitseminen'!$B$21:$O$50,8,FALSE))","v":""},{"$f":"IF(ISNA(VLOOKUP(10,'Toimenpiteiden valitseminen'!$B$21:$O$50,9,FALSE)),\"\",VLOOKUP(10,'Toimenpiteiden valitseminen'!$B$21:$O$50,9,FALSE))","v":""},{"$f":"IF(ISNA(VLOOKUP(10,'Toimenpiteiden valitseminen'!$B$21:$O$50,10,FALSE)),\"\",VLOOKUP(10,'Toimenpiteiden valitseminen'!$B$21:$O$50,10,FALSE))","v":""},"",{"$f":"IF(ISNA(VLOOKUP(10,'Toimenpiteiden valitseminen'!$B$21:$O$50,11,FALSE)),\"\",VLOOKUP(10,'Toimenpiteiden valitseminen'!$B$21:$O$50,11,FALSE))","v":""},{"$f":"IF(ISNA(VLOOKUP(10,'Toimenpiteiden valitseminen'!$B$21:$O$50,12,FALSE)),\"\",VLOOKUP(10,'Toimenpiteiden valitseminen'!$B$21:$O$50,12,FALSE))","v":""},""]
[null,null,{"$f":"IF(ISNA(VLOOKUP(11,'Toimenpiteiden valitseminen'!$B$21:$O$50,1,FALSE)),\"\",VLOOKUP(11,'Toimenpiteiden valitseminen'!$B$21:$O$50,1,FALSE))","v":""},{"$f":"IF(ISNA(VLOOKUP(11,'Toimenpiteiden valitseminen'!$B$21:$O$50,13,FALSE)),\"\",VLOOKUP(11,'Toimenpiteiden valitseminen'!$B$21:$O$50,13,FALSE))","v":""},{"$f":"IF(ISNA(VLOOKUP(11,'Toimenpiteiden valitseminen'!$B$21:$O$50,6,FALSE)),\"\",VLOOKUP(11,'Toimenpiteiden valitseminen'!$B$21:$O$50,6,FALSE))","v":""},{"$f":"IF(ISNA(VLOOKUP(11,'Toimenpiteiden valitseminen'!$B$21:$O$50,8,FALSE)),\"\",VLOOKUP(11,'Toimenpiteiden valitseminen'!$B$21:$O$50,8,FALSE))","v":""},{"$f":"IF(ISNA(VLOOKUP(11,'Toimenpiteiden valitseminen'!$B$21:$O$50,9,FALSE)),\"\",VLOOKUP(11,'Toimenpiteiden valitseminen'!$B$21:$O$50,9,FALSE))","v":""},{"$f":"IF(ISNA(VLOOKUP(11,'Toimenpiteiden valitseminen'!$B$21:$O$50,10,FALSE)),\"\",VLOOKUP(11,'Toimenpiteiden valitseminen'!$B$21:$O$50,10,FALSE))","v":""},"",{"$f":"IF(ISNA(VLOOKUP(11,'Toimenpiteiden valitseminen'!$B$21:$O$50,11,FALSE)),\"\",VLOOKUP(11,'Toimenpiteiden valitseminen'!$B$21:$O$50,11,FALSE))","v":""},{"$f":"IF(ISNA(VLOOKUP(11,'Toimenpiteiden valitseminen'!$B$21:$O$50,12,FALSE)),\"\",VLOOKUP(11,'Toimenpiteiden valitseminen'!$B$21:$O$50,12,FALSE))","v":""},""]
[null,null,{"$f":"IF(ISNA(VLOOKUP(12,'Toimenpiteiden valitseminen'!$B$21:$O$50,1,FALSE)),\"\",VLOOKUP(12,'Toimenpiteiden valitseminen'!$B$21:$O$50,1,FALSE))","v":""},{"$f":"IF(ISNA(VLOOKUP(12,'Toimenpiteiden valitseminen'!$B$21:$O$50,13,FALSE)),\"\",VLOOKUP(12,'Toimenpiteiden valitseminen'!$B$21:$O$50,13,FALSE))","v":""},{"$f":"IF(ISNA(VLOOKUP(12,'Toimenpiteiden valitseminen'!$B$21:$O$50,6,FALSE)),\"\",VLOOKUP(12,'Toimenpiteiden valitseminen'!$B$21:$O$50,6,FALSE))","v":""},{"$f":"IF(ISNA(VLOOKUP(12,'Toimenpiteiden valitseminen'!$B$21:$O$50,8,FALSE)),\"\",VLOOKUP(12,'Toimenpiteiden valitseminen'!$B$21:$O$50,8,FALSE))","v":""},{"$f":"IF(ISNA(VLOOKUP(12,'Toimenpiteiden valitseminen'!$B$21:$O$50,9,FALSE)),\"\",VLOOKUP(12,'Toimenpiteiden valitseminen'!$B$21:$O$50,9,FALSE))","v":""},{"$f":"IF(ISNA(VLOOKUP(12,'Toimenpiteiden valitseminen'!$B$21:$O$50,10,FALSE)),\"\",VLOOKUP(12,'Toimenpiteiden valitseminen'!$B$21:$O$50,10,FALSE))","v":""},"",{"$f":"IF(ISNA(VLOOKUP(12,'Toimenpiteiden valitseminen'!$B$21:$O$50,11,FALSE)),\"\",VLOOKUP(12,'Toimenpiteiden valitseminen'!$B$21:$O$50,11,FALSE))","v":""},{"$f":"IF(ISNA(VLOOKUP(12,'Toimenpiteiden valitseminen'!$B$21:$O$50,12,FALSE)),\"\",VLOOKUP(12,'Toimenpiteiden valitseminen'!$B$21:$O$50,12,FALSE))","v":""},""]
[null,null,{"$f":"IF(ISNA(VLOOKUP(13,'Toimenpiteiden valitseminen'!$B$21:$O$50,1,FALSE)),\"\",VLOOKUP(13,'Toimenpiteiden valitseminen'!$B$21:$O$50,1,FALSE))","v":""},{"$f":"IF(ISNA(VLOOKUP(13,'Toimenpiteiden valitseminen'!$B$21:$O$50,13,FALSE)),\"\",VLOOKUP(13,'Toimenpiteiden valitseminen'!$B$21:$O$50,13,FALSE))","v":""},{"$f":"IF(ISNA(VLOOKUP(13,'Toimenpiteiden valitseminen'!$B$21:$O$50,6,FALSE)),\"\",VLOOKUP(13,'Toimenpiteiden valitseminen'!$B$21:$O$50,6,FALSE))","v":""},{"$f":"IF(ISNA(VLOOKUP(13,'Toimenpiteiden valitseminen'!$B$21:$O$50,8,FALSE)),\"\",VLOOKUP(13,'Toimenpiteiden valitseminen'!$B$21:$O$50,8,FALSE))","v":""},{"$f":"IF(ISNA(VLOOKUP(13,'Toimenpiteiden valitseminen'!$B$21:$O$50,9,FALSE)),\"\",VLOOKUP(13,'Toimenpiteiden valitseminen'!$B$21:$O$50,9,FALSE))","v":""},{"$f":"IF(ISNA(VLOOKUP(13,'Toimenpiteiden valitseminen'!$B$21:$O$50,10,FALSE)),\"\",VLOOKUP(13,'Toimenpiteiden valitseminen'!$B$21:$O$50,10,FALSE))","v":""},"",{"$f":"IF(ISNA(VLOOKUP(13,'Toimenpiteiden valitseminen'!$B$21:$O$50,11,FALSE)),\"\",VLOOKUP(13,'Toimenpiteiden valitseminen'!$B$21:$O$50,11,FALSE))","v":""},{"$f":"IF(ISNA(VLOOKUP(13,'Toimenpiteiden valitseminen'!$B$21:$O$50,12,FALSE)),\"\",VLOOKUP(13,'Toimenpiteiden valitseminen'!$B$21:$O$50,12,FALSE))","v":""},""]
[null,null,{"$f":"IF(ISNA(VLOOKUP(14,'Toimenpiteiden valitseminen'!$B$21:$O$50,1,FALSE)),\"\",VLOOKUP(14,'Toimenpiteiden valitseminen'!$B$21:$O$50,1,FALSE))","v":""},{"$f":"IF(ISNA(VLOOKUP(14,'Toimenpiteiden valitseminen'!$B$21:$O$50,13,FALSE)),\"\",VLOOKUP(14,'Toimenpiteiden valitseminen'!$B$21:$O$50,13,FALSE))","v":""},{"$f":"IF(ISNA(VLOOKUP(14,'Toimenpiteiden valitseminen'!$B$21:$O$50,6,FALSE)),\"\",VLOOKUP(14,'Toimenpiteiden valitseminen'!$B$21:$O$50,6,FALSE))","v":""},{"$f":"IF(ISNA(VLOOKUP(14,'Toimenpiteiden valitseminen'!$B$21:$O$50,8,FALSE)),\"\",VLOOKUP(14,'Toimenpiteiden valitseminen'!$B$21:$O$50,8,FALSE))","v":""},{"$f":"IF(ISNA(VLOOKUP(14,'Toimenpiteiden valitseminen'!$B$21:$O$50,9,FALSE)),\"\",VLOOKUP(14,'Toimenpiteiden valitseminen'!$B$21:$O$50,9,FALSE))","v":""},{"$f":"IF(ISNA(VLOOKUP(14,'Toimenpiteiden valitseminen'!$B$21:$O$50,10,FALSE)),\"\",VLOOKUP(14,'Toimenpiteiden valitseminen'!$B$21:$O$50,10,FALSE))","v":""},"",{"$f":"IF(ISNA(VLOOKUP(14,'Toimenpiteiden valitseminen'!$B$21:$O$50,11,FALSE)),\"\",VLOOKUP(14,'Toimenpiteiden valitseminen'!$B$21:$O$50,11,FALSE))","v":""},{"$f":"IF(ISNA(VLOOKUP(14,'Toimenpiteiden valitseminen'!$B$21:$O$50,12,FALSE)),\"\",VLOOKUP(14,'Toimenpiteiden valitseminen'!$B$21:$O$50,12,FALSE))","v":""},""]
[null,null,{"$f":"IF(ISNA(VLOOKUP(15,'Toimenpiteiden valitseminen'!$B$21:$O$50,1,FALSE)),\"\",VLOOKUP(15,'Toimenpiteiden valitseminen'!$B$21:$O$50,1,FALSE))","v":""},{"$f":"IF(ISNA(VLOOKUP(15,'Toimenpiteiden valitseminen'!$B$21:$O$50,13,FALSE)),\"\",VLOOKUP(15,'Toimenpiteiden valitseminen'!$B$21:$O$50,13,FALSE))","v":""},{"$f":"IF(ISNA(VLOOKUP(15,'Toimenpiteiden valitseminen'!$B$21:$O$50,6,FALSE)),\"\",VLOOKUP(15,'Toimenpiteiden valitseminen'!$B$21:$O$50,6,FALSE))","v":""},{"$f":"IF(ISNA(VLOOKUP(15,'Toimenpiteiden valitseminen'!$B$21:$O$50,8,FALSE)),\"\",VLOOKUP(15,'Toimenpiteiden valitseminen'!$B$21:$O$50,8,FALSE))","v":""},{"$f":"IF(ISNA(VLOOKUP(15,'Toimenpiteiden valitseminen'!$B$21:$O$50,9,FALSE)),\"\",VLOOKUP(15,'Toimenpiteiden valitseminen'!$B$21:$O$50,9,FALSE))","v":""},{"$f":"IF(ISNA(VLOOKUP(15,'Toimenpiteiden valitseminen'!$B$21:$O$50,10,FALSE)),\"\",VLOOKUP(15,'Toimenpiteiden valitseminen'!$B$21:$O$50,10,FALSE))","v":""},"",{"$f":"IF(ISNA(VLOOKUP(15,'Toimenpiteiden valitseminen'!$B$21:$O$50,11,FALSE)),\"\",VLOOKUP(15,'Toimenpiteiden valitseminen'!$B$21:$O$50,11,FALSE))","v":""},{"$f":"IF(ISNA(VLOOKUP(15,'Toimenpiteiden valitseminen'!$B$21:$O$50,12,FALSE)),\"\",VLOOKUP(15,'Toimenpiteiden valitseminen'!$B$21:$O$50,12,FALSE))","v":""},""]
[null,null,{"$f":"IF(ISNA(VLOOKUP(16,'Toimenpiteiden valitseminen'!$B$21:$O$50,1,FALSE)),\"\",VLOOKUP(16,'Toimenpiteiden valitseminen'!$B$21:$O$50,1,FALSE))","v":""},{"$f":"IF(ISNA(VLOOKUP(16,'Toimenpiteiden valitseminen'!$B$21:$O$50,13,FALSE)),\"\",VLOOKUP(16,'Toimenpiteiden valitseminen'!$B$21:$O$50,13,FALSE))","v":""},{"$f":"IF(ISNA(VLOOKUP(16,'Toimenpiteiden valitseminen'!$B$21:$O$50,6,FALSE)),\"\",VLOOKUP(16,'Toimenpiteiden valitseminen'!$B$21:$O$50,6,FALSE))","v":""},{"$f":"IF(ISNA(VLOOKUP(16,'Toimenpiteiden valitseminen'!$B$21:$O$50,8,FALSE)),\"\",VLOOKUP(16,'Toimenpiteiden valitseminen'!$B$21:$O$50,8,FALSE))","v":""},{"$f":"IF(ISNA(VLOOKUP(16,'Toimenpiteiden valitseminen'!$B$21:$O$50,9,FALSE)),\"\",VLOOKUP(16,'Toimenpiteiden valitseminen'!$B$21:$O$50,9,FALSE))","v":""},{"$f":"IF(ISNA(VLOOKUP(16,'Toimenpiteiden valitseminen'!$B$21:$O$50,10,FALSE)),\"\",VLOOKUP(16,'Toimenpiteiden valitseminen'!$B$21:$O$50,10,FALSE))","v":""},"",{"$f":"IF(ISNA(VLOOKUP(16,'Toimenpiteiden valitseminen'!$B$21:$O$50,11,FALSE)),\"\",VLOOKUP(16,'Toimenpiteiden valitseminen'!$B$21:$O$50,11,FALSE))","v":""},{"$f":"IF(ISNA(VLOOKUP(16,'Toimenpiteiden valitseminen'!$B$21:$O$50,12,FALSE)),\"\",VLOOKUP(16,'Toimenpiteiden valitseminen'!$B$21:$O$50,12,FALSE))","v":""},""]
[null,null,{"$f":"IF(ISNA(VLOOKUP(17,'Toimenpiteiden valitseminen'!$B$21:$O$50,1,FALSE)),\"\",VLOOKUP(17,'Toimenpiteiden valitseminen'!$B$21:$O$50,1,FALSE))","v":""},{"$f":"IF(ISNA(VLOOKUP(17,'Toimenpiteiden valitseminen'!$B$21:$O$50,13,FALSE)),\"\",VLOOKUP(17,'Toimenpiteiden valitseminen'!$B$21:$O$50,13,FALSE))","v":""},{"$f":"IF(ISNA(VLOOKUP(17,'Toimenpiteiden valitseminen'!$B$21:$O$50,6,FALSE)),\"\",VLOOKUP(17,'Toimenpiteiden valitseminen'!$B$21:$O$50,6,FALSE))","v":""},{"$f":"IF(ISNA(VLOOKUP(17,'Toimenpiteiden valitseminen'!$B$21:$O$50,8,FALSE)),\"\",VLOOKUP(17,'Toimenpiteiden valitseminen'!$B$21:$O$50,8,FALSE))","v":""},{"$f":"IF(ISNA(VLOOKUP(17,'Toimenpiteiden valitseminen'!$B$21:$O$50,9,FALSE)),\"\",VLOOKUP(17,'Toimenpiteiden valitseminen'!$B$21:$O$50,9,FALSE))","v":""},{"$f":"IF(ISNA(VLOOKUP(17,'Toimenpiteiden valitseminen'!$B$21:$O$50,10,FALSE)),\"\",VLOOKUP(17,'Toimenpiteiden valitseminen'!$B$21:$O$50,10,FALSE))","v":""},"",{"$f":"IF(ISNA(VLOOKUP(17,'Toimenpiteiden valitseminen'!$B$21:$O$50,11,FALSE)),\"\",VLOOKUP(17,'Toimenpiteiden valitseminen'!$B$21:$O$50,11,FALSE))","v":""},{"$f":"IF(ISNA(VLOOKUP(17,'Toimenpiteiden valitseminen'!$B$21:$O$50,12,FALSE)),\"\",VLOOKUP(17,'Toimenpiteiden valitseminen'!$B$21:$O$50,12,FALSE))","v":""},""]
[]
[]
[null,null,"VALINTAJÄRJESTYS JÄRJESTETTYNÄ TAKAISINMAKSUKERTOJEN MUKAAN"]
[]
[null,null,"VALINTA-\nJÄRJESTYS","TAKAISIN-\nMAKSU-\nKERRAT\nPITOAIKANA","TOIMENPITEEN\nTUNNUS","KUSTANNUSTEN\nMUUTOS\n[€]","LÄMMITYSENERGIAN \nKULUTUKSEN\nMUUTOS [MWh/a]","SÄHKÖENERGIAN\nKULUTUKSEN\nMUUTOS [MWh/a]","VUOSITTAINEN\nKOKONAIS-\nENERGIANSÄÄSTÖ\n[MWh/a]","KUSTANNUSTEN VUOSIMUUTOS\n[€/a]","PITOAIKA\n[a]","KUSTANNUS /\nENERGIANSÄÄSTÖ\n[€/(kWh/a)]"]
[null,null,{"$f":"IF(ISNA(VLOOKUP(1,'Toimenpiteiden valitseminen'!$C$21:$O$50,1,FALSE)),\"\",VLOOKUP(1,'Toimenpiteiden valitseminen'!$C$21:$O$50,1,FALSE))","v":1},{"$f":"IF(ISNA(VLOOKUP(1,'Toimenpiteiden valitseminen'!$C$21:$O$50,13,FALSE)),\"\",VLOOKUP(1,'Toimenpiteiden valitseminen'!$C$21:$O$50,13,FALSE))","v":6.2108943687891056},{"$f":"IF(ISNA(VLOOKUP(1,'Toimenpiteiden valitseminen'!$C$21:$O$50,5,FALSE)),\"\",VLOOKUP(1,'Toimenpiteiden valitseminen'!$C$21:$O$50,5,FALSE))","v":"IKK2"},{"$f":"IF(ISNA(VLOOKUP(1,'Toimenpiteiden valitseminen'!$C$21:$O$50,7,FALSE)),\"\",VLOOKUP(1,'Toimenpiteiden valitseminen'!$C$21:$O$50,7,FALSE))","v":10868},{"$f":"IF(ISNA(VLOOKUP(1,'Toimenpiteiden valitseminen'!$C$21:$O$50,8,FALSE)),\"\",VLOOKUP(1,'Toimenpiteiden valitseminen'!$C$21:$O$50,8,FALSE))","v":-45},{"$f":"IF(ISNA(VLOOKUP(1,'Toimenpiteiden valitseminen'!$C$21:$O$50,9,FALSE)),\"\",VLOOKUP(1,'Toimenpiteiden valitseminen'!$C$21:$O$50,9,FALSE))","v":0},{"$f":"IF(AND(G56=\"\",H56=\"\"),\"\",-(G56+H56))","v":45},{"$f":"IF(ISNA(VLOOKUP(1,'Toimenpiteiden valitseminen'!$C$21:$O$50,10,FALSE)),\"\",VLOOKUP(1,'Toimenpiteiden valitseminen'!$C$21:$O$50,10,FALSE))","v":-2250},{"$f":"IF(ISNA(VLOOKUP(1,'Toimenpiteiden valitseminen'!$C$21:$O$50,11,FALSE)),\"\",VLOOKUP(1,'Toimenpiteiden valitseminen'!$C$21:$O$50,11,FALSE))","v":30},{"$f":"IF(AND(G56=\"\",H56=\"\"),\"\",F56/(1000*I56))","v":0.24151111111111112}]
[null,null,{"$f":"IF(ISNA(VLOOKUP(2,'Toimenpiteiden valitseminen'!$C$21:$O$50,1,FALSE)),\"\",VLOOKUP(2,'Toimenpiteiden valitseminen'!$C$21:$O$50,1,FALSE))","v":2},{"$f":"IF(ISNA(VLOOKUP(2,'Toimenpiteiden valitseminen'!$C$21:$O$50,13,FALSE)),\"\",VLOOKUP(2,'Toimenpiteiden valitseminen'!$C$21:$O$50,13,FALSE))","v":5.5023923444976077},{"$f":"IF(ISNA(VLOOKUP(2,'Toimenpiteiden valitseminen'!$C$21:$O$50,5,FALSE)),\"\",VLOOKUP(2,'Toimenpiteiden valitseminen'!$C$21:$O$50,5,FALSE))","v":"IKK1"},{"$f":"IF(ISNA(VLOOKUP(2,'Toimenpiteiden valitseminen'!$C$21:$O$50,7,FALSE)),\"\",VLOOKUP(2,'Toimenpiteiden valitseminen'!$C$21:$O$50,7,FALSE))","v":12540},{"$f":"IF(ISNA(VLOOKUP(2,'Toimenpiteiden valitseminen'!$C$21:$O$50,8,FALSE)),\"\",VLOOKUP(2,'Toimenpiteiden valitseminen'!$C$21:$O$50,8,FALSE))","v":-46},{"$f":"IF(ISNA(VLOOKUP(2,'Toimenpiteiden valitseminen'!$C$21:$O$50,9,FALSE)),\"\",VLOOKUP(2,'Toimenpiteiden valitseminen'!$C$21:$O$50,9,FALSE))","v":0},{"$f":"IF(AND(G57=\"\",H57=\"\"),\"\",-(G57+H57))","v":46},{"$f":"IF(ISNA(VLOOKUP(2,'Toimenpiteiden valitseminen'!$C$21:$O$50,10,FALSE)),\"\",VLOOKUP(2,'Toimenpiteiden valitseminen'!$C$21:$O$50,10,FALSE))","v":-2300},{"$f":"IF(ISNA(VLOOKUP(2,'Toimenpiteiden valitseminen'!$C$21:$O$50,11,FALSE)),\"\",VLOOKUP(2,'Toimenpiteiden valitseminen'!$C$21:$O$50,11,FALSE))","v":30},{"$f":"IF(AND(G57=\"\",H57=\"\"),\"\",F57/(1000*I57))","v":0.27260869565217394}]
[null,null,{"$f":"IF(ISNA(VLOOKUP(3,'Toimenpiteiden valitseminen'!$C$21:$O$50,1,FALSE)),\"\",VLOOKUP(3,'Toimenpiteiden valitseminen'!$C$21:$O$50,1,FALSE))","v":3},{"$f":"IF(ISNA(VLOOKUP(3,'Toimenpiteiden valitseminen'!$C$21:$O$50,13,FALSE)),\"\",VLOOKUP(3,'Toimenpiteiden valitseminen'!$C$21:$O$50,13,FALSE))","v":4.5662100456621006},{"$f":"IF(ISNA(VLOOKUP(3,'Toimenpiteiden valitseminen'!$C$21:$O$50,5,FALSE)),\"\",VLOOKUP(3,'Toimenpiteiden valitseminen'!$C$21:$O$50,5,FALSE))","v":"YP1"},{"$f":"IF(ISNA(VLOOKUP(3,'Toimenpiteiden valitseminen'!$C$21:$O$50,7,FALSE)),\"\",VLOOKUP(3,'Toimenpiteiden valitseminen'!$C$21:$O$50,7,FALSE))","v":2628},{"$f":"IF(ISNA(VLOOKUP(3,'Toimenpiteiden valitseminen'!$C$21:$O$50,8,FALSE)),\"\",VLOOKUP(3,'Toimenpiteiden valitseminen'!$C$21:$O$50,8,FALSE))","v":-6},{"$f":"IF(ISNA(VLOOKUP(3,'Toimenpiteiden valitseminen'!$C$21:$O$50,9,FALSE)),\"\",VLOOKUP(3,'Toimenpiteiden valitseminen'!$C$21:$O$50,9,FALSE))","v":0},{"$f":"IF(AND(G58=\"\",H58=\"\"),\"\",-(G58+H58))","v":6},{"$f":"IF(ISNA(VLOOKUP(3,'Toimenpiteiden valitseminen'!$C$21:$O$50,10,FALSE)),\"\",VLOOKUP(3,'Toimenpiteiden valitseminen'!$C$21:$O$50,10,FALSE))","v":-300},{"$f":"IF(ISNA(VLOOKUP(3,'Toimenpiteiden valitseminen'!$C$21:$O$50,11,FALSE)),\"\",VLOOKUP(3,'Toimenpiteiden valitseminen'!$C$21:$O$50,11,FALSE))","v":40},0.438]
[null,null,{"$f":"IF(ISNA(VLOOKUP(4,'Toimenpiteiden valitseminen'!$C$21:$O$50,1,FALSE)),\"\",VLOOKUP(4,'Toimenpiteiden valitseminen'!$C$21:$O$50,1,FALSE))","v":4},{"$f":"IF(ISNA(VLOOKUP(4,'Toimenpiteiden valitseminen'!$C$21:$O$50,13,FALSE)),\"\",VLOOKUP(4,'Toimenpiteiden valitseminen'!$C$21:$O$50,13,FALSE))","v":3.6240384615384618},{"$f":"IF(ISNA(VLOOKUP(4,'Toimenpiteiden valitseminen'!$C$21:$O$50,5,FALSE)),\"\",VLOOKUP(4,'Toimenpiteiden valitseminen'!$C$21:$O$50,5,FALSE))","v":"VKM"},{"$f":"IF(ISNA(VLOOKUP(4,'Toimenpiteiden valitseminen'!$C$21:$O$50,7,FALSE)),\"\",VLOOKUP(4,'Toimenpiteiden valitseminen'!$C$21:$O$50,7,FALSE))","v":46800},{"$f":"IF(ISNA(VLOOKUP(4,'Toimenpiteiden valitseminen'!$C$21:$O$50,8,FALSE)),\"\",VLOOKUP(4,'Toimenpiteiden valitseminen'!$C$21:$O$50,8,FALSE))","v":-29},{"$f":"IF(ISNA(VLOOKUP(4,'Toimenpiteiden valitseminen'!$C$21:$O$50,9,FALSE)),\"\",VLOOKUP(4,'Toimenpiteiden valitseminen'!$C$21:$O$50,9,FALSE))","v":0},29,{"$f":"IF(ISNA(VLOOKUP(4,'Toimenpiteiden valitseminen'!$C$21:$O$50,10,FALSE)),\"\",VLOOKUP(4,'Toimenpiteiden valitseminen'!$C$21:$O$50,10,FALSE))","v":-11307},{"$f":"IF(ISNA(VLOOKUP(4,'Toimenpiteiden valitseminen'!$C$21:$O$50,11,FALSE)),\"\",VLOOKUP(4,'Toimenpiteiden valitseminen'!$C$21:$O$50,11,FALSE))","v":15},1.6137931034482758]
[null,null,{"$f":"IF(ISNA(VLOOKUP(5,'Toimenpiteiden valitseminen'!$C$21:$O$50,1,FALSE)),\"\",VLOOKUP(5,'Toimenpiteiden valitseminen'!$C$21:$O$50,1,FALSE))","v":5},{"$f":"IF(ISNA(VLOOKUP(5,'Toimenpiteiden valitseminen'!$C$21:$O$50,13,FALSE)),\"\",VLOOKUP(5,'Toimenpiteiden valitseminen'!$C$21:$O$50,13,FALSE))","v":3.5294117647058822},{"$f":"IF(ISNA(VLOOKUP(5,'Toimenpiteiden valitseminen'!$C$21:$O$50,5,FALSE)),\"\",VLOOKUP(5,'Toimenpiteiden valitseminen'!$C$21:$O$50,5,FALSE))","v":"US1"},{"$f":"IF(ISNA(VLOOKUP(5,'Toimenpiteiden valitseminen'!$C$21:$O$50,7,FALSE)),\"\",VLOOKUP(5,'Toimenpiteiden valitseminen'!$C$21:$O$50,7,FALSE))","v":5100},{"$f":"IF(ISNA(VLOOKUP(5,'Toimenpiteiden valitseminen'!$C$21:$O$50,8,FALSE)),\"\",VLOOKUP(5,'Toimenpiteiden valitseminen'!$C$21:$O$50,8,FALSE))","v":-9},{"$f":"IF(ISNA(VLOOKUP(5,'Toimenpiteiden valitseminen'!$C$21:$O$50,9,FALSE)),\"\",VLOOKUP(5,'Toimenpiteiden valitseminen'!$C$21:$O$50,9,FALSE))","v":0},9,{"$f":"IF(ISNA(VLOOKUP(5,'Toimenpiteiden valitseminen'!$C$21:$O$50,10,FALSE)),\"\",VLOOKUP(5,'Toimenpiteiden valitseminen'!$C$21:$O$50,10,FALSE))","v":-450},{"$f":"IF(ISNA(VLOOKUP(5,'Toimenpiteiden valitseminen'!$C$21:$O$50,11,FALSE)),\"\",VLOOKUP(5,'Toimenpiteiden valitseminen'!$C$21:$O$50,11,FALSE))","v":40},0.56666666666666665]
[null,null,{"$f":"IF(ISNA(VLOOKUP(6,'Toimenpiteiden valitseminen'!$C$21:$O$50,1,FALSE)),\"\",VLOOKUP(6,'Toimenpiteiden valitseminen'!$C$21:$O$50,1,FALSE))","v":6},{"$f":"IF(ISNA(VLOOKUP(6,'Toimenpiteiden valitseminen'!$C$21:$O$50,13,FALSE)),\"\",VLOOKUP(6,'Toimenpiteiden valitseminen'!$C$21:$O$50,13,FALSE))","v":3.4714285714285715},{"$f":"IF(ISNA(VLOOKUP(6,'Toimenpiteiden valitseminen'!$C$21:$O$50,5,FALSE)),\"\",VLOOKUP(6,'Toimenpiteiden valitseminen'!$C$21:$O$50,5,FALSE))","v":"IV1"},{"$f":"IF(ISNA(VLOOKUP(6,'Toimenpiteiden valitseminen'!$C$21:$O$50,7,FALSE)),\"\",VLOOKUP(6,'Toimenpiteiden valitseminen'!$C$21:$O$50,7,FALSE))","v":78400},{"$f":"IF(ISNA(VLOOKUP(6,'Toimenpiteiden valitseminen'!$C$21:$O$50,8,FALSE)),\"\",VLOOKUP(6,'Toimenpiteiden valitseminen'!$C$21:$O$50,8,FALSE))","v":-259},{"$f":"IF(ISNA(VLOOKUP(6,'Toimenpiteiden valitseminen'!$C$21:$O$50,9,FALSE)),\"\",VLOOKUP(6,'Toimenpiteiden valitseminen'!$C$21:$O$50,9,FALSE))","v":38.6},220.4,{"$f":"IF(ISNA(VLOOKUP(6,'Toimenpiteiden valitseminen'!$C$21:$O$50,10,FALSE)),\"\",VLOOKUP(6,'Toimenpiteiden valitseminen'!$C$21:$O$50,10,FALSE))","v":-9072},{"$f":"IF(ISNA(VLOOKUP(6,'Toimenpiteiden valitseminen'!$C$21:$O$50,11,FALSE)),\"\",VLOOKUP(6,'Toimenpiteiden valitseminen'!$C$21:$O$50,11,FALSE))","v":30},0.35571687840290384]
[null,null,{"$f":"IF(ISNA(VLOOKUP(7,'Toimenpiteiden valitseminen'!$C$21:$O$50,1,FALSE)),\"\",VLOOKUP(7,'Toimenpiteiden valitseminen'!$C$21:$O$50,1,FALSE))","v":7},{"$f":"IF(ISNA(VLOOKUP(7,'Toimenpiteiden valitseminen'!$C$21:$O$50,13,FALSE)),\"\",VLOOKUP(7,'Toimenpiteiden valitseminen'!$C$21:$O$50,13,FALSE))","v":2.5371428571428569},{"$f":"IF(ISNA(VLOOKUP(7,'Toimenpiteiden valitseminen'!$C$21:$O$50,5,FALSE)),\"\",VLOOKUP(7,'Toimenpiteiden valitseminen'!$C$21:$O$50,5,FALSE))","v":"IV2"},{"$f":"IF(ISNA(VLOOKUP(7,'Toimenpiteiden valitseminen'!$C$21:$O$50,7,FALSE)),\"\",VLOOKUP(7,'Toimenpiteiden valitseminen'!$C$21:$O$50,7,FALSE))","v":98000},{"$f":"IF(ISNA(VLOOKUP(7,'Toimenpiteiden valitseminen'!$C$21:$O$50,8,FALSE)),\"\",VLOOKUP(7,'Toimenpiteiden valitseminen'!$C$21:$O$50,8,FALSE))","v":-259},{"$f":"IF(ISNA(VLOOKUP(7,'Toimenpiteiden valitseminen'!$C$21:$O$50,9,FALSE)),\"\",VLOOKUP(7,'Toimenpiteiden valitseminen'!$C$21:$O$50,9,FALSE))","v":38.6},220.4,{"$f":"IF(ISNA(VLOOKUP(7,'Toimenpiteiden valitseminen'!$C$21:$O$50,10,FALSE)),\"\",VLOOKUP(7,'Toimenpiteiden valitseminen'!$C$21:$O$50,10,FALSE))","v":-8288},{"$f":"IF(ISNA(VLOOKUP(7,'Toimenpiteiden valitseminen'!$C$21:$O$50,11,FALSE)),\"\",VLOOKUP(7,'Toimenpiteiden valitseminen'!$C$21:$O$50,11,FALSE))","v":30},0.44464609800362975]
[null,null,{"$f":"IF(ISNA(VLOOKUP(8,'Toimenpiteiden valitseminen'!$C$21:$O$50,1,FALSE)),\"\",VLOOKUP(8,'Toimenpiteiden valitseminen'!$C$21:$O$50,1,FALSE))","v":8},{"$f":"IF(ISNA(VLOOKUP(8,'Toimenpiteiden valitseminen'!$C$21:$O$50,13,FALSE)),\"\",VLOOKUP(8,'Toimenpiteiden valitseminen'!$C$21:$O$50,13,FALSE))","v":1.4792899408284024},{"$f":"IF(ISNA(VLOOKUP(8,'Toimenpiteiden valitseminen'!$C$21:$O$50,5,FALSE)),\"\",VLOOKUP(8,'Toimenpiteiden valitseminen'!$C$21:$O$50,5,FALSE))","v":"YP2"},{"$f":"IF(ISNA(VLOOKUP(8,'Toimenpiteiden valitseminen'!$C$21:$O$50,7,FALSE)),\"\",VLOOKUP(8,'Toimenpiteiden valitseminen'!$C$21:$O$50,7,FALSE))","v":5408},{"$f":"IF(ISNA(VLOOKUP(8,'Toimenpiteiden valitseminen'!$C$21:$O$50,8,FALSE)),\"\",VLOOKUP(8,'Toimenpiteiden valitseminen'!$C$21:$O$50,8,FALSE))","v":-4},{"$f":"IF(ISNA(VLOOKUP(8,'Toimenpiteiden valitseminen'!$C$21:$O$50,9,FALSE)),\"\",VLOOKUP(8,'Toimenpiteiden valitseminen'!$C$21:$O$50,9,FALSE))","v":0},4,{"$f":"IF(ISNA(VLOOKUP(8,'Toimenpiteiden valitseminen'!$C$21:$O$50,10,FALSE)),\"\",VLOOKUP(8,'Toimenpiteiden valitseminen'!$C$21:$O$50,10,FALSE))","v":-200},{"$f":"IF(ISNA(VLOOKUP(8,'Toimenpiteiden valitseminen'!$C$21:$O$50,11,FALSE)),\"\",VLOOKUP(8,'Toimenpiteiden valitseminen'!$C$21:$O$50,11,FALSE))","v":40},1.3520000000000001]
[null,null,{"$f":"IF(ISNA(VLOOKUP(9,'Toimenpiteiden valitseminen'!$C$21:$O$50,1,FALSE)),\"\",VLOOKUP(9,'Toimenpiteiden valitseminen'!$C$21:$O$50,1,FALSE))","v":9},{"$f":"IF(ISNA(VLOOKUP(9,'Toimenpiteiden valitseminen'!$C$21:$O$50,13,FALSE)),\"\",VLOOKUP(9,'Toimenpiteiden valitseminen'!$C$21:$O$50,13,FALSE))","v":0.69815195071868585},{"$f":"IF(ISNA(VLOOKUP(9,'Toimenpiteiden valitseminen'!$C$21:$O$50,5,FALSE)),\"\",VLOOKUP(9,'Toimenpiteiden valitseminen'!$C$21:$O$50,5,FALSE))","v":"US2"},{"$f":"IF(ISNA(VLOOKUP(9,'Toimenpiteiden valitseminen'!$C$21:$O$50,7,FALSE)),\"\",VLOOKUP(9,'Toimenpiteiden valitseminen'!$C$21:$O$50,7,FALSE))","v":48700},{"$f":"IF(ISNA(VLOOKUP(9,'Toimenpiteiden valitseminen'!$C$21:$O$50,8,FALSE)),\"\",VLOOKUP(9,'Toimenpiteiden valitseminen'!$C$21:$O$50,8,FALSE))","v":-17},{"$f":"IF(ISNA(VLOOKUP(9,'Toimenpiteiden valitseminen'!$C$21:$O$50,9,FALSE)),\"\",VLOOKUP(9,'Toimenpiteiden valitseminen'!$C$21:$O$50,9,FALSE))","v":0},17,{"$f":"IF(ISNA(VLOOKUP(9,'Toimenpiteiden valitseminen'!$C$21:$O$50,10,FALSE)),\"\",VLOOKUP(9,'Toimenpiteiden valitseminen'!$C$21:$O$50,10,FALSE))","v":-850},{"$f":"IF(ISNA(VLOOKUP(9,'Toimenpiteiden valitseminen'!$C$21:$O$50,11,FALSE)),\"\",VLOOKUP(9,'Toimenpiteiden valitseminen'!$C$21:$O$50,11,FALSE))","v":40},2.8647058823529412]
[null,null,{"$f":"IF(ISNA(VLOOKUP(10,'Toimenpiteiden valitseminen'!$C$21:$O$50,1,FALSE)),\"\",VLOOKUP(10,'Toimenpiteiden valitseminen'!$C$21:$O$50,1,FALSE))","v":""},{"$f":"IF(ISNA(VLOOKUP(10,'Toimenpiteiden valitseminen'!$C$21:$O$50,13,FALSE)),\"\",VLOOKUP(10,'Toimenpiteiden valitseminen'!$C$21:$O$50,13,FALSE))","v":""},{"$f":"IF(ISNA(VLOOKUP(10,'Toimenpiteiden valitseminen'!$C$21:$O$50,5,FALSE)),\"\",VLOOKUP(10,'Toimenpiteiden valitseminen'!$C$21:$O$50,5,FALSE))","v":""},{"$f":"IF(ISNA(VLOOKUP(10,'Toimenpiteiden valitseminen'!$C$21:$O$50,7,FALSE)),\"\",VLOOKUP(10,'Toimenpiteiden valitseminen'!$C$21:$O$50,7,FALSE))","v":""},{"$f":"IF(ISNA(VLOOKUP(10,'Toimenpiteiden valitseminen'!$C$21:$O$50,8,FALSE)),\"\",VLOOKUP(10,'Toimenpiteiden valitseminen'!$C$21:$O$50,8,FALSE))","v":""},{"$f":"IF(ISNA(VLOOKUP(10,'Toimenpiteiden valitseminen'!$C$21:$O$50,9,FALSE)),\"\",VLOOKUP(10,'Toimenpiteiden valitseminen'!$C$21:$O$50,9,FALSE))","v":""},"",{"$f":"IF(ISNA(VLOOKUP(10,'Toimenpiteiden valitseminen'!$C$21:$O$50,10,FALSE)),\"\",VLOOKUP(10,'Toimenpiteiden valitseminen'!$C$21:$O$50,10,FALSE))","v":""},{"$f":"IF(ISNA(VLOOKUP(10,'Toimenpiteiden valitseminen'!$C$21:$O$50,11,FALSE)),\"\",VLOOKUP(10,'Toimenpiteiden valitseminen'!$C$21:$O$50,11,FALSE))","v":""},""]
[null,null,{"$f":"IF(ISNA(VLOOKUP(11,'Toimenpiteiden valitseminen'!$C$21:$O$50,1,FALSE)),\"\",VLOOKUP(11,'Toimenpiteiden valitseminen'!$C$21:$O$50,1,FALSE))","v":""},{"$f":"IF(ISNA(VLOOKUP(11,'Toimenpiteiden valitseminen'!$C$21:$O$50,13,FALSE)),\"\",VLOOKUP(11,'Toimenpiteiden valitseminen'!$C$21:$O$50,13,FALSE))","v":""},{"$f":"IF(ISNA(VLOOKUP(11,'Toimenpiteiden valitseminen'!$C$21:$O$50,5,FALSE)),\"\",VLOOKUP(11,'Toimenpiteiden valitseminen'!$C$21:$O$50,5,FALSE))","v":""},{"$f":"IF(ISNA(VLOOKUP(11,'Toimenpiteiden valitseminen'!$C$21:$O$50,7,FALSE)),\"\",VLOOKUP(11,'Toimenpiteiden valitseminen'!$C$21:$O$50,7,FALSE))","v":""},{"$f":"IF(ISNA(VLOOKUP(11,'Toimenpiteiden valitseminen'!$C$21:$O$50,8,FALSE)),\"\",VLOOKUP(11,'Toimenpiteiden valitseminen'!$C$21:$O$50,8,FALSE))","v":""},{"$f":"IF(ISNA(VLOOKUP(11,'Toimenpiteiden valitseminen'!$C$21:$O$50,9,FALSE)),\"\",VLOOKUP(11,'Toimenpiteiden valitseminen'!$C$21:$O$50,9,FALSE))","v":""},"",{"$f":"IF(ISNA(VLOOKUP(11,'Toimenpiteiden valitseminen'!$C$21:$O$50,10,FALSE)),\"\",VLOOKUP(11,'Toimenpiteiden valitseminen'!$C$21:$O$50,10,FALSE))","v":""},{"$f":"IF(ISNA(VLOOKUP(11,'Toimenpiteiden valitseminen'!$C$21:$O$50,11,FALSE)),\"\",VLOOKUP(11,'Toimenpiteiden valitseminen'!$C$21:$O$50,11,FALSE))","v":""},""]
[null,null,{"$f":"IF(ISNA(VLOOKUP(12,'Toimenpiteiden valitseminen'!$C$21:$O$50,1,FALSE)),\"\",VLOOKUP(12,'Toimenpiteiden valitseminen'!$C$21:$O$50,1,FALSE))","v":""},{"$f":"IF(ISNA(VLOOKUP(12,'Toimenpiteiden valitseminen'!$C$21:$O$50,13,FALSE)),\"\",VLOOKUP(12,'Toimenpiteiden valitseminen'!$C$21:$O$50,13,FALSE))","v":""},{"$f":"IF(ISNA(VLOOKUP(12,'Toimenpiteiden valitseminen'!$C$21:$O$50,5,FALSE)),\"\",VLOOKUP(12,'Toimenpiteiden valitseminen'!$C$21:$O$50,5,FALSE))","v":""},{"$f":"IF(ISNA(VLOOKUP(12,'Toimenpiteiden valitseminen'!$C$21:$O$50,7,FALSE)),\"\",VLOOKUP(12,'Toimenpiteiden valitseminen'!$C$21:$O$50,7,FALSE))","v":""},{"$f":"IF(ISNA(VLOOKUP(12,'Toimenpiteiden valitseminen'!$C$21:$O$50,8,FALSE)),\"\",VLOOKUP(12,'Toimenpiteiden valitseminen'!$C$21:$O$50,8,FALSE))","v":""},{"$f":"IF(ISNA(VLOOKUP(12,'Toimenpiteiden valitseminen'!$C$21:$O$50,9,FALSE)),\"\",VLOOKUP(12,'Toimenpiteiden valitseminen'!$C$21:$O$50,9,FALSE))","v":""},"",{"$f":"IF(ISNA(VLOOKUP(12,'Toimenpiteiden valitseminen'!$C$21:$O$50,10,FALSE)),\"\",VLOOKUP(12,'Toimenpiteiden valitseminen'!$C$21:$O$50,10,FALSE))","v":""},{"$f":"IF(ISNA(VLOOKUP(12,'Toimenpiteiden valitseminen'!$C$21:$O$50,11,FALSE)),\"\",VLOOKUP(12,'Toimenpiteiden valitseminen'!$C$21:$O$50,11,FALSE))","v":""},""]
[null,null,{"$f":"IF(ISNA(VLOOKUP(13,'Toimenpiteiden valitseminen'!$C$21:$O$50,1,FALSE)),\"\",VLOOKUP(13,'Toimenpiteiden valitseminen'!$C$21:$O$50,1,FALSE))","v":""},{"$f":"IF(ISNA(VLOOKUP(13,'Toimenpiteiden valitseminen'!$C$21:$O$50,13,FALSE)),\"\",VLOOKUP(13,'Toimenpiteiden valitseminen'!$C$21:$O$50,13,FALSE))","v":""},{"$f":"IF(ISNA(VLOOKUP(13,'Toimenpiteiden valitseminen'!$C$21:$O$50,5,FALSE)),\"\",VLOOKUP(13,'Toimenpiteiden valitseminen'!$C$21:$O$50,5,FALSE))","v":""},{"$f":"IF(ISNA(VLOOKUP(13,'Toimenpiteiden valitseminen'!$C$21:$O$50,7,FALSE)),\"\",VLOOKUP(13,'Toimenpiteiden valitseminen'!$C$21:$O$50,7,FALSE))","v":""},{"$f":"IF(ISNA(VLOOKUP(13,'Toimenpiteiden valitseminen'!$C$21:$O$50,8,FALSE)),\"\",VLOOKUP(13,'Toimenpiteiden valitseminen'!$C$21:$O$50,8,FALSE))","v":""},{"$f":"IF(ISNA(VLOOKUP(13,'Toimenpiteiden valitseminen'!$C$21:$O$50,9,FALSE)),\"\",VLOOKUP(13,'Toimenpiteiden valitseminen'!$C$21:$O$50,9,FALSE))","v":""},"",{"$f":"IF(ISNA(VLOOKUP(13,'Toimenpiteiden valitseminen'!$C$21:$O$50,10,FALSE)),\"\",VLOOKUP(13,'Toimenpiteiden valitseminen'!$C$21:$O$50,10,FALSE))","v":""},{"$f":"IF(ISNA(VLOOKUP(13,'Toimenpiteiden valitseminen'!$C$21:$O$50,11,FALSE)),\"\",VLOOKUP(13,'Toimenpiteiden valitseminen'!$C$21:$O$50,11,FALSE))","v":""},""]
[null,null,{"$f":"IF(ISNA(VLOOKUP(14,'Toimenpiteiden valitseminen'!$C$21:$O$50,1,FALSE)),\"\",VLOOKUP(14,'Toimenpiteiden valitseminen'!$C$21:$O$50,1,FALSE))","v":""},{"$f":"IF(ISNA(VLOOKUP(14,'Toimenpiteiden valitseminen'!$C$21:$O$50,13,FALSE)),\"\",VLOOKUP(14,'Toimenpiteiden valitseminen'!$C$21:$O$50,13,FALSE))","v":""},{"$f":"IF(ISNA(VLOOKUP(14,'Toimenpiteiden valitseminen'!$C$21:$O$50,5,FALSE)),\"\",VLOOKUP(14,'Toimenpiteiden valitseminen'!$C$21:$O$50,5,FALSE))","v":""},{"$f":"IF(ISNA(VLOOKUP(14,'Toimenpiteiden valitseminen'!$C$21:$O$50,7,FALSE)),\"\",VLOOKUP(14,'Toimenpiteiden valitseminen'!$C$21:$O$50,7,FALSE))","v":""},{"$f":"IF(ISNA(VLOOKUP(14,'Toimenpiteiden valitseminen'!$C$21:$O$50,8,FALSE)),\"\",VLOOKUP(14,'Toimenpiteiden valitseminen'!$C$21:$O$50,8,FALSE))","v":""},{"$f":"IF(ISNA(VLOOKUP(14,'Toimenpiteiden valitseminen'!$C$21:$O$50,9,FALSE)),\"\",VLOOKUP(14,'Toimenpiteiden valitseminen'!$C$21:$O$50,9,FALSE))","v":""},"",{"$f":"IF(ISNA(VLOOKUP(14,'Toimenpiteiden valitseminen'!$C$21:$O$50,10,FALSE)),\"\",VLOOKUP(14,'Toimenpiteiden valitseminen'!$C$21:$O$50,10,FALSE))","v":""},{"$f":"IF(ISNA(VLOOKUP(14,'Toimenpiteiden valitseminen'!$C$21:$O$50,11,FALSE)),\"\",VLOOKUP(14,'Toimenpiteiden valitseminen'!$C$21:$O$50,11,FALSE))","v":""},""]
[null,null,{"$f":"IF(ISNA(VLOOKUP(15,'Toimenpiteiden valitseminen'!$C$21:$O$50,1,FALSE)),\"\",VLOOKUP(15,'Toimenpiteiden valitseminen'!$C$21:$O$50,1,FALSE))","v":""},{"$f":"IF(ISNA(VLOOKUP(15,'Toimenpiteiden valitseminen'!$C$21:$O$50,13,FALSE)),\"\",VLOOKUP(15,'Toimenpiteiden valitseminen'!$C$21:$O$50,13,FALSE))","v":""},{"$f":"IF(ISNA(VLOOKUP(15,'Toimenpiteiden valitseminen'!$C$21:$O$50,5,FALSE)),\"\",VLOOKUP(15,'Toimenpiteiden valitseminen'!$C$21:$O$50,5,FALSE))","v":""},{"$f":"IF(ISNA(VLOOKUP(15,'Toimenpiteiden valitseminen'!$C$21:$O$50,7,FALSE)),\"\",VLOOKUP(15,'Toimenpiteiden valitseminen'!$C$21:$O$50,7,FALSE))","v":""},{"$f":"IF(ISNA(VLOOKUP(15,'Toimenpiteiden valitseminen'!$C$21:$O$50,8,FALSE)),\"\",VLOOKUP(15,'Toimenpiteiden valitseminen'!$C$21:$O$50,8,FALSE))","v":""},{"$f":"IF(ISNA(VLOOKUP(15,'Toimenpiteiden valitseminen'!$C$21:$O$50,9,FALSE)),\"\",VLOOKUP(15,'Toimenpiteiden valitseminen'!$C$21:$O$50,9,FALSE))","v":""},"",{"$f":"IF(ISNA(VLOOKUP(15,'Toimenpiteiden valitseminen'!$C$21:$O$50,10,FALSE)),\"\",VLOOKUP(15,'Toimenpiteiden valitseminen'!$C$21:$O$50,10,FALSE))","v":""},{"$f":"IF(ISNA(VLOOKUP(15,'Toimenpiteiden valitseminen'!$C$21:$O$50,11,FALSE)),\"\",VLOOKUP(15,'Toimenpiteiden valitseminen'!$C$21:$O$50,11,FALSE))","v":""},""]
[null,null,{"$f":"IF(ISNA(VLOOKUP(16,'Toimenpiteiden valitseminen'!$C$21:$O$50,1,FALSE)),\"\",VLOOKUP(16,'Toimenpiteiden valitseminen'!$C$21:$O$50,1,FALSE))","v":""},{"$f":"IF(ISNA(VLOOKUP(16,'Toimenpiteiden valitseminen'!$C$21:$O$50,13,FALSE)),\"\",VLOOKUP(16,'Toimenpiteiden valitseminen'!$C$21:$O$50,13,FALSE))","v":""},{"$f":"IF(ISNA(VLOOKUP(16,'Toimenpiteiden valitseminen'!$C$21:$O$50,5,FALSE)),\"\",VLOOKUP(16,'Toimenpiteiden valitseminen'!$C$21:$O$50,5,FALSE))","v":""},{"$f":"IF(ISNA(VLOOKUP(16,'Toimenpiteiden valitseminen'!$C$21:$O$50,7,FALSE)),\"\",VLOOKUP(16,'Toimenpiteiden valitseminen'!$C$21:$O$50,7,FALSE))","v":""},{"$f":"IF(ISNA(VLOOKUP(16,'Toimenpiteiden valitseminen'!$C$21:$O$50,8,FALSE)),\"\",VLOOKUP(16,'Toimenpiteiden valitseminen'!$C$21:$O$50,8,FALSE))","v":""},{"$f":"IF(ISNA(VLOOKUP(16,'Toimenpiteiden valitseminen'!$C$21:$O$50,9,FALSE)),\"\",VLOOKUP(16,'Toimenpiteiden valitseminen'!$C$21:$O$50,9,FALSE))","v":""},"",{"$f":"IF(ISNA(VLOOKUP(16,'Toimenpiteiden valitseminen'!$C$21:$O$50,10,FALSE)),\"\",VLOOKUP(16,'Toimenpiteiden valitseminen'!$C$21:$O$50,10,FALSE))","v":""},{"$f":"IF(ISNA(VLOOKUP(16,'Toimenpiteiden valitseminen'!$C$21:$O$50,11,FALSE)),\"\",VLOOKUP(16,'Toimenpiteiden valitseminen'!$C$21:$O$50,11,FALSE))","v":""},""]
[null,null,{"$f":"IF(ISNA(VLOOKUP(17,'Toimenpiteiden valitseminen'!$C$21:$O$50,1,FALSE)),\"\",VLOOKUP(17,'Toimenpiteiden valitseminen'!$C$21:$O$50,1,FALSE))","v":""},{"$f":"IF(ISNA(VLOOKUP(17,'Toimenpiteiden valitseminen'!$C$21:$O$50,13,FALSE)),\"\",VLOOKUP(17,'Toimenpiteiden valitseminen'!$C$21:$O$50,13,FALSE))","v":""},{"$f":"IF(ISNA(VLOOKUP(17,'Toimenpiteiden valitseminen'!$C$21:$O$50,5,FALSE)),\"\",VLOOKUP(17,'Toimenpiteiden valitseminen'!$C$21:$O$50,5,FALSE))","v":""},{"$f":"IF(ISNA(VLOOKUP(17,'Toimenpiteiden valitseminen'!$C$21:$O$50,7,FALSE)),\"\",VLOOKUP(17,'Toimenpiteiden valitseminen'!$C$21:$O$50,7,FALSE))","v":""},{"$f":"IF(ISNA(VLOOKUP(17,'Toimenpiteiden valitseminen'!$C$21:$O$50,8,FALSE)),\"\",VLOOKUP(17,'Toimenpiteiden valitseminen'!$C$21:$O$50,8,FALSE))","v":""},{"$f":"IF(ISNA(VLOOKUP(17,'Toimenpiteiden valitseminen'!$C$21:$O$50,9,FALSE)),\"\",VLOOKUP(17,'Toimenpiteiden valitseminen'!$C$21:$O$50,9,FALSE))","v":""},"",{"$f":"IF(ISNA(VLOOKUP(17,'Toimenpiteiden valitseminen'!$C$21:$O$50,10,FALSE)),\"\",VLOOKUP(17,'Toimenpiteiden valitseminen'!$C$21:$O$50,10,FALSE))","v":""},{"$f":"IF(ISNA(VLOOKUP(17,'Toimenpiteiden valitseminen'!$C$21:$O$50,11,FALSE)),\"\",VLOOKUP(17,'Toimenpiteiden valitseminen'!$C$21:$O$50,11,FALSE))","v":""},""]
[]
[]
[null,null,"VALINTAJÄRJESTYS JÄRJESTETTYNÄ KRITEERIN KUSTANNUS/ENERGIANSÄÄSTÖ MUKAAN"]
[]
[null,null,"VALINTA-\nJÄRJESTYS","SISÄINEN\nKORKO","TOIMENPITEEN\nTUNNUS","KUSTANNUSTEN\nMUUTOS\n[€]","LÄMMITYSENERGIAN \nKULUTUKSEN\nMUUTOS [MWh/a]","SÄHKÖENERGIAN\nKULUTUKSEN\nMUUTOS [MWh/a]","VUOSITTAINEN\nKOKONAIS-\nENERGIANSÄÄSTÖ\n[MWh/a]","KUSTANNUSTEN VUOSIMUUTOS\n[€/a]","PITOAIKA\n[a]","KUSTANNUS /\nENERGIANSÄÄSTÖ\n[€/(kWh/a)]"]
[null,null,{"$f":"IF(OR(L78=\"\",L78<0),\"\",RANK(L78,$L$78:$L$94,1))","v":1},{"$f":"IF(ISNA(VLOOKUP(2,'Toimenpiteiden valitseminen'!$D$21:$O$50,3,FALSE)),\"\",VLOOKUP(2,'Toimenpiteiden valitseminen'!$D$21:$O$50,3,FALSE))","v":0.20628414639059262},{"$f":"IF(ISNA(VLOOKUP(2,'Toimenpiteiden valitseminen'!$D$21:$O$50,4,FALSE)),\"\",VLOOKUP(2,'Toimenpiteiden valitseminen'!$D$21:$O$50,4,FALSE))","v":"IKK2"},{"$f":"IF(ISNA(VLOOKUP(2,'Toimenpiteiden valitseminen'!$D$21:$O$50,6,FALSE)),\"\",VLOOKUP(2,'Toimenpiteiden valitseminen'!$D$21:$O$50,6,FALSE))","v":10868},{"$f":"IF(ISNA(VLOOKUP(2,'Toimenpiteiden valitseminen'!$D$21:$O$50,7,FALSE)),\"\",VLOOKUP(2,'Toimenpiteiden valitseminen'!$D$21:$O$50,7,FALSE))","v":-45},{"$f":"IF(ISNA(VLOOKUP(2,'Toimenpiteiden valitseminen'!$D$21:$O$50,8,FALSE)),\"\",VLOOKUP(2,'Toimenpiteiden valitseminen'!$D$21:$O$50,8,FALSE))","v":0},{"$f":"IF(AND(G78=\"\",H78=\"\"),\"\",-(G78+H78))","v":45},{"$f":"IF(ISNA(VLOOKUP(2,'Toimenpiteiden valitseminen'!$D$21:$O$50,9,FALSE)),\"\",VLOOKUP(2,'Toimenpiteiden valitseminen'!$D$21:$O$50,9,FALSE))","v":-2250},{"$f":"IF(ISNA(VLOOKUP(2,'Toimenpiteiden valitseminen'!$D$21:$O$50,10,FALSE)),\"\",VLOOKUP(2,'Toimenpiteiden valitseminen'!$D$21:$O$50,10,FALSE))","v":30},{"$f":"IF(AND(G78=\"\",H78=\"\"),\"\",F78/(1000*I78))","v":0.24151111111111112}]
[null,null,{"$f":"IF(OR(L79=\"\",L79<0),\"\",RANK(L79,$L$78:$L$94,1))","v":2},{"$f":"IF(ISNA(VLOOKUP(3,'Toimenpiteiden valitseminen'!$D$21:$O$50,3,FALSE)),\"\",VLOOKUP(3,'Toimenpiteiden valitseminen'!$D$21:$O$50,3,FALSE))","v":0.18220341625823658},{"$f":"IF(ISNA(VLOOKUP(3,'Toimenpiteiden valitseminen'!$D$21:$O$50,4,FALSE)),\"\",VLOOKUP(3,'Toimenpiteiden valitseminen'!$D$21:$O$50,4,FALSE))","v":"IKK1"},{"$f":"IF(ISNA(VLOOKUP(3,'Toimenpiteiden valitseminen'!$D$21:$O$50,6,FALSE)),\"\",VLOOKUP(3,'Toimenpiteiden valitseminen'!$D$21:$O$50,6,FALSE))","v":12540},{"$f":"IF(ISNA(VLOOKUP(3,'Toimenpiteiden valitseminen'!$D$21:$O$50,7,FALSE)),\"\",VLOOKUP(3,'Toimenpiteiden valitseminen'!$D$21:$O$50,7,FALSE))","v":-46},{"$f":"IF(ISNA(VLOOKUP(3,'Toimenpiteiden valitseminen'!$D$21:$O$50,8,FALSE)),\"\",VLOOKUP(3,'Toimenpiteiden valitseminen'!$D$21:$O$50,8,FALSE))","v":0},{"$f":"IF(AND(G79=\"\",H79=\"\"),\"\",-(G79+H79))","v":46},{"$f":"IF(ISNA(VLOOKUP(3,'Toimenpiteiden valitseminen'!$D$21:$O$50,9,FALSE)),\"\",VLOOKUP(3,'Toimenpiteiden valitseminen'!$D$21:$O$50,9,FALSE))","v":-2300},{"$f":"IF(ISNA(VLOOKUP(3,'Toimenpiteiden valitseminen'!$D$21:$O$50,10,FALSE)),\"\",VLOOKUP(3,'Toimenpiteiden valitseminen'!$D$21:$O$50,10,FALSE))","v":30},{"$f":"IF(AND(G79=\"\",H79=\"\"),\"\",F79/(1000*I79))","v":0.27260869565217394}]
[null,null,{"$f":"IF(OR(L80=\"\",L80<0),\"\",RANK(L80,$L$78:$L$94,1))","v":3},{"$f":"IF(ISNA(VLOOKUP(5,'Toimenpiteiden valitseminen'!$D$21:$O$50,3,FALSE)),\"\",VLOOKUP(5,'Toimenpiteiden valitseminen'!$D$21:$O$50,3,FALSE))","v":0.11076264665508979},{"$f":"IF(ISNA(VLOOKUP(5,'Toimenpiteiden valitseminen'!$D$21:$O$50,4,FALSE)),\"\",VLOOKUP(5,'Toimenpiteiden valitseminen'!$D$21:$O$50,4,FALSE))","v":"IV1"},{"$f":"IF(ISNA(VLOOKUP(5,'Toimenpiteiden valitseminen'!$D$21:$O$50,6,FALSE)),\"\",VLOOKUP(5,'Toimenpiteiden valitseminen'!$D$21:$O$50,6,FALSE))","v":78400},{"$f":"IF(ISNA(VLOOKUP(5,'Toimenpiteiden valitseminen'!$D$21:$O$50,7,FALSE)),\"\",VLOOKUP(5,'Toimenpiteiden valitseminen'!$D$21:$O$50,7,FALSE))","v":-259},{"$f":"IF(ISNA(VLOOKUP(5,'Toimenpiteiden valitseminen'!$D$21:$O$50,8,FALSE)),\"\",VLOOKUP(5,'Toimenpiteiden valitseminen'!$D$21:$O$50,8,FALSE))","v":38.6},{"$f":"IF(AND(G80=\"\",H80=\"\"),\"\",-(G80+H80))","v":220.4},{"$f":"IF(ISNA(VLOOKUP(5,'Toimenpiteiden valitseminen'!$D$21:$O$50,9,FALSE)),\"\",VLOOKUP(5,'Toimenpiteiden valitseminen'!$D$21:$O$50,9,FALSE))","v":-9072},{"$f":"IF(ISNA(VLOOKUP(5,'Toimenpiteiden valitseminen'!$D$21:$O$50,10,FALSE)),\"\",VLOOKUP(5,'Toimenpiteiden valitseminen'!$D$21:$O$50,10,FALSE))","v":30},{"$f":"IF(AND(G80=\"\",H80=\"\"),\"\",F80/(1000*I80))","v":0.35571687840290384}]
[null,null,{"$f":"IF(OR(L81=\"\",L81<0),\"\",RANK(L81,$L$78:$L$94,1))","v":4},{"$f":"IF(ISNA(VLOOKUP(4,'Toimenpiteiden valitseminen'!$D$21:$O$50,3,FALSE)),\"\",VLOOKUP(4,'Toimenpiteiden valitseminen'!$D$21:$O$50,3,FALSE))","v":0.11255324685591461},{"$f":"IF(ISNA(VLOOKUP(4,'Toimenpiteiden valitseminen'!$D$21:$O$50,4,FALSE)),\"\",VLOOKUP(4,'Toimenpiteiden valitseminen'!$D$21:$O$50,4,FALSE))","v":"YP1"},{"$f":"IF(ISNA(VLOOKUP(4,'Toimenpiteiden valitseminen'!$D$21:$O$50,6,FALSE)),\"\",VLOOKUP(4,'Toimenpiteiden valitseminen'!$D$21:$O$50,6,FALSE))","v":2628},{"$f":"IF(ISNA(VLOOKUP(4,'Toimenpiteiden valitseminen'!$D$21:$O$50,7,FALSE)),\"\",VLOOKUP(4,'Toimenpiteiden valitseminen'!$D$21:$O$50,7,FALSE))","v":-6},{"$f":"IF(ISNA(VLOOKUP(4,'Toimenpiteiden valitseminen'!$D$21:$O$50,8,FALSE)),\"\",VLOOKUP(4,'Toimenpiteiden valitseminen'!$D$21:$O$50,8,FALSE))","v":0},{"$f":"IF(AND(G81=\"\",H81=\"\"),\"\",-(G81+H81))","v":6},{"$f":"IF(ISNA(VLOOKUP(4,'Toimenpiteiden valitseminen'!$D$21:$O$50,9,FALSE)),\"\",VLOOKUP(4,'Toimenpiteiden valitseminen'!$D$21:$O$50,9,FALSE))","v":-300},{"$f":"IF(ISNA(VLOOKUP(4,'Toimenpiteiden valitseminen'!$D$21:$O$50,10,FALSE)),\"\",VLOOKUP(4,'Toimenpiteiden valitseminen'!$D$21:$O$50,10,FALSE))","v":40},{"$f":"IF(AND(G81=\"\",H81=\"\"),\"\",F81/(1000*I81))","v":0.438}]
[null,null,{"$f":"IF(OR(L82=\"\",L82<0),\"\",RANK(L82,$L$78:$L$94,1))","v":5},{"$f":"IF(ISNA(VLOOKUP(7,'Toimenpiteiden valitseminen'!$D$21:$O$50,3,FALSE)),\"\",VLOOKUP(7,'Toimenpiteiden valitseminen'!$D$21:$O$50,3,FALSE))","v":7.4878886376319134E-2},{"$f":"IF(ISNA(VLOOKUP(7,'Toimenpiteiden valitseminen'!$D$21:$O$50,4,FALSE)),\"\",VLOOKUP(7,'Toimenpiteiden valitseminen'!$D$21:$O$50,4,FALSE))","v":"IV2"},{"$f":"IF(ISNA(VLOOKUP(7,'Toimenpiteiden valitseminen'!$D$21:$O$50,6,FALSE)),\"\",VLOOKUP(7,'Toimenpiteiden valitseminen'!$D$21:$O$50,6,FALSE))","v":98000},{"$f":"IF(ISNA(VLOOKUP(7,'Toimenpiteiden valitseminen'!$D$21:$O$50,7,FALSE)),\"\",VLOOKUP(7,'Toimenpiteiden valitseminen'!$D$21:$O$50,7,FALSE))","v":-259},{"$f":"IF(ISNA(VLOOKUP(7,'Toimenpiteiden valitseminen'!$D$21:$O$50,8,FALSE)),\"\",VLOOKUP(7,'Toimenpiteiden valitseminen'!$D$21:$O$50,8,FALSE))","v":38.6},{"$f":"IF(AND(G82=\"\",H82=\"\"),\"\",-(G82+H82))","v":220.4},{"$f":"IF(ISNA(VLOOKUP(7,'Toimenpiteiden valitseminen'!$D$21:$O$50,9,FALSE)),\"\",VLOOKUP(7,'Toimenpiteiden valitseminen'!$D$21:$O$50,9,FALSE))","v":-8288},{"$f":"IF(ISNA(VLOOKUP(7,'Toimenpiteiden valitseminen'!$D$21:$O$50,10,FALSE)),\"\",VLOOKUP(7,'Toimenpiteiden valitseminen'!$D$21:$O$50,10,FALSE))","v":30},{"$f":"IF(AND(G82=\"\",H82=\"\"),\"\",F82/(1000*I82))","v":0.44464609800362975}]
[null,null,{"$f":"IF(OR(L83=\"\",L83<0),\"\",RANK(L83,$L$78:$L$94,1))","v":6},{"$f":"IF(ISNA(VLOOKUP(6,'Toimenpiteiden valitseminen'!$D$21:$O$50,3,FALSE)),\"\",VLOOKUP(6,'Toimenpiteiden valitseminen'!$D$21:$O$50,3,FALSE))","v":8.4838772415913144E-2},{"$f":"IF(ISNA(VLOOKUP(6,'Toimenpiteiden valitseminen'!$D$21:$O$50,4,FALSE)),\"\",VLOOKUP(6,'Toimenpiteiden valitseminen'!$D$21:$O$50,4,FALSE))","v":"US1"},{"$f":"IF(ISNA(VLOOKUP(6,'Toimenpiteiden valitseminen'!$D$21:$O$50,6,FALSE)),\"\",VLOOKUP(6,'Toimenpiteiden valitseminen'!$D$21:$O$50,6,FALSE))","v":5100},{"$f":"IF(ISNA(VLOOKUP(6,'Toimenpiteiden valitseminen'!$D$21:$O$50,7,FALSE)),\"\",VLOOKUP(6,'Toimenpiteiden valitseminen'!$D$21:$O$50,7,FALSE))","v":-9},{"$f":"IF(ISNA(VLOOKUP(6,'Toimenpiteiden valitseminen'!$D$21:$O$50,8,FALSE)),\"\",VLOOKUP(6,'Toimenpiteiden valitseminen'!$D$21:$O$50,8,FALSE))","v":0},{"$f":"IF(AND(G83=\"\",H83=\"\"),\"\",-(G83+H83))","v":9},{"$f":"IF(ISNA(VLOOKUP(6,'Toimenpiteiden valitseminen'!$D$21:$O$50,9,FALSE)),\"\",VLOOKUP(6,'Toimenpiteiden valitseminen'!$D$21:$O$50,9,FALSE))","v":-450},{"$f":"IF(ISNA(VLOOKUP(6,'Toimenpiteiden valitseminen'!$D$21:$O$50,10,FALSE)),\"\",VLOOKUP(6,'Toimenpiteiden valitseminen'!$D$21:$O$50,10,FALSE))","v":40},{"$f":"IF(AND(G83=\"\",H83=\"\"),\"\",F83/(1000*I83))","v":0.56666666666666665}]
[null,null,{"$f":"IF(OR(L84=\"\",L84<0),\"\",RANK(L84,$L$78:$L$94,1))","v":7},{"$f":"IF(ISNA(VLOOKUP(8,'Toimenpiteiden valitseminen'!$D$21:$O$50,3,FALSE)),\"\",VLOOKUP(8,'Toimenpiteiden valitseminen'!$D$21:$O$50,3,FALSE))","v":2.0663177460476936E-2},{"$f":"IF(ISNA(VLOOKUP(8,'Toimenpiteiden valitseminen'!$D$21:$O$50,4,FALSE)),\"\",VLOOKUP(8,'Toimenpiteiden valitseminen'!$D$21:$O$50,4,FALSE))","v":"YP2"},{"$f":"IF(ISNA(VLOOKUP(8,'Toimenpiteiden valitseminen'!$D$21:$O$50,6,FALSE)),\"\",VLOOKUP(8,'Toimenpiteiden valitseminen'!$D$21:$O$50,6,FALSE))","v":5408},{"$f":"IF(ISNA(VLOOKUP(8,'Toimenpiteiden valitseminen'!$D$21:$O$50,7,FALSE)),\"\",VLOOKUP(8,'Toimenpiteiden valitseminen'!$D$21:$O$50,7,FALSE))","v":-4},{"$f":"IF(ISNA(VLOOKUP(8,'Toimenpiteiden valitseminen'!$D$21:$O$50,8,FALSE)),\"\",VLOOKUP(8,'Toimenpiteiden valitseminen'!$D$21:$O$50,8,FALSE))","v":0},{"$f":"IF(AND(G84=\"\",H84=\"\"),\"\",-(G84+H84))","v":4},{"$f":"IF(ISNA(VLOOKUP(8,'Toimenpiteiden valitseminen'!$D$21:$O$50,9,FALSE)),\"\",VLOOKUP(8,'Toimenpiteiden valitseminen'!$D$21:$O$50,9,FALSE))","v":-200},{"$f":"IF(ISNA(VLOOKUP(8,'Toimenpiteiden valitseminen'!$D$21:$O$50,10,FALSE)),\"\",VLOOKUP(8,'Toimenpiteiden valitseminen'!$D$21:$O$50,10,FALSE))","v":40},{"$f":"IF(AND(G84=\"\",H84=\"\"),\"\",F84/(1000*I84))","v":1.3520000000000001}]
[null,null,{"$f":"IF(OR(L85=\"\",L85<0),\"\",RANK(L85,$L$78:$L$94,1))","v":8},{"$f":"IF(ISNA(VLOOKUP(1,'Toimenpiteiden valitseminen'!$D$21:$O$50,3,FALSE)),\"\",VLOOKUP(1,'Toimenpiteiden valitseminen'!$D$21:$O$50,3,FALSE))","v":0.23089228481829616},{"$f":"IF(ISNA(VLOOKUP(1,'Toimenpiteiden valitseminen'!$D$21:$O$50,4,FALSE)),\"\",VLOOKUP(1,'Toimenpiteiden valitseminen'!$D$21:$O$50,4,FALSE))","v":"VKM"},{"$f":"IF(ISNA(VLOOKUP(1,'Toimenpiteiden valitseminen'!$D$21:$O$50,6,FALSE)),\"\",VLOOKUP(1,'Toimenpiteiden valitseminen'!$D$21:$O$50,6,FALSE))","v":46800},{"$f":"IF(ISNA(VLOOKUP(1,'Toimenpiteiden valitseminen'!$D$21:$O$50,7,FALSE)),\"\",VLOOKUP(1,'Toimenpiteiden valitseminen'!$D$21:$O$50,7,FALSE))","v":-29},{"$f":"IF(ISNA(VLOOKUP(1,'Toimenpiteiden valitseminen'!$D$21:$O$50,8,FALSE)),\"\",VLOOKUP(1,'Toimenpiteiden valitseminen'!$D$21:$O$50,8,FALSE))","v":0},{"$f":"IF(AND(G85=\"\",H85=\"\"),\"\",-(G85+H85))","v":29},{"$f":"IF(ISNA(VLOOKUP(1,'Toimenpiteiden valitseminen'!$D$21:$O$50,9,FALSE)),\"\",VLOOKUP(1,'Toimenpiteiden valitseminen'!$D$21:$O$50,9,FALSE))","v":-11307},{"$f":"IF(ISNA(VLOOKUP(1,'Toimenpiteiden valitseminen'!$D$21:$O$50,10,FALSE)),\"\",VLOOKUP(1,'Toimenpiteiden valitseminen'!$D$21:$O$50,10,FALSE))","v":15},{"$f":"IF(AND(G85=\"\",H85=\"\"),\"\",F85/(1000*I85))","v":1.6137931034482758}]
[null,null,{"$f":"IF(OR(L86=\"\",L86<0),\"\",RANK(L86,$L$78:$L$94,1))","v":""},{"$f":"IF(ISNA(VLOOKUP(9,'Toimenpiteiden valitseminen'!$D$21:$O$50,3,FALSE)),\"\",VLOOKUP(9,'Toimenpiteiden valitseminen'!$D$21:$O$50,3,FALSE))","v":""},{"$f":"IF(ISNA(VLOOKUP(9,'Toimenpiteiden valitseminen'!$D$21:$O$50,4,FALSE)),\"\",VLOOKUP(9,'Toimenpiteiden valitseminen'!$D$21:$O$50,4,FALSE))","v":""},{"$f":"IF(ISNA(VLOOKUP(9,'Toimenpiteiden valitseminen'!$D$21:$O$50,6,FALSE)),\"\",VLOOKUP(9,'Toimenpiteiden valitseminen'!$D$21:$O$50,6,FALSE))","v":""},{"$f":"IF(ISNA(VLOOKUP(9,'Toimenpiteiden valitseminen'!$D$21:$O$50,7,FALSE)),\"\",VLOOKUP(9,'Toimenpiteiden valitseminen'!$D$21:$O$50,7,FALSE))","v":""},{"$f":"IF(ISNA(VLOOKUP(9,'Toimenpiteiden valitseminen'!$D$21:$O$50,8,FALSE)),\"\",VLOOKUP(9,'Toimenpiteiden valitseminen'!$D$21:$O$50,8,FALSE))","v":""},{"$f":"IF(AND(G86=\"\",H86=\"\"),\"\",-(G86+H86))","v":""},{"$f":"IF(ISNA(VLOOKUP(9,'Toimenpiteiden valitseminen'!$D$21:$O$50,9,FALSE)),\"\",VLOOKUP(9,'Toimenpiteiden valitseminen'!$D$21:$O$50,9,FALSE))","v":""},{"$f":"IF(ISNA(VLOOKUP(9,'Toimenpiteiden valitseminen'!$D$21:$O$50,10,FALSE)),\"\",VLOOKUP(9,'Toimenpiteiden valitseminen'!$D$21:$O$50,10,FALSE))","v":""},{"$f":"IF(AND(G86=\"\",H86=\"\"),\"\",F86/(1000*I86))","v":""}]
[null,null,{"$f":"IF(OR(L87=\"\",L87<0),\"\",RANK(L87,$L$78:$L$94,1))","v":""},{"$f":"IF(ISNA(VLOOKUP(10,'Toimenpiteiden valitseminen'!$D$21:$O$50,3,FALSE)),\"\",VLOOKUP(10,'Toimenpiteiden valitseminen'!$D$21:$O$50,3,FALSE))","v":""},{"$f":"IF(ISNA(VLOOKUP(10,'Toimenpiteiden valitseminen'!$D$21:$O$50,4,FALSE)),\"\",VLOOKUP(10,'Toimenpiteiden valitseminen'!$D$21:$O$50,4,FALSE))","v":""},{"$f":"IF(ISNA(VLOOKUP(10,'Toimenpiteiden valitseminen'!$D$21:$O$50,6,FALSE)),\"\",VLOOKUP(10,'Toimenpiteiden valitseminen'!$D$21:$O$50,6,FALSE))","v":""},{"$f":"IF(ISNA(VLOOKUP(10,'Toimenpiteiden valitseminen'!$D$21:$O$50,7,FALSE)),\"\",VLOOKUP(10,'Toimenpiteiden valitseminen'!$D$21:$O$50,7,FALSE))","v":""},{"$f":"IF(ISNA(VLOOKUP(10,'Toimenpiteiden valitseminen'!$D$21:$O$50,8,FALSE)),\"\",VLOOKUP(10,'Toimenpiteiden valitseminen'!$D$21:$O$50,8,FALSE))","v":""},{"$f":"IF(AND(G87=\"\",H87=\"\"),\"\",-(G87+H87))","v":""},{"$f":"IF(ISNA(VLOOKUP(10,'Toimenpiteiden valitseminen'!$D$21:$O$50,9,FALSE)),\"\",VLOOKUP(10,'Toimenpiteiden valitseminen'!$D$21:$O$50,9,FALSE))","v":""},{"$f":"IF(ISNA(VLOOKUP(10,'Toimenpiteiden valitseminen'!$D$21:$O$50,10,FALSE)),\"\",VLOOKUP(10,'Toimenpiteiden valitseminen'!$D$21:$O$50,10,FALSE))","v":""},{"$f":"IF(AND(G87=\"\",H87=\"\"),\"\",F87/(1000*I87))","v":""}]
[null,null,{"$f":"IF(OR(L88=\"\",L88<0),\"\",RANK(L88,$L$78:$L$94,1))","v":""},{"$f":"IF(ISNA(VLOOKUP(11,'Toimenpiteiden valitseminen'!$D$21:$O$50,3,FALSE)),\"\",VLOOKUP(11,'Toimenpiteiden valitseminen'!$D$21:$O$50,3,FALSE))","v":""},{"$f":"IF(ISNA(VLOOKUP(11,'Toimenpiteiden valitseminen'!$D$21:$O$50,4,FALSE)),\"\",VLOOKUP(11,'Toimenpiteiden valitseminen'!$D$21:$O$50,4,FALSE))","v":""},{"$f":"IF(ISNA(VLOOKUP(11,'Toimenpiteiden valitseminen'!$D$21:$O$50,6,FALSE)),\"\",VLOOKUP(11,'Toimenpiteiden valitseminen'!$D$21:$O$50,6,FALSE))","v":""},{"$f":"IF(ISNA(VLOOKUP(11,'Toimenpiteiden valitseminen'!$D$21:$O$50,7,FALSE)),\"\",VLOOKUP(11,'Toimenpiteiden valitseminen'!$D$21:$O$50,7,FALSE))","v":""},{"$f":"IF(ISNA(VLOOKUP(11,'Toimenpiteiden valitseminen'!$D$21:$O$50,8,FALSE)),\"\",VLOOKUP(11,'Toimenpiteiden valitseminen'!$D$21:$O$50,8,FALSE))","v":""},{"$f":"IF(AND(G88=\"\",H88=\"\"),\"\",-(G88+H88))","v":""},{"$f":"IF(ISNA(VLOOKUP(11,'Toimenpiteiden valitseminen'!$D$21:$O$50,9,FALSE)),\"\",VLOOKUP(11,'Toimenpiteiden valitseminen'!$D$21:$O$50,9,FALSE))","v":""},{"$f":"IF(ISNA(VLOOKUP(11,'Toimenpiteiden valitseminen'!$D$21:$O$50,10,FALSE)),\"\",VLOOKUP(11,'Toimenpiteiden valitseminen'!$D$21:$O$50,10,FALSE))","v":""},{"$f":"IF(AND(G88=\"\",H88=\"\"),\"\",F88/(1000*I88))","v":""}]
[null,null,{"$f":"IF(OR(L89=\"\",L89<0),\"\",RANK(L89,$L$78:$L$94,1))","v":""},{"$f":"IF(ISNA(VLOOKUP(12,'Toimenpiteiden valitseminen'!$D$21:$O$50,3,FALSE)),\"\",VLOOKUP(12,'Toimenpiteiden valitseminen'!$D$21:$O$50,3,FALSE))","v":""},{"$f":"IF(ISNA(VLOOKUP(12,'Toimenpiteiden valitseminen'!$D$21:$O$50,4,FALSE)),\"\",VLOOKUP(12,'Toimenpiteiden valitseminen'!$D$21:$O$50,4,FALSE))","v":""},{"$f":"IF(ISNA(VLOOKUP(12,'Toimenpiteiden valitseminen'!$D$21:$O$50,6,FALSE)),\"\",VLOOKUP(12,'Toimenpiteiden valitseminen'!$D$21:$O$50,6,FALSE))","v":""},{"$f":"IF(ISNA(VLOOKUP(12,'Toimenpiteiden valitseminen'!$D$21:$O$50,7,FALSE)),\"\",VLOOKUP(12,'Toimenpiteiden valitseminen'!$D$21:$O$50,7,FALSE))","v":""},{"$f":"IF(ISNA(VLOOKUP(12,'Toimenpiteiden valitseminen'!$D$21:$O$50,8,FALSE)),\"\",VLOOKUP(12,'Toimenpiteiden valitseminen'!$D$21:$O$50,8,FALSE))","v":""},{"$f":"IF(AND(G89=\"\",H89=\"\"),\"\",-(G89+H89))","v":""},{"$f":"IF(ISNA(VLOOKUP(12,'Toimenpiteiden valitseminen'!$D$21:$O$50,9,FALSE)),\"\",VLOOKUP(12,'Toimenpiteiden valitseminen'!$D$21:$O$50,9,FALSE))","v":""},{"$f":"IF(ISNA(VLOOKUP(12,'Toimenpiteiden valitseminen'!$D$21:$O$50,10,FALSE)),\"\",VLOOKUP(12,'Toimenpiteiden valitseminen'!$D$21:$O$50,10,FALSE))","v":""},{"$f":"IF(AND(G89=\"\",H89=\"\"),\"\",F89/(1000*I89))","v":""}]
[null,null,{"$f":"IF(OR(L90=\"\",L90<0),\"\",RANK(L90,$L$78:$L$94,1))","v":""},{"$f":"IF(ISNA(VLOOKUP(13,'Toimenpiteiden valitseminen'!$D$21:$O$50,3,FALSE)),\"\",VLOOKUP(13,'Toimenpiteiden valitseminen'!$D$21:$O$50,3,FALSE))","v":""},{"$f":"IF(ISNA(VLOOKUP(13,'Toimenpiteiden valitseminen'!$D$21:$O$50,4,FALSE)),\"\",VLOOKUP(13,'Toimenpiteiden valitseminen'!$D$21:$O$50,4,FALSE))","v":""},{"$f":"IF(ISNA(VLOOKUP(13,'Toimenpiteiden valitseminen'!$D$21:$O$50,6,FALSE)),\"\",VLOOKUP(13,'Toimenpiteiden valitseminen'!$D$21:$O$50,6,FALSE))","v":""},{"$f":"IF(ISNA(VLOOKUP(13,'Toimenpiteiden valitseminen'!$D$21:$O$50,7,FALSE)),\"\",VLOOKUP(13,'Toimenpiteiden valitseminen'!$D$21:$O$50,7,FALSE))","v":""},{"$f":"IF(ISNA(VLOOKUP(13,'Toimenpiteiden valitseminen'!$D$21:$O$50,8,FALSE)),\"\",VLOOKUP(13,'Toimenpiteiden valitseminen'!$D$21:$O$50,8,FALSE))","v":""},{"$f":"IF(AND(G90=\"\",H90=\"\"),\"\",-(G90+H90))","v":""},{"$f":"IF(ISNA(VLOOKUP(13,'Toimenpiteiden valitseminen'!$D$21:$O$50,9,FALSE)),\"\",VLOOKUP(13,'Toimenpiteiden valitseminen'!$D$21:$O$50,9,FALSE))","v":""},{"$f":"IF(ISNA(VLOOKUP(13,'Toimenpiteiden valitseminen'!$D$21:$O$50,10,FALSE)),\"\",VLOOKUP(13,'Toimenpiteiden valitseminen'!$D$21:$O$50,10,FALSE))","v":""},{"$f":"IF(AND(G90=\"\",H90=\"\"),\"\",F90/(1000*I90))","v":""}]
[null,null,{"$f":"IF(OR(L91=\"\",L91<0),\"\",RANK(L91,$L$78:$L$94,1))","v":""},{"$f":"IF(ISNA(VLOOKUP(14,'Toimenpiteiden valitseminen'!$D$21:$O$50,3,FALSE)),\"\",VLOOKUP(14,'Toimenpiteiden valitseminen'!$D$21:$O$50,3,FALSE))","v":""},{"$f":"IF(ISNA(VLOOKUP(14,'Toimenpiteiden valitseminen'!$D$21:$O$50,4,FALSE)),\"\",VLOOKUP(14,'Toimenpiteiden valitseminen'!$D$21:$O$50,4,FALSE))","v":""},{"$f":"IF(ISNA(VLOOKUP(14,'Toimenpiteiden valitseminen'!$D$21:$O$50,6,FALSE)),\"\",VLOOKUP(14,'Toimenpiteiden valitseminen'!$D$21:$O$50,6,FALSE))","v":""},{"$f":"IF(ISNA(VLOOKUP(14,'Toimenpiteiden valitseminen'!$D$21:$O$50,7,FALSE)),\"\",VLOOKUP(14,'Toimenpiteiden valitseminen'!$D$21:$O$50,7,FALSE))","v":""},{"$f":"IF(ISNA(VLOOKUP(14,'Toimenpiteiden valitseminen'!$D$21:$O$50,8,FALSE)),\"\",VLOOKUP(14,'Toimenpiteiden valitseminen'!$D$21:$O$50,8,FALSE))","v":""},{"$f":"IF(AND(G91=\"\",H91=\"\"),\"\",-(G91+H91))","v":""},{"$f":"IF(ISNA(VLOOKUP(14,'Toimenpiteiden valitseminen'!$D$21:$O$50,9,FALSE)),\"\",VLOOKUP(14,'Toimenpiteiden valitseminen'!$D$21:$O$50,9,FALSE))","v":""},{"$f":"IF(ISNA(VLOOKUP(14,'Toimenpiteiden valitseminen'!$D$21:$O$50,10,FALSE)),\"\",VLOOKUP(14,'Toimenpiteiden valitseminen'!$D$21:$O$50,10,FALSE))","v":""},{"$f":"IF(AND(G91=\"\",H91=\"\"),\"\",F91/(1000*I91))","v":""}]
[null,null,{"$f":"IF(OR(L92=\"\",L92<0),\"\",RANK(L92,$L$78:$L$94,1))","v":""},{"$f":"IF(ISNA(VLOOKUP(15,'Toimenpiteiden valitseminen'!$D$21:$O$50,3,FALSE)),\"\",VLOOKUP(15,'Toimenpiteiden valitseminen'!$D$21:$O$50,3,FALSE))","v":""},{"$f":"IF(ISNA(VLOOKUP(15,'Toimenpiteiden valitseminen'!$D$21:$O$50,4,FALSE)),\"\",VLOOKUP(15,'Toimenpiteiden valitseminen'!$D$21:$O$50,4,FALSE))","v":""},{"$f":"IF(ISNA(VLOOKUP(15,'Toimenpiteiden valitseminen'!$D$21:$O$50,6,FALSE)),\"\",VLOOKUP(15,'Toimenpiteiden valitseminen'!$D$21:$O$50,6,FALSE))","v":""},{"$f":"IF(ISNA(VLOOKUP(15,'Toimenpiteiden valitseminen'!$D$21:$O$50,7,FALSE)),\"\",VLOOKUP(15,'Toimenpiteiden valitseminen'!$D$21:$O$50,7,FALSE))","v":""},{"$f":"IF(ISNA(VLOOKUP(15,'Toimenpiteiden valitseminen'!$D$21:$O$50,8,FALSE)),\"\",VLOOKUP(15,'Toimenpiteiden valitseminen'!$D$21:$O$50,8,FALSE))","v":""},{"$f":"IF(AND(G92=\"\",H92=\"\"),\"\",-(G92+H92))","v":""},{"$f":"IF(ISNA(VLOOKUP(15,'Toimenpiteiden valitseminen'!$D$21:$O$50,9,FALSE)),\"\",VLOOKUP(15,'Toimenpiteiden valitseminen'!$D$21:$O$50,9,FALSE))","v":""},{"$f":"IF(ISNA(VLOOKUP(15,'Toimenpiteiden valitseminen'!$D$21:$O$50,10,FALSE)),\"\",VLOOKUP(15,'Toimenpiteiden valitseminen'!$D$21:$O$50,10,FALSE))","v":""},{"$f":"IF(AND(G92=\"\",H92=\"\"),\"\",F92/(1000*I92))","v":""}]
[null,null,{"$f":"IF(OR(L93=\"\",L93<0),\"\",RANK(L93,$L$78:$L$94,1))","v":""},{"$f":"IF(ISNA(VLOOKUP(16,'Toimenpiteiden valitseminen'!$D$21:$O$50,3,FALSE)),\"\",VLOOKUP(16,'Toimenpiteiden valitseminen'!$D$21:$O$50,3,FALSE))","v":""},{"$f":"IF(ISNA(VLOOKUP(16,'Toimenpiteiden valitseminen'!$D$21:$O$50,4,FALSE)),\"\",VLOOKUP(16,'Toimenpiteiden valitseminen'!$D$21:$O$50,4,FALSE))","v":""},{"$f":"IF(ISNA(VLOOKUP(16,'Toimenpiteiden valitseminen'!$D$21:$O$50,6,FALSE)),\"\",VLOOKUP(16,'Toimenpiteiden valitseminen'!$D$21:$O$50,6,FALSE))","v":""},{"$f":"IF(ISNA(VLOOKUP(16,'Toimenpiteiden valitseminen'!$D$21:$O$50,7,FALSE)),\"\",VLOOKUP(16,'Toimenpiteiden valitseminen'!$D$21:$O$50,7,FALSE))","v":""},{"$f":"IF(ISNA(VLOOKUP(16,'Toimenpiteiden valitseminen'!$D$21:$O$50,8,FALSE)),\"\",VLOOKUP(16,'Toimenpiteiden valitseminen'!$D$21:$O$50,8,FALSE))","v":""},{"$f":"IF(AND(G93=\"\",H93=\"\"),\"\",-(G93+H93))","v":""},{"$f":"IF(ISNA(VLOOKUP(16,'Toimenpiteiden valitseminen'!$D$21:$O$50,9,FALSE)),\"\",VLOOKUP(16,'Toimenpiteiden valitseminen'!$D$21:$O$50,9,FALSE))","v":""},{"$f":"IF(ISNA(VLOOKUP(16,'Toimenpiteiden valitseminen'!$D$21:$O$50,10,FALSE)),\"\",VLOOKUP(16,'Toimenpiteiden valitseminen'!$D$21:$O$50,10,FALSE))","v":""},{"$f":"IF(AND(G93=\"\",H93=\"\"),\"\",F93/(1000*I93))","v":""}]
[null,null,{"$f":"IF(OR(L94=\"\",L94<0),\"\",RANK(L94,$L$78:$L$94,1))","v":""},{"$f":"IF(ISNA(VLOOKUP(17,'Toimenpiteiden valitseminen'!$D$21:$O$50,3,FALSE)),\"\",VLOOKUP(17,'Toimenpiteiden valitseminen'!$D$21:$O$50,3,FALSE))","v":""},{"$f":"IF(ISNA(VLOOKUP(17,'Toimenpiteiden valitseminen'!$D$21:$O$50,4,FALSE)),\"\",VLOOKUP(17,'Toimenpiteiden valitseminen'!$D$21:$O$50,4,FALSE))","v":""},{"$f":"IF(ISNA(VLOOKUP(17,'Toimenpiteiden valitseminen'!$D$21:$O$50,6,FALSE)),\"\",VLOOKUP(17,'Toimenpiteiden valitseminen'!$D$21:$O$50,6,FALSE))","v":""},{"$f":"IF(ISNA(VLOOKUP(17,'Toimenpiteiden valitseminen'!$D$21:$O$50,7,FALSE)),\"\",VLOOKUP(17,'Toimenpiteiden valitseminen'!$D$21:$O$50,7,FALSE))","v":""},{"$f":"IF(ISNA(VLOOKUP(17,'Toimenpiteiden valitseminen'!$D$21:$O$50,8,FALSE)),\"\",VLOOKUP(17,'Toimenpiteiden valitseminen'!$D$21:$O$50,8,FALSE))","v":""},{"$f":"IF(AND(G94=\"\",H94=\"\"),\"\",-(G94+H94))","v":""},{"$f":"IF(ISNA(VLOOKUP(17,'Toimenpiteiden valitseminen'!$D$21:$O$50,9,FALSE)),\"\",VLOOKUP(17,'Toimenpiteiden valitseminen'!$D$21:$O$50,9,FALSE))","v":""},{"$f":"IF(ISNA(VLOOKUP(17,'Toimenpiteiden valitseminen'!$D$21:$O$50,10,FALSE)),\"\",VLOOKUP(17,'Toimenpiteiden valitseminen'!$D$21:$O$50,10,FALSE))","v":""},{"$f":"IF(AND(G94=\"\",H94=\"\"),\"\",F94/(1000*I94))","v":""}]

{"sheet":"Toimenpiteiden valitseminen","index":3,"n_rows":64,"n_cols":15,"rows_kept":64,"cut":false,"hidden":false,"merged":[[4,2,4,7],[7,2,7,3],[8,2,8,3],[9,2,9,3],[10,2,10,3],[11,2,11,3],[12,2,12,3],[13,2,13,3],[0,1,0,14],[1,12,1,14],[2,12,2,14],[6,8,6,9],[7,5,7,6],[8,5,8,6],[9,5,9,6],[10,5,10,6],[11,5,11,6],[7,11,7,12],[8,11,8,12],[12,13,12,14],[10,11,10,12],[12,11,12,12],[13,11,13,12],[12,4,12,6],[39,6,40,6],[31,3,32,3],[33,3,34,3],[29,4,30,4],[31,2,32,2],[14,5,14,6],[19,1,19,14],[21,2,22,2],[23,2,24,2],[23,5,24,5],[14,11,14,12],[17,7,18,7],[17,8,18,8],[21,1,22,1],[23,1,24,1],[21,12,22,12],[37,6,38,6],[21,6,22,6],[23,6,24,6],[25,6,26,6],[29,6,30,6],[21,4,22,4],[23,4,24,4],[14,2,14,3],[31,11,32,11],[41,6,42,6],[17,11,18,11],[17,12,18,12],[35,1,35,14],[17,9,18,9],[17,10,18,10],[29,14,30,14],[31,13,32,13],[31,14,32,14],[25,8,26,8],[25,9,26,9],[25,10,26,10],[25,11,26,11],[25,13,26,13],[29,13,30,13],[17,13,18,13],[25,14,26,14],[17,14,18,14],[17,1,17,3],[17,4,18,4],[17,5,18,5],[17,6,18,6],[29,5,30,5],[29,1,30,1],[29,11,30,11],[37,3,38,3],[39,3,40,3],[41,3,42,3],[31,12,32,12],[33,12,34,12],[37,12,38,12],[39,12,40,12],[31,5,32,5],[37,5,38,5],[39,5,40,5],[33,4,34,4],[41,5,42,5],[41,4,42,4],[37,4,38,4],[39,4,40,4],[33,5,34,5],[31,6,32,6],[33,6,34,6],[31,4,32,4],[31,8,32,8],[31,9,32,9],[31,10,32,10],[23,14,24,14],[31,1,32,1],[21,3,22,3],[23,3,24,3],[25,3,26,3],[29,3,30,3],[29,12,30,12],[25,4,26,4],[9,11,9,12],[11,11,11,12],[25,1,26,1],[23,12,24,12],[25,12,26,12],[21,5,22,5],[21,9,22,9],[21,10,22,10],[21,11,22,11],[29,8,30,8],[29,9,30,9],[29,10,30,10],[25,5,26,5],[27,1,27,14],[25,2,26,2],[29,2,30,2],[13,5,13,6],[41,11,42,11],[41,13,42,13],[37,14,38,14],[39,8,40,8],[39,9,40,9],[39,10,40,10],[39,11,40,11],[39,13,40,13],[39,14,40,14],[37,8,38,8],[37,13,38,13],[37,9,38,9],[37,10,38,10],[37,11,38,11],[41,12,42,12],[21,13,22,13],[21,14,22,14],[21,8,22,8],[23,8,24,8],[23,9,24,9],[23,10,24,10],[23,11,24,11],[23,13,24,13],[43,1,43,14],[45,1,45,14],[50,1,50,14],[51,1,51,14],[52,12,52,14],[52,1,52,7],[33,2,34,2],[37,2,38,2],[39,2,40,2],[41,2,42,2],[41,1,42,1],[33,1,34,1],[37,1,38,1],[39,1,40,1],[41,14,42,14],[33,8,34,8],[33,9,34,9],[33,10,34,10],[33,11,34,11],[33,13,34,13],[33,14,34,14],[41,8,42,8],[41,9,42,9],[41,10,42,10]]}
[]
[null,null,"KERROSTALOJEN KORJAUSTOIMINNAN ENERGIATALOUDELLISTEN VALINTOJEN VERTAILU"]
[null,null,null,null,null,"Rakenne- ja LVIS-teknisten energiansäästötoimenpiteiden valinta rakenne- ja laitetasolla"]
[]
[null,null,"Energiansäästötoimenpiteiden valitseminen"]
[]
[null,null,null,null,null,null,null,null,"PAREMPIIN ET-LUOKKIIN PÄÄSEMIKSEKSI\nTARVITTAVA ENERGIANSÄÄSTÖ\nENNEN VALINTOJA"]
[null,null,"Laskentakorko",null,{"$f":"Lähtötiedot!K7","v":0.05},null,null,null,"ET-LUOKKA","TARVITTAVA\nENERGIANSÄÄSTÖ\n[MWh]",null,"Bruttopinta-ala\n[brm2]",null,{"$f":"Lähtötiedot!G14","v":7236},"m2"]
[null,null,"Bruttopinta-ala\n[brm2]",null,{"$f":"Lähtötiedot!K8","v":5468},"m2",null,null,"A",{"$f":"IF(E12<=100,\"NYKYINEN ET-LUOKKA\",((100-$E$12)*$N$8)/1000)","v":-836.61287490855887},null,"Asuntopinta-ala\n[hum2]",null,{"$f":"Lähtötiedot!G15","v":4645},"m2"]
[null,null,"Asuntopinta-ala\n[hum2]",null,{"$f":"Lähtötiedot!K9","v":3284},"m2",null,null,"B",{"$f":"IF(AND($E$12>=101,$E$12<=120),\"NYKYINEN ET-LUOKKA\",IF($E$12>120,(((120-$E$12)*$N$8)/1000),\"\"))","v":-691.89287490855895},null,"Valintojen kokonaiskustannukset\n(hum2)",null,{"$f":"IF(I53=\"\",\"\",I53)","v":1142444},"€"]
[null,null,"Normeerattu\nenergiankulutus\nennen korjausta",null,{"$f":"Lähtötiedot!K10","v":1179},"MWh",null,null,"C",{"$f":"IF(AND($E$12>=121,$E$12<=140),\"NYKYINEN ET-LUOKKA\",IF($E$12>140,(((140-$E$12)*$N$8)/1000),\"\"))","v":-547.17287490855892},null,"Normeerattu\nenergiankulutus\nvalintojen jälkeen",null,{"$f":"((E12*Lähtötiedot!G14)/1000)+(J53+K53)","v":978.81287490855891},"MWh"]
[null,null,"ET-luku ennen korjausta",null,{"$f":"IF(E11=\"\",\"\",(E11*1000)/E9)","v":215.61814191660571},"kWh/brm2/vuosi",null,null,"D",{"$f":"IF(AND($E$12>=141,$E$12<=180),\"NYKYINEN ET-LUOKKA\",IF($E$12>180,(((180-$E$12)*$N$8)/1000),\"\"))","v":-257.73287490855893},null,"ET-luku\nvalintojen jälkeen",null,{"$f":"IF(N11=\"\",\"\",(N11*1000)/N8)","v":135.26988321013803},"kWh/brm2/a"]
[null,null,"ET-luokka\nennen korjausta",null,{"$f":"IF(E12=\"\",\"\",IF(E12<=100,\"A\",IF(E12<=120,\"B\",IF(E12<=140,\"C\",IF(E12<=180,\"D\",IF(E12<=230,\"E\",IF(E12<=280,\"F\",\"G\")))))))","v":"E"},null,null,null,"E",{"$f":"IF(AND($E$12>=181,$E$12<=230),\"NYKYINEN ET-LUOKKA\",IF($E$12>230,(((230-$E$12)*$N$8)/1000),\"\"))","v":"NYKYINEN ET-LUOKKA"},null,"ET-luokka\nvalintojen jälkeen",null,{"$f":"IF(N12=\"\",\"\",IF(N12<=100,\"A\",IF(N12<=120,\"B\",IF(N12<=140,\"C\",IF(N12<=180,\"D\",IF(N12<=230,\"E\",IF(N12<=280,\"F\",\"G\")))))))","v":"C"}]
[null,null,"Lämmitysenergian\nhinta",null,{"$f":"Lähtötiedot!K13","v":50},"€/MWh",null,null,"F",{"$f":"IF(AND($E$12>=231,$E$12<=280),\"NYKYINEN ET-LUOKKA\",IF($E$12>280,(((280-$E$12)*$N$8)/1000),\"\"))","v":""},null,"Kokonaisenergiankulutuksen\nmuutos\nhinta",null,{"$f":"IF(AND(J53=\"\",K53=\"\"),\"\",J53+K53)","v":-581.4},"MWh/a"]
[null,null,"Sähköenergian\nhinta",null,{"$f":"Lähtötiedot!K14","v":70},"€/MWh",null,null,"G",{"$f":"IF($E$12>=281,\"NYKYINEN ET-LUOKKA\",\"\")","v":""},null,"Kustannusten\nvuosimuutos",null,{"$f":"IF(L53=\"\",\"\",L53)","v":-36195},"€/a"]
[]
[]
[null,"VALINTAJÄRJESTYS",null,null,"VALINTA","VALINNAN\nSISÄINEN\nKORKO [%]","TOIMEN-\nPITEEN\nTUNNUS","HARKITTAVA\nENERGIANSÄÄSTÖTOIMENPIDE","RAKENNUS-\nKUSTANNUSERO\n[€]","LÄMMITYSENERGIAN \nKULUTUKSEN\nMUUTOS [MWh/a]","SÄHKÖENERGIAN\nKULUTUKSEN\nMUUTOS [MWh/a]","KUSTANNUSTEN VUOSIMUUTOS\n[€/a]","PITOAIKA\n[a]","TAKAISIN-\nMAKSUAIKA\n[a]","TAKAISIN-\nMAKSU-\nKERRAT\nPITOAIKANA"]
[null,"TAKAISIN-\nMAKSU-\nAJAN\nMUKAAN","TAKAISIN-\nMAKSU-\nKERTOJEN\nMUKAAN","SISÄISEN\nKORON\nMUKAAN"]
[null,{"$f":"Lähtötiedot!C18","v":"YLÄPOHJA"}]
[null,null,null,null,null,{"$f":"IF($L$21>=0,\"\",RATE($M$21,$L$21,$I$21,,,0.9))","v":-1.7584105525253319E-2},{"$f":"Lähtötiedot!$C$20","v":"PYP"},{"$f":"IF(Lähtötiedot!$D$20=\"\",\"\",Lähtötiedot!$D$20)","v":"ERISTYS 150 + 50 mm"},{"$f":"IF(Lähtötiedot!$E$20=\"\",\"\",Lähtötiedot!$E$20)","v":102828},{"$f":"IF(Lähtötiedot!$F$20=\"\",\"\",Lähtötiedot!$F$20)","v":-35},{"$f":"IF(Lähtötiedot!$G$20=\"\",\"\",Lähtötiedot!$G$20)","v":0},{"$f":"IF(AND($J$21=\"\",$K$21=\"\",Lähtötiedot!$H$20=\"\"),\"\",($E$14*$J$21+$E$15*$K$21+Lähtötiedot!$H$20))","v":-1750},{"$f":"IF(Lähtötiedot!$I$20=\"\",\"\",Lähtötiedot!$I$20)","v":40},{"$f":"IF(AND($I$21=\"\",$L$21=\"\"),\"\",$I$21/-$L$21)","v":58.758857142857146},{"$f":"IF($N$21=\"\",\"\",$M$21/$N$21)","v":0.6807484342786011}]
[null,{"$f":"IF(OR($N$22=\"\",$N$22<0),\"\",RANK(Temp!$A$3,Temp!$A$3:$A$15,1))","v":5},{"$f":"IF(OR($O$22=\"\",$O$22<0),\"\",RANK(Temp!$B$3,Temp!$B$3:$B$15,0))","v":3},{"$f":"IF($F$22>0,RANK(Temp!$C$3,Temp!$C$3:$C$15,0),\"\")","v":4},null,{"$f":"IF($L$22=\"\",0,RATE($M$22,$L$22,$I$22,,,0.9))","v":0.11255324685591461},{"$f":"Lähtötiedot!$C$21","v":"YP1"},{"$f":"IF(Lähtötiedot!$D$21=\"\",\"\",Lähtötiedot!$D$21)","v":"ERISTYS 200 + 50 mm"},{"$f":"IF(Lähtötiedot!$E$21=\"\",\"\",Lähtötiedot!$E$21-Lähtötiedot!$E$20)","v":2628},{"$f":"IF(Lähtötiedot!$F$21=\"\",\"\",Lähtötiedot!$F$21)","v":-6},{"$f":"IF(Lähtötiedot!$G$21=\"\",\"\",Lähtötiedot!$G$21)","v":0},{"$f":"IF(AND($J$22=\"\",$K$22=\"\",Lähtötiedot!$H$21=\"\"),\"\",($E$14*$J$22+$E$15*$K$22+Lähtötiedot!$H$21))","v":-300},{"$f":"IF(Lähtötiedot!$I$21=\"\",\"\",Lähtötiedot!$I$21)","v":40},{"$f":"IF(AND($I$22=\"\",$L$22=\"\"),\"\",$I$22/-$L$22)","v":8.76},{"$f":"IF($N$22=\"\",\"\",$M$22/$N$22)","v":4.5662100456621006}]
[null,null,null,null,null,null,null,{"$f":"IF(Lähtötiedot!$D$22=\"\",\"\",Lähtötiedot!$D$22)","v":"ERISTEMUUTOS 200 mm → 250 mm"}]
[null,{"$f":"IF(OR($N$24=\"\",$N$24<0),\"\",RANK(Temp!$A$4,Temp!$A$3:$A$15,1))","v":8},{"$f":"IF(OR($O$24=\"\",$O$24<0),\"\",RANK(Temp!$B$4,Temp!$B$3:$B$15,0))","v":8},{"$f":"IF($F$24>0,RANK(Temp!$C$4,Temp!$C$3:$C$15,0),\"\")","v":8},null,{"$f":"IF($L$24=\"\",0,RATE($M$24,$L$24,$I$24,,,0.9))","v":2.0663177460476936E-2},{"$f":"Lähtötiedot!$C$23","v":"YP2"},{"$f":"IF(Lähtötiedot!$D$23=\"\",\"\",Lähtötiedot!$D$23)","v":"ERISTYS 250 + 50 mm"},{"$f":"IF(Lähtötiedot!$E$23=\"\",\"\",Lähtötiedot!$E$23-Lähtötiedot!$E$21)","v":5408},{"$f":"IF(Lähtötiedot!$F$23=\"\",\"\",Lähtötiedot!$F$23)","v":-4},{"$f":"IF(Lähtötiedot!$G$23=\"\",\"\",Lähtötiedot!$G$23)","v":0},{"$f":"IF(AND($J$24=\"\",$K$24=\"\",Lähtötiedot!$H$23=\"\"),\"\",($E$14*$J$24+$E$15*$K$24+Lähtötiedot!$H$23))","v":-200},{"$f":"IF(Lähtötiedot!$I$23=\"\",\"\",Lähtötiedot!$I$23)","v":40},{"$f":"IF(AND($I$24=\"\",$L$24=\"\"),\"\",$I$24/-$L$24)","v":27.04},{"$f":"IF($N$24=\"\",\"\",$M$24/$N$24)","v":1.4792899408284024}]
[null,null,null,null,null,null,null,{"$f":"IF(Lähtötiedot!$D$24=\"\",\"\",Lähtötiedot!$D$24)","v":"ERISTEMUUTOS 250 mm → 300 mm"}]
[null,{"$f":"IF(OR($N$26=\"\",$N$26<0),\"\",RANK(Temp!$A$5,Temp!$A$3:$A$15,1))","v":""},{"$f":"IF(OR($O$26=\"\",$O$26<0),\"\",RANK(Temp!$B$5,Temp!$B$3:$B$15,0))","v":""},{"$f":"IF($F$26>0,RANK(Temp!$C$5,Temp!$C$3:$C$15,0),\"\")","v":""},null,{"$f":"IF($L$26=\"\",0,RATE($M$26,$L$26,$I$26,,,0.9))","v":0},{"$f":"Lähtötiedot!$C$25","v":"YP3"},{"$f":"IF(Lähtötiedot!$D$25=\"\",\"\",Lähtötiedot!$D$25)","v":""},{"$f":"IF(Lähtötiedot!$E$25=\"\",\"\",Lähtötiedot!$E$25-Lähtötiedot!$E$23)","v":""},{"$f":"IF(Lähtötiedot!$F$25=\"\",\"\",Lähtötiedot!$F$25)","v":""},{"$f":"IF(Lähtötiedot!$G$25=\"\",\"\",Lähtötiedot!$G$25)","v":""},{"$f":"IF(AND($J$26=\"\",$K$26=\"\",Lähtötiedot!$H$25=\"\"),\"\",($E$14*$J$26+$E$15*$K$26+Lähtötiedot!$H$25))","v":""},{"$f":"IF(Lähtötiedot!$I$25=\"\",\"\",Lähtötiedot!$I$25)","v":""},{"$f":"IF(AND($I$26=\"\",$L$26=\"\"),\"\",$I$26/-$L$26)","v":""},{"$f":"IF($N$26=\"\",\"\",$M$26/$N$26)","v":""}]
[null,null,null,null,null,null,null,{"$f":"IF(Lähtötiedot!$D$26=\"\",\"\",Lähtötiedot!$D$26)","v":""}]
[null,{"$f":"Lähtötiedot!C29","v":"ULKOSEINÄ"}]
[null,null,null,null,null,{"$f":"IF($L$29>0,\"\",RATE($M$29,$L$29,$I$29,,,0.9))","v":-4.29160798598699E-2},{"$f":"Lähtötiedot!$C$31","v":"PUS"},{"$f":"IF(Lähtötiedot!$D$31=\"\",\"\",Lähtötiedot!$D$31)","v":"LISÄERISTYS 80 mm"},{"$f":"IF(Lähtötiedot!$E$31=\"\",\"\",Lähtötiedot!$E$31)","v":484600},{"$f":"IF(Lähtötiedot!$F$31=\"\",\"\",Lähtötiedot!$F$31)","v":-87},{"$f":"IF(Lähtötiedot!$G$31=\"\",\"\",Lähtötiedot!$G$31)","v":0},{"$f":"IF(AND($J$29=\"\",$K$29=\"\",Lähtötiedot!$H$31=\"\"),\"\",($E$14*$J$29+$E$15*$K$29+Lähtötiedot!$H$31))","v":-4350},{"$f":"IF(Lähtötiedot!$I$31=\"\",\"\",Lähtötiedot!$I$31)","v":40},{"$f":"IF(AND($I$29=\"\",$L$29=\"\"),\"\",$I$29/-$L$29)","v":111.40229885057471},{"$f":"IF($N$29=\"\",\"\",$M$29/$N$29)","v":0.35905901774659515}]
[null,{"$f":"IF(OR($N$30=\"\",$N$30<0),\"\",RANK(Temp!$A$6,Temp!$A$3:$A$15,1))","v":6},{"$f":"IF($O$30=\"\",\"\",RANK(Temp!$B$6,Temp!$B$3:$B$15,0))","v":5},{"$f":"IF($F$30>0,RANK(Temp!$C$6,Temp!$C$3:$C$15,0),\"\")","v":6},null,{"$f":"IF($L$30=\"\",0,RATE($M$30,$L$30,$I$30,,,0.9))","v":8.4838772415913144E-2},{"$f":"Lähtötiedot!$C$32","v":"US1"},{"$f":"IF(Lähtötiedot!$D$32=\"\",\"\",Lähtötiedot!$D$32)","v":"LISÄERISTYS 100 mm"},{"$f":"IF(Lähtötiedot!$E$32=\"\",\"\",Lähtötiedot!$E$32-Lähtötiedot!$E$31)","v":5100},{"$f":"IF(Lähtötiedot!$F$32=\"\",\"\",Lähtötiedot!$F$32)","v":-9},{"$f":"IF(Lähtötiedot!$G$32=\"\",\"\",Lähtötiedot!$G$32)","v":0},{"$f":"IF(AND($J$30=\"\",$K$30=\"\",Lähtötiedot!$H$32=\"\"),\"\",($E$14*$J$30+$E$15*$K$30+Lähtötiedot!$H$32))","v":-450},{"$f":"IF(Lähtötiedot!$I$32=\"\",\"\",Lähtötiedot!$I$32)","v":40},{"$f":"IF(AND($I$30=\"\",$L$30=\"\"),\"\",$I$30/-$L$30)","v":11.333333333333334},{"$f":"IF($N$30=\"\",\"\",$M$30/$N$30)","v":3.5294117647058822}]
[null,null,null,null,null,null,null,{"$f":"IF(Lähtötiedot!$D$33=\"\",\"\",Lähtötiedot!$D$33)","v":"ERISTEMUUTOS 80 mm → 100 mm"}]
[null,{"$f":"IF(OR($N$32=\"\",$N$32<0),\"\",RANK(Temp!$A$7,Temp!$A$3:$A$15,1))","v":9},{"$f":"IF(OR($O$32=\"\",$O$32<0),\"\",RANK(Temp!$B$7,Temp!$B$3:$B$15,0))","v":9},{"$f":"IF($F$32>0,RANK(Temp!$C$7,Temp!$C$3:$C$15,0),\"\")","v":""},null,{"$f":"IF($L$32=\"\",0,RATE($M$32,$L$32,$I$32,,,0.9))","v":-1.6494452522928145E-2},{"$f":"Lähtötiedot!$C$34","v":"US2"},{"$f":"IF(Lähtötiedot!$D$34=\"\",\"\",Lähtötiedot!$D$34)","v":"LISÄERISTYS 150 mm"},{"$f":"IF(Lähtötiedot!$E$34=\"\",\"\",Lähtötiedot!$E$34-Lähtötiedot!$E$32)","v":48700},{"$f":"IF(Lähtötiedot!$F$34=\"\",\"\",Lähtötiedot!$F$34)","v":-17},{"$f":"IF(Lähtötiedot!$G$34=\"\",\"\",Lähtötiedot!$G$34)","v":0},{"$f":"IF(AND($J$32=\"\",$K$32=\"\",Lähtötiedot!$H$34=\"\"),\"\",($E$14*$J$32+$E$15*$K$32+Lähtötiedot!$H$34))","v":-850},{"$f":"IF(Lähtötiedot!$I$34=\"\",\"\",Lähtötiedot!$I$34)","v":40},{"$f":"IF(AND($I$32=\"\",$L$32=\"\"),\"\",$I$32/-$L$32)","v":57.294117647058826},{"$f":"IF($N$32=\"\",\"\",$M$32/$N$32)","v":0.69815195071868585}]
[null,null,null,null,null,null,null,{"$f":"IF(Lähtötiedot!$D$35=\"\",\"\",Lähtötiedot!$D$35)","v":"ERISTEMUUTOS 100 mm → 150 mm"}]
[null,{"$f":"IF(OR($N$34=\"\",$N$34<0),\"\",RANK(Temp!$A$8,Temp!$A$3:$A$15,1))","v":""},{"$f":"IF(OR($O$34=\"\",$O$34<0),\"\",RANK(Temp!$B$8,Temp!$B$3:$B$15,0))","v":""},{"$f":"IF($F$34>0,RANK(Temp!$C$8,Temp!$C$3:$C$15,0),\"\")","v":""},null,{"$f":"IF($L$34=\"\",0,RATE($M$34,$L$34,$I$34,,,0.9))","v":0},{"$f":"Lähtötiedot!$C$36","v":"US3"},{"$f":"IF(Lähtötiedot!$D$36=\"\",\"\",Lähtötiedot!$D$36)","v":""},{"$f":"IF(Lähtötiedot!$E$36=\"\",\"\",Lähtötiedot!$E$36-Lähtötiedot!$E$34)","v":""},{"$f":"IF(Lähtötiedot!$F$36=\"\",\"\",Lähtötiedot!$F$36)","v":""},{"$f":"IF(Lähtötiedot!$G$36=\"\",\"\",Lähtötiedot!$G$36)","v":""},{"$f":"IF(AND($J$34=\"\",$K$34=\"\",Lähtötiedot!$H$36=\"\"),\"\",($E$14*$J$34+$E$15*$K$34+Lähtötiedot!$H$36))","v":""},{"$f":"IF(Lähtötiedot!$I$36=\"\",\"\",Lähtötiedot!$I$36)","v":""},{"$f":"IF(AND($I$34=\"\",$L$34=\"\"),\"\",$I$34/-$L$34)","v":""},{"$f":"IF($N$34=\"\",\"\",$M$34/$N$34)","v":""}]
[null,null,null,null,null,null,null,{"$f":"IF(Lähtötiedot!$D$37=\"\",\"\",Lähtötiedot!$D$37)","v":""}]
[null,{"$f":"Lähtötiedot!C40","v":"IKKUNAT"}]
[null,null,null,null,null,{"$f":"IF($L$37>=0,\"\",RATE($M$37,$L$37,$I$37,,,0.9))","v":-4.7164545683211177E-2},{"$f":"Lähtötiedot!$C$42","v":"PIKK"},{"$f":"IF(Lähtötiedot!$D$42=\"\",\"\",Lähtötiedot!$D$42)","v":"UUSI IKKUNA U=1,8"},{"$f":"IF(Lähtötiedot!$E$42=\"\",\"\",Lähtötiedot!$E$42)","v":359480},{"$f":"IF(Lähtötiedot!$F$42=\"\",\"\",Lähtötiedot!$F$42)","v":-104},{"$f":"IF(Lähtötiedot!$G$42=\"\",\"\",Lähtötiedot!$G$42)","v":0},{"$f":"IF(AND($J$37=\"\",$K$37=\"\",Lähtötiedot!$H$42=\"\"),\"\",($E$14*$J$37+$E$15*$K$37+Lähtötiedot!$H$42))","v":-5200},{"$f":"IF(Lähtötiedot!$I$42=\"\",\"\",Lähtötiedot!$I$42)","v":30},{"$f":"IF(AND($I$37=\"\",$L$37=\"\"),\"\",$I$37/-$L$37)","v":69.130769230769232},{"$f":"IF($N$37=\"\",\"\",$M$37/$N$37)","v":0.43396016468231891}]
[null,{"$f":"IF(OR($N$38=\"\",$N$38<0),\"\",RANK(Temp!$A$9,Temp!$A$3:$A$15,1))","v":3},{"$f":"IF(OR($O$38=\"\",$O$38<0),\"\",RANK(Temp!$B$9,Temp!$B$3:$B$15,0))","v":2},{"$f":"IF($F$38>0,RANK(Temp!$C$9,Temp!$C$3:$C$15,0),\"\")","v":3},null,{"$f":"IF($L$38=\"\",0,RATE($M$38,$L$38,$I$38,,,0.9))","v":0.18220341625823658},{"$f":"Lähtötiedot!$C$43","v":"IKK1"},{"$f":"IF(Lähtötiedot!$D$43=\"\",\"\",Lähtötiedot!$D$43)","v":"UUSI IKKUNA U=1,4"},{"$f":"IF(Lähtötiedot!$E$43=\"\",\"\",Lähtötiedot!$E$43-Lähtötiedot!$E$42)","v":12540},{"$f":"IF(Lähtötiedot!$F$43=\"\",\"\",Lähtötiedot!$F$43)","v":-46},{"$f":"IF(Lähtötiedot!$G$43=\"\",\"\",Lähtötiedot!$G$43)","v":0},{"$f":"IF(AND($J$38=\"\",$K$38=\"\",Lähtötiedot!$H$43=\"\"),\"\",($E$14*$J$38+$E$15*$K$38+Lähtötiedot!$H$43))","v":-2300},{"$f":"IF(Lähtötiedot!$I$43=\"\",\"\",Lähtötiedot!$I$43)","v":30},{"$f":"IF(AND($I$38=\"\",$L$38=\"\"),\"\",$I$38/-$L$38)","v":5.4521739130434783},{"$f":"IF($N$38=\"\",\"\",$M$38/$N$38)","v":5.5023923444976077}]
[null,null,null,null,null,null,null,{"$f":"IF(Lähtötiedot!$D$44=\"\",\"\",Lähtötiedot!$D$44)","v":"U = 1,8 → U = 1,4 "}]
[null,{"$f":"IF(OR($N$40=\"\",$N$40<0),\"\",RANK(Temp!$A$10,Temp!$A$3:$A$15,1))","v":2},{"$f":"IF(OR($O$40=\"\",$O$40<0),\"\",RANK(Temp!$B$10,Temp!$B$3:$B$15,0))","v":1},{"$f":"IF($F$40>0,RANK(Temp!$C$10,Temp!$C$3:$C$15,0),\"\")","v":2},null,{"$f":"IF($L$40=\"\",0,RATE($M$40,$L$40,$I$40,,,0.9))","v":0.20628414639059262},{"$f":"Lähtötiedot!$C$45","v":"IKK2"},{"$f":"IF(Lähtötiedot!$D$45=\"\",\"\",Lähtötiedot!$D$45)","v":"UUSI IKKUNA U=1,0"},{"$f":"IF(Lähtötiedot!$E$45=\"\",\"\",Lähtötiedot!$E$45-Lähtötiedot!$E$43)","v":10868},{"$f":"IF(Lähtötiedot!$F$45=\"\",\"\",Lähtötiedot!$F$45)","v":-45},{"$f":"IF(Lähtötiedot!$G$45=\"\",\"\",Lähtötiedot!$G$45)","v":0},{"$f":"IF(AND($J$40=\"\",$K$40=\"\",Lähtötiedot!$H$45=\"\"),\"\",($E$14*$J$40+$E$15*$K$40+Lähtötiedot!$H$45))","v":-2250},{"$f":"IF(Lähtötiedot!$I$45=\"\",\"\",Lähtötiedot!$I$45)","v":30},{"$f":"IF(AND($I$40=\"\",$L$40=\"\"),\"\",$I$40/-$L$40)","v":4.830222222222222},{"$f":"IF($N$40=\"\",\"\",$M$40/$N$40)","v":6.2108943687891056}]
[null,null,null,null,null,null,null,{"$f":"IF(Lähtötiedot!$D$46=\"\",\"\",Lähtötiedot!$D$46)","v":"U = 1,4 → U = 1,0 "}]
[null,{"$f":"IF(OR($N$42=\"\",$N$42<0),\"\",RANK(Temp!$A$11,Temp!$A$3:$A$15,1))","v":""},{"$f":"IF(OR($O$42=\"\",$O$42<0),\"\",RANK(Temp!$B$11,Temp!$B$3:$B$15,0))","v":""},{"$f":"IF($F$42>0,RANK(Temp!$C$11,Temp!$C$3:$C$15,0),\"\")","v":""},null,{"$f":"IF($L$42=\"\",0,RATE($M$42,$L$42,$I$42,,,0.9))","v":0},{"$f":"Lähtötiedot!$C$47","v":"IKK3"},{"$f":"IF(Lähtötiedot!$D$47=\"\",\"\",Lähtötiedot!$D$47)","v":""},{"$f":"IF(Lähtötiedot!$E$47=\"\",\"\",Lähtötiedot!$E$47-Lähtötiedot!$E$45)","v":""},{"$f":"IF(Lähtötiedot!$F$47=\"\",\"\",Lähtötiedot!$F$47)","v":""},{"$f":"IF(Lähtötiedot!$G$47=\"\",\"\",Lähtötiedot!$G$47)","v":""},{"$f":"IF(AND($J$42=\"\",$K$42=\"\",Lähtötiedot!$H$47=\"\"),\"\",($E$14*$J$42+$E$15*$K$42+Lähtötiedot!$H$47))","v":""},{"$f":"IF(Lähtötiedot!$I$47=\"\",\"\",Lähtötiedot!$I$47)","v":""},{"$f":"IF(AND($I$42=\"\",$L$42=\"\"),\"\",$I$42/-$L$42)","v":""},{"$f":"IF($N$42=\"\",\"\",$M$42/$N$42)","v":""}]
[null,null,null,null,null,null,null,{"$f":"IF(Lähtötiedot!$D$48=\"\",\"\",Lähtötiedot!$D$48)","v":""}]
[null,{"$f":"Lähtötiedot!C51","v":"VEDENKULUTUKSEN MITTAUS"}]
[null,{"$f":"IF(OR($N$45=\"\",$N$45<0),\"\",RANK(Temp!$A$12,Temp!$A$3:$A$15,1))","v":1},{"$f":"IF(OR($O$45=\"\",$O$45<0),\"\",RANK(Temp!$B$12,Temp!$B$3:$B$15,0))","v":4},{"$f":"IF($F$45>0,RANK(Temp!$C$12,Temp!$C$3:$C$15,0),\"\")","v":1},null,{"$f":"IF($L$45=\"\",0,RATE($M$45,$L$45,$I$45,,,0.9))","v":0.23089228481829616},{"$f":"Lähtötiedot!$C$53","v":"VKM"},{"$f":"IF(Lähtötiedot!$D$53=\"\",\"\",Lähtötiedot!$D$53)","v":"ASUNTOKOHTAINEN MITTAUS"},{"$f":"IF(Lähtötiedot!$E$53=\"\",\"\",Lähtötiedot!$E$53)","v":46800},{"$f":"IF(Lähtötiedot!$F$53=\"\",\"\",Lähtötiedot!$F$53)","v":-29},{"$f":"IF(Lähtötiedot!$G$53=\"\",\"\",Lähtötiedot!$G$53)","v":0},{"$f":"IF(AND($J$45=\"\",$K$45=\"\",Lähtötiedot!$H$53=\"\"),\"\",($E$14*$J$45+$E$15*$K$45+Lähtötiedot!$H$53))","v":-11307},{"$f":"IF(Lähtötiedot!$I$53=\"\",\"\",Lähtötiedot!$I$53)","v":15},{"$f":"IF(AND($I$45=\"\",$L$45=\"\"),\"\",$I$45/-$L$45)","v":4.1390289201379673},{"$f":"IF($N$45=\"\",\"\",$M$45/$N$45)","v":3.6240384615384618}]
[null,{"$f":"Lähtötiedot!C56","v":"ILMANVAIHTOJÄRJESTELMÄ"}]
[null,null,null,null,null,{"$f":"IF($L$47>=0,\"\",RATE($M$47,$L$47,$I$47))","v":""},{"$f":"Lähtötiedot!$C$58","v":"PIV"},{"$f":"Lähtötiedot!$D$58","v":"VANHAN KUNNOSTUS"},{"$f":"IF(Lähtötiedot!$E$58=\"\",\"\",Lähtötiedot!$E$58)","v":39200},{"$f":"IF(Lähtötiedot!$F$58=\"\",\"\",Lähtötiedot!$F$58)","v":0},{"$f":"IF(Lähtötiedot!$G$58=\"\",\"\",Lähtötiedot!$G$58)","v":0},{"$f":"IF(AND($J$47=\"\",$K$47=\"\",Lähtötiedot!$H$58=\"\"),\"\",($E$14*$J$47+$E$15*$K$47+Lähtötiedot!$H$58))","v":784},{"$f":"IF(Lähtötiedot!$I$58=\"\",\"\",Lähtötiedot!$I$58)","v":30},{"$f":"IF(AND($I$47=\"\",$L$47=\"\"),\"\",$I$47/-$L$47)","v":-50},{"$f":"IF($N$47=\"\",\"\",$M$47/$N$47)","v":-0.6}]
[null,{"$f":"IF(OR($N$48=\"\",$N$48<0),\"\",RANK(Temp!$A$13,Temp!$A$3:$A$15,1))","v":4},{"$f":"IF(OR($O$48=\"\",$O$48<0),\"\",RANK(Temp!$B$13,Temp!$B$3:$B$15,0))","v":6},{"$f":"IF($F$48>0,RANK(Temp!$C$13,Temp!$C$3:$C$15,0),\"\")","v":5},null,{"$f":"IF($L$48=\"\",0,RATE($M$48,$L$48,$I$48,,,0.9))","v":0.11076264665508979},{"$f":"Lähtötiedot!$C$59","v":"IV1"},{"$f":"IF(Lähtötiedot!$D$59=\"\",\"\",Lähtötiedot!$D$59)","v":"KESKITETTY KONEELLINEN TULO- JA\n      POISTOILMANVAIHTO LTO 50 %"},{"$f":"IF(Lähtötiedot!$E$59=\"\",\"\",Lähtötiedot!$E$59-Lähtötiedot!$E$58)","v":78400},{"$f":"IF(Lähtötiedot!$F$59=\"\",\"\",Lähtötiedot!$F$59)","v":-259},{"$f":"IF(Lähtötiedot!$G$59=\"\",\"\",Lähtötiedot!$G$59)","v":38.6},{"$f":"IF(AND($J$48=\"\",$K$48=\"\",Lähtötiedot!$H$59=\"\"),\"\",($E$14*$J$48+$E$15*$K$48+Lähtötiedot!$H$59))","v":-9072},{"$f":"IF(Lähtötiedot!$I$59=\"\",\"\",Lähtötiedot!$I$59)","v":30},{"$f":"IF(AND($I$48=\"\",$L$48=\"\"),\"\",$I$48/-$L$48)","v":8.6419753086419746},{"$f":"IF($N$48=\"\",\"\",$M$48/$N$48)","v":3.4714285714285715}]
[null,{"$f":"IF(OR($N$49=\"\",$N$49<0),\"\",RANK(Temp!$A$14,Temp!$A$3:$A$15,1))","v":7},{"$f":"IF(OR($O$49=\"\",$O$49<0),\"\",RANK(Temp!$B$14,Temp!$B$3:$B$15,0))","v":7},{"$f":"IF($F$49>0,RANK(Temp!$C$14,Temp!$C$3:$C$15,0),\"\")","v":7},null,{"$f":"IF($L$49=\"\",0,RATE($M$49,$L$49,$I$49,,,0.9))","v":7.4878886376319134E-2},{"$f":"Lähtötiedot!$C$60","v":"IV2"},{"$f":"IF(Lähtötiedot!$D$60=\"\",\"\",Lähtötiedot!$D$60)","v":"HAJAUTETTU KONEELLINEN TULO- JA\n      POISTOILMANVAIHTO LTO 50 %"},{"$f":"IF(Lähtötiedot!$E$60=\"\",\"\",Lähtötiedot!$E$60-Lähtötiedot!E58)","v":98000},{"$f":"IF(Lähtötiedot!$F$60=\"\",\"\",Lähtötiedot!$F$60)","v":-259},{"$f":"IF(Lähtötiedot!$G$60=\"\",\"\",Lähtötiedot!$G$60)","v":38.6},{"$f":"IF(AND($J$49=\"\",$K$49=\"\",Lähtötiedot!$H$60=\"\"),\"\",($E$14*$J$49+$E$15*$K$49+Lähtötiedot!$H$60))","v":-8288},{"$f":"IF(Lähtötiedot!$I$60=\"\",\"\",Lähtötiedot!$I$60)","v":30},{"$f":"IF(AND($I$49=\"\",$L$49=\"\"),\"\",$I$49/-$L$49)","v":11.824324324324325},{"$f":"IF($N$49=\"\",\"\",$M$49/$N$49)","v":2.5371428571428569}]
[null,{"$f":"IF(OR($N$50=\"\",$N$50<0),\"\",RANK(Temp!$A$15,Temp!$A$3:$A$15,1))","v":""},{"$f":"IF(OR($O$50=\"\",$O$50<0),\"\",RANK(Temp!$B$15,Temp!$B$3:$B$15,0))","v":""},{"$f":"IF(F50>0,RANK(Temp!$C$15,Temp!$C$3:$C$15,0),\"\")","v":""},null,{"$f":"IF($L$50=\"\",0,RATE($M$50,$L$50,$I$50,,,0.9))","v":0},{"$f":"Lähtötiedot!$C$61","v":"IV3"},{"$f":"IF(Lähtötiedot!$D$61=\"\",\"\",Lähtötiedot!$D$61)","v":""},{"$f":"IF(Lähtötiedot!$E$61=\"\",\"\",Lähtötiedot!$E$61)","v":""},{"$f":"IF(Lähtötiedot!$F$61=\"\",\"\",Lähtötiedot!$F$61)","v":""},{"$f":"IF(Lähtötiedot!$G$61=\"\",\"\",Lähtötiedot!$G$61)","v":""},{"$f":"IF(AND($J$50=\"\",$K$50=\"\",Lähtötiedot!$H$61=\"\"),\"\",($E$14*$J$50+$E$15*$K$50+Lähtötiedot!$H$61))","v":""},{"$f":"IF(Lähtötiedot!$I$61=\"\",\"\",Lähtötiedot!$I$61)","v":""},{"$f":"IF(AND($I$50=\"\",$L$50=\"\"),\"\",$I$50/-$L$50)","v":""},{"$f":"IF($N$50=\"\",\"\",$M$50/$N$50)","v":""}]
[]
[null,"VALINTOJEN VAIKUTUKSET YHTEENSÄ"]
[null,null,null,null,null,null,null,null,1142444,-620,38.6,-36195]
[]
[]
[]
[]
[null,"TEHDYT VALINNAT LISTATTUNA"]
[]
[null,{"$f":"IF(OR($N$22=\"\",$N$22<0),\"\",RANK(Temp!$A$3,Temp!$A$3:$A$15,1))","v":5},{"$f":"IF(OR($O$22=\"\",$O$22<0),\"\",RANK(Temp!$B$3,Temp!$B$3:$B$15,0))","v":3},{"$f":"IF($F$22>0,RANK(Temp!$C$3,Temp!$C$3:$C$15,0),\"\")","v":4},null,{"$f":"IF($L$22=\"\",0,RATE($M$22,$L$22,$I$22,,,0.9))","v":0.11255324685591461},{"$f":"Lähtötiedot!$C$21","v":"YP1"},{"$f":"IF(Lähtötiedot!$D$21=\"\",\"\",Lähtötiedot!$D$21)","v":"ERISTYS 200 + 50 mm"},{"$f":"IF(Lähtötiedot!$E$21=\"\",\"\",Lähtötiedot!$E$21-Lähtötiedot!$E$20)","v":2628},{"$f":"IF(Lähtötiedot!$F$21=\"\",\"\",Lähtötiedot!$F$21)","v":-6},{"$f":"IF(Lähtötiedot!$G$21=\"\",\"\",Lähtötiedot!$G$21)","v":0},{"$f":"IF(AND($J$22=\"\",$K$22=\"\",Lähtötiedot!$H$21=\"\"),\"\",($E$14*$J$22+$E$15*$K$22+Lähtötiedot!$H$21))","v":-300},{"$f":"IF(Lähtötiedot!$I$21=\"\",\"\",Lähtötiedot!$I$21)","v":40},{"$f":"IF(AND($I$22=\"\",$L$22=\"\"),\"\",$I$22/-$L$22)","v":8.76},{"$f":"IF($N$22=\"\",\"\",$M$22/$N$22)","v":4.5662100456621006}]
[null,{"$f":"IF(OR($N$30=\"\",$N$30<0),\"\",RANK(Temp!$A$6,Temp!$A$3:$A$15,1))","v":6},{"$f":"IF($O$30=\"\",\"\",RANK(Temp!$B$6,Temp!$B$3:$B$15,0))","v":5},{"$f":"IF($F$30>0,RANK(Temp!$C$6,Temp!$C$3:$C$15,0),\"\")","v":6},null,{"$f":"IF($L$30=\"\",0,RATE($M$30,$L$30,$I$30,,,0.9))","v":8.4838772415913144E-2},{"$f":"Lähtötiedot!$C$32","v":"US1"},{"$f":"IF(Lähtötiedot!$D$32=\"\",\"\",Lähtötiedot!$D$32)","v":"LISÄERISTYS 100 mm"},{"$f":"IF(Lähtötiedot!$E$32=\"\",\"\",Lähtötiedot!$E$32-Lähtötiedot!$E$31)","v":5100},{"$f":"IF(Lähtötiedot!$F$32=\"\",\"\",Lähtötiedot!$F$32)","v":-9},{"$f":"IF(Lähtötiedot!$G$32=\"\",\"\",Lähtötiedot!$G$32)","v":0},{"$f":"IF(AND($J$30=\"\",$K$30=\"\",Lähtötiedot!$H$32=\"\"),\"\",($E$14*$J$30+$E$15*$K$30+Lähtötiedot!$H$32))","v":-450},{"$f":"IF(Lähtötiedot!$I$32=\"\",\"\",Lähtötiedot!$I$32)","v":40},{"$f":"IF(AND($I$30=\"\",$L$30=\"\"),\"\",$I$30/-$L$30)","v":11.333333333333334},{"$f":"IF($N$30=\"\",\"\",$M$30/$N$30)","v":3.5294117647058822}]
[null,{"$f":"IF(OR($N$40=\"\",$N$40<0),\"\",RANK(Temp!$A$10,Temp!$A$3:$A$15,1))","v":2},{"$f":"IF(OR($O$40=\"\",$O$40<0),\"\",RANK(Temp!$B$10,Temp!$B$3:$B$15,0))","v":1},{"$f":"IF($F$40>0,RANK(Temp!$C$10,Temp!$C$3:$C$15,0),\"\")","v":2},null,{"$f":"IF($L$40=\"\",0,RATE($M$40,$L$40,$I$40,,,0.9))","v":0.20628414639059262},{"$f":"Lähtötiedot!$C$45","v":"IKK2"},{"$f":"IF(Lähtötiedot!$D$45=\"\",\"\",Lähtötiedot!$D$45)","v":"UUSI IKKUNA U=1,0"},{"$f":"IF(Lähtötiedot!$E$45=\"\",\"\",Lähtötiedot!$E$45-Lähtötiedot!$E$43)","v":10868},{"$f":"IF(Lähtötiedot!$F$45=\"\",\"\",Lähtötiedot!$F$45)","v":-45},{"$f":"IF(Lähtötiedot!$G$45=\"\",\"\",Lähtötiedot!$G$45)","v":0},{"$f":"IF(AND($J$40=\"\",$K$40=\"\",Lähtötiedot!$H$45=\"\"),\"\",($E$14*$J$40+$E$15*$K$40+Lähtötiedot!$H$45))","v":-2250},{"$f":"IF(Lähtötiedot!$I$45=\"\",\"\",Lähtötiedot!$I$45)","v":30},{"$f":"IF(AND($I$40=\"\",$L$40=\"\"),\"\",$I$40/-$L$40)","v":4.830222222222222},{"$f":"IF($N$40=\"\",\"\",$M$40/$N$40)","v":6.2108943687891056}]
[null,{"$f":"IF(OR($N$45=\"\",$N$45<0),\"\",RANK(Temp!$A$12,Temp!$A$3:$A$15,1))","v":1},{"$f":"IF(OR($O$45=\"\",$O$45<0),\"\",RANK(Temp!$B$12,Temp!$B$3:$B$15,0))","v":4},{"$f":"IF($F$45>0,RANK(Temp!$C$12,Temp!$C$3:$C$15,0),\"\")","v":1},null,{"$f":"IF($L$45=\"\",0,RATE($M$45,$L$45,$I$45,,,0.9))","v":0.23089228481829616},{"$f":"Lähtötiedot!$C$53","v":"VKM"},{"$f":"IF(Lähtötiedot!$D$53=\"\",\"\",Lähtötiedot!$D$53)","v":"ASUNTOKOHTAINEN MITTAUS"},{"$f":"IF(Lähtötiedot!$E$53=\"\",\"\",Lähtötiedot!$E$53)","v":46800},{"$f":"IF(Lähtötiedot!$F$53=\"\",\"\",Lähtötiedot!$F$53)","v":-29},{"$f":"IF(Lähtötiedot!$G$53=\"\",\"\",Lähtötiedot!$G$53)","v":0},{"$f":"IF(AND($J$45=\"\",$K$45=\"\",Lähtötiedot!$H$53=\"\"),\"\",($E$14*$J$45+$E$15*$K$45+Lähtötiedot!$H$53))","v":-11307},{"$f":"IF(Lähtötiedot!$I$53=\"\",\"\",Lähtötiedot!$I$53)","v":15},{"$f":"IF(AND($I$45=\"\",$L$45=\"\"),\"\",$I$45/-$L$45)","v":4.1390289201379673},{"$f":"IF($N$45=\"\",\"\",$M$45/$N$45)","v":3.6240384615384618}]
[null,{"$f":"IF(OR($N$48=\"\",$N$48<0),\"\",RANK(Temp!$A$13,Temp!$A$3:$A$15,1))","v":4},{"$f":"IF(OR($O$48=\"\",$O$48<0),\"\",RANK(Temp!$B$13,Temp!$B$3:$B$15,0))","v":6},{"$f":"IF($F$48>0,RANK(Temp!$C$13,Temp!$C$3:$C$15,0),\"\")","v":5},null,{"$f":"IF($L$48=\"\",0,RATE($M$48,$L$48,$I$48,,,0.9))","v":0.11076264665508979},{"$f":"Lähtötiedot!$C$59","v":"IV1"},{"$f":"IF(Lähtötiedot!$D$59=\"\",\"\",Lähtötiedot!$D$59)","v":"KESKITETTY KONEELLINEN TULO- JA\n      POISTOILMANVAIHTO LTO 50 %"},{"$f":"IF(Lähtötiedot!$E$59=\"\",\"\",Lähtötiedot!$E$59-Lähtötiedot!$E$58)","v":78400},{"$f":"IF(Lähtötiedot!$F$59=\"\",\"\",Lähtötiedot!$F$59)","v":-259},{"$f":"IF(Lähtötiedot!$G$59=\"\",\"\",Lähtötiedot!$G$59)","v":38.6},{"$f":"IF(AND($J$48=\"\",$K$48=\"\",Lähtötiedot!$H$59=\"\"),\"\",($E$14*$J$48+$E$15*$K$48+Lähtötiedot!$H$59))","v":-9072},{"$f":"IF(Lähtötiedot!$I$59=\"\",\"\",Lähtötiedot!$I$59)","v":30},{"$f":"IF(AND($I$48=\"\",$L$48=\"\"),\"\",$I$48/-$L$48)","v":8.6419753086419746},{"$f":"IF($N$48=\"\",\"\",$M$48/$N$48)","v":3.4714285714285715}]

{"sheet":"Yhteenveto valinnoista","index":4,"n_rows":68,"n_cols":14,"rows_kept":68,"cut":false,"hidden":false,"merged":[[2,12,2,13],[56,2,56,3],[57,2,57,3],[58,2,58,3],[27,1,27,13],[28,1,28,6],[28,11,28,13],[29,1,29,13],[47,2,47,3],[48,2,48,3],[53,2,53,3],[54,2,54,3],[55,2,55,3],[47,9,47,10],[48,9,48,10],[43,9,43,10],[44,9,44,10],[45,9,45,10],[46,9,46,10],[43,2,43,3],[44,2,44,3],[45,2,45,3],[46,2,46,3],[34,9,34,10],[35,9,35,10],[36,9,36,10],[37,9,37,10],[38,9,38,10],[34,2,34,3],[35,2,35,3],[36,2,36,3],[37,2,37,3],[38,2,38,3],[21,1,21,13],[23,1,23,13],[24,1,24,13],[26,1,26,13],[33,2,33,3],[33,9,33,10],[15,1,15,13],[14,1,14,13],[17,1,17,13],[18,1,18,13],[20,1,20,13],[0,1,0,13],[12,1,12,13],[11,1,11,13],[9,12,10,12],[9,13,10,13],[4,2,4,5],[9,1,9,3],[9,4,10,4],[9,5,10,5],[9,6,10,6],[9,7,10,7],[9,8,10,8],[9,9,10,9],[9,10,10,10],[9,11,10,11],[1,12,1,13]]}
[]
[null,null,"KERROSTALOJEN KORJAUSTOIMINNAN ENERGIATALOUDELLISTEN VALINTOJEN VERTAILU"]
[null,null,null,null,null,"Rakenne- ja LVIS-teknisten energiansäästötoimenpiteiden valinta rakenne- ja laitetasolla"]
[]
[null,null,"Yhteenveto valinnoista"]
[]
[]
[]
[]
[null,"VALINTAJÄRJESTYS",null,null,"VALINNAN\nSISÄINEN\nKORKO [%]","TOIMEN-\nPITEEN\nTUNNUS","HARKITTAVA\nENERGIANSÄÄSTÖTOIMENPIDE","RAKENNUS-\nKUSTANNUSERO\n[€]","LÄMMITYSENERGIAN \nKULUTUKSEN\nMUUTOS\n[MWh/a]","SÄHKÖENERGIAN\nKULUTUKSEN\nMUUTOS [MWh/a]","KUSTANNUSTEN VUOSIMUUTOS\n[€/a]","PITOAIKA\n[a]","TAKAISIN-\nMAKSUAIKA\n[a]","TAKAISIN-\nMAKSU-\nKERRAT\nPITOAIKANA"]
[null,"TAKAISIN-\nMAKSU-\nAJAN\nMUKAAN","TAKAISIN-\nMAKSU-\nKERTOJEN\nMUKAAN","SISÄISEN\nKORON\nMUKAAN"]
[]
[null,{"$f":"Lähtötiedot!C18","v":"YLÄPOHJA"}]
[null,5,3,4,0.11255324685591461,"YP1","ERISTYS 200 + 50 mm",2628,-6,0,-300,40,8.76,4.5662100456621006]
[]
[null,{"$f":"Lähtötiedot!C29","v":"ULKOSEINÄ"}]
[null,6,5,6,8.4838772415913144E-2,"US1","LISÄERISTYS 100 mm",5100,-9,0,-450,40,11.333333333333334,3.5294117647058822]
[]
[null,{"$f":"Lähtötiedot!C40","v":"IKKUNAT"}]
[null,2,1,2,0.20628414639059262,"IKK2","UUSI IKKUNA U=1,0",10868,-45,0,-2250,30,4.830222222222222,6.2108943687891056]
[]
[null,{"$f":"Lähtötiedot!C51","v":"VEDENKULUTUKSEN MITTAUS"}]
[null,1,4,1,0.23089228481829616,"VKM","ASUNTOKOHTAINEN MITTAUS",46800,-29,0,-11307,15,4.1390289201379673,3.6240384615384618]
[]
[null,{"$f":"Lähtötiedot!C56","v":"ILMANVAIHTOJÄRJESTELMÄ"}]
[null,4,6,5,0.11076264665508979,"IV1","KESKITETTY KONEELLINEN TULO- JA\n      POISTOILMANVAIHTO LTO 50 %",78400,-259,38.6,-9072,30,8.6419753086419746,3.4714285714285715]
[]
[null,"KAIKKI PARANNUKSET YHTEENSÄ"]
[null,null,null,null,null,null,null,1142444,-620,38.6,-36195]
[]
[]
[null,"ENERGIATALOUDELLISISTA LISÄVALINNOISTA",null,null,null,"ENERGIATALOUDELISILLA LISÄVALINNOILLA",null,null,"ENERGIATALOUDELLISILLA LISÄVALINNOILLA"]
[null," AIHEUTUVA KUSTANNUSERO",null,null,null,"SAAVUTETTAVA ENERGIANSÄÄSTÖ [MWh/a]",null,null,"VUOSITTAIN SAAVUTETTAVA KUSTANNUSSÄÄSTÖ"]
[null,{"$f":"IF($F$14=\"\",\"\",$F$14)","v":"YP1"},{"$f":"IF($D$14=\"\",0,$H$14)","v":2628},null,null,{"$f":"IF(F14=\"\",\"\",F14)","v":"YP1"},{"$f":"IF(D14=\"\",0,-(I14+J14))","v":6},null,{"$f":"IF($F14=\"\",\"\",$F14)","v":"YP1"},{"$f":"IF($D14=\"\",0,-$K14)","v":300}]
[null,{"$f":"IF($F$17=\"\",\"\",$F$17)","v":"US1"},{"$f":"IF($D$17=\"\",0,$H$17)","v":5100},null,null,{"$f":"IF(F17=\"\",\"\",F17)","v":"US1"},{"$f":"IF(D17=\"\",0,-(I17+J17))","v":9},null,{"$f":"IF($F17=\"\",\"\",$F17)","v":"US1"},{"$f":"IF($D17=\"\",0,-$K17)","v":450}]
[null,{"$f":"IF($F$20=\"\",\"\",$F$20)","v":"IKK2"},{"$f":"IF($D$20=\"\",0,$H$20)","v":10868},null,null,{"$f":"IF(F20=\"\",\"\",F20)","v":"IKK2"},{"$f":"IF(D20=\"\",0,-(I20+J20))","v":45},null,{"$f":"IF($F20=\"\",\"\",$F20)","v":"IKK2"},{"$f":"IF($D20=\"\",0,-$K20)","v":2250}]
[null,{"$f":"IF($F$23=\"\",\"\",$F$23)","v":"VKM"},{"$f":"IF($D$23=\"\",0,$H$23)","v":46800},null,null,{"$f":"IF(F23=\"\",\"\",F23)","v":"VKM"},{"$f":"IF(D23=\"\",0,-(I23+J23))","v":29},null,{"$f":"IF($F23=\"\",\"\",$F23)","v":"VKM"},{"$f":"IF($D23=\"\",0,-$K23)","v":11307}]
[null,{"$f":"IF($F$26=\"\",\"\",$F$26)","v":"IV1"},{"$f":"IF($D$26=\"\",0,$H$26)","v":78400},null,null,{"$f":"IF(F26=\"\",\"\",F26)","v":"IV1"},{"$f":"IF(D26=\"\",0,-(I26+J26))","v":220.4},null,{"$f":"IF($F26=\"\",\"\",$F26)","v":"IV1"},{"$f":"IF($D26=\"\",0,-$K26)","v":9072}]
[null,"YHTEENSÄ",{"$f":"SUM(C34:D38)","v":143796},null,null,"YHTEENSÄ",{"$f":"SUM(G34:G38)","v":309.39999999999998},null,"YHTEENSÄ",{"$f":"SUM(J34:K38)","v":23379}]
[]
[]
[null,"LISÄVALINTOJEN KUSTANNUS/brm2",null,null,null,"LISÄVALINNOILLA SAAVUTETTAVA",null,null,"ENERGIATALOUDELLISTEN LISÄVALINTOJEN"]
[null,"[€/brm2]",null,null,null,"ENERGIANSÄÄSTÖ/brm2 [kWh/brm2/a]",null,null," KUSTANNUS/ENERGIANSÄÄSTÖ [€/(kWh/a)]"]
[null,{"$f":"IF($F$14=\"\",\"\",$F$14)","v":"YP1"},{"$f":"IF(C34=0,0,C34/'Toimenpiteiden valitseminen'!$N$8)","v":0.36318407960199006},null,null,{"$f":"IF($F$14=\"\",\"\",$F$14)","v":"YP1"},{"$f":"IF(G34=0,0,(1000*G34)/'Toimenpiteiden valitseminen'!$N$8)","v":0.82918739635157546},null,{"$f":"IF($F$14=\"\",\"\",$F$14)","v":"YP1"},{"$f":"IF($G34=0,0,$C34/(1000*$G34))","v":0.438}]
[null,{"$f":"IF($F$17=\"\",\"\",$F$17)","v":"US1"},{"$f":"IF(C35=0,0,C35/'Toimenpiteiden valitseminen'!$N$8)","v":0.70480928689883915},null,null,{"$f":"IF($F$17=\"\",\"\",$F$17)","v":"US1"},{"$f":"IF(G35=0,0,(1000*G35)/'Toimenpiteiden valitseminen'!$N$8)","v":1.2437810945273631},null,{"$f":"IF($F$17=\"\",\"\",$F$17)","v":"US1"},{"$f":"IF($G35=0,0,$C35/(1000*$G35))","v":0.56666666666666665}]
[null,{"$f":"IF($F$20=\"\",\"\",$F$20)","v":"IKK2"},{"$f":"IF(C36=0,0,C36/'Toimenpiteiden valitseminen'!$N$8)","v":1.5019347705914869},null,null,{"$f":"IF($F$20=\"\",\"\",$F$20)","v":"IKK2"},{"$f":"IF(G36=0,0,(1000*G36)/'Toimenpiteiden valitseminen'!$N$8)","v":6.2189054726368163},null,{"$f":"IF($F$20=\"\",\"\",$F$20)","v":"IKK2"},{"$f":"IF($G36=0,0,$C36/(1000*$G36))","v":0.24151111111111112}]
[null,{"$f":"IF($F$23=\"\",\"\",$F$23)","v":"VKM"},{"$f":"IF(C37=0,0,C37/'Toimenpiteiden valitseminen'!$N$8)","v":6.4676616915422889},null,null,{"$f":"IF($F$23=\"\",\"\",$F$23)","v":"VKM"},{"$f":"IF(G37=0,0,(1000*G37)/'Toimenpiteiden valitseminen'!$N$8)","v":4.0077390823659478},null,{"$f":"IF($F$23=\"\",\"\",$F$23)","v":"VKM"},{"$f":"IF($G37=0,0,$C37/(1000*$G37))","v":1.6137931034482758}]
[null,{"$f":"IF($F$26=\"\",\"\",$F$26)","v":"IV1"},{"$f":"IF(C38=0,0,C38/'Toimenpiteiden valitseminen'!$N$8)","v":10.834715312327253},null,null,{"$f":"IF($F$26=\"\",\"\",$F$26)","v":"IV1"},{"$f":"IF(G38=0,0,(1000*G38)/'Toimenpiteiden valitseminen'!$N$8)","v":30.458817025981205},null,{"$f":"IF($F$26=\"\",\"\",$F$26)","v":"IV1"},{"$f":"IF($G38=0,0,$C38/(1000*$G38))","v":0.35571687840290384}]
[null,"YHTEENSÄ",{"$f":"SUM(C44:D48)","v":19.872305140961856},null,null,"YHTEENSÄ",{"$f":"SUM(G44:G48)","v":42.758430071862904},null,"YHTEENSÄ",{"$f":"SUM(J44:K48)","v":3.2156877596289575}]
[]
[]
[null,"LISÄVALINTOJEN KUSTANNUS/hum2",null,null,null,"LISÄVALINNOILLA SAAVUTETTAVA"]
[null,"[€/hum2]",null,null,null,"ENERGIANSÄÄSTÖ/hum2 [kWh/hum2/a]"]
[null,{"$f":"IF($F$14=\"\",\"\",$F$14)","v":"YP1"},{"$f":"IF(C34=0,0,C34/'Toimenpiteiden valitseminen'!$N$9)","v":0.56576964477933267},null,null,{"$f":"IF($F$14=\"\",\"\",$F$14)","v":"YP1"},{"$f":"IF(G34=0,0,(1000*G34)/'Toimenpiteiden valitseminen'!$N$9)","v":1.2917115177610334}]
[null,{"$f":"IF($F$17=\"\",\"\",$F$17)","v":"US1"},{"$f":"IF(C35=0,0,C35/'Toimenpiteiden valitseminen'!$N$9)","v":1.0979547900968785},null,null,{"$f":"IF($F$17=\"\",\"\",$F$17)","v":"US1"},{"$f":"IF(G35=0,0,(1000*G35)/'Toimenpiteiden valitseminen'!$N$9)","v":1.9375672766415502}]
[null,{"$f":"IF($F$20=\"\",\"\",$F$20)","v":"IKK2"},{"$f":"IF(C36=0,0,C36/'Toimenpiteiden valitseminen'!$N$9)","v":2.3397201291711518},null,null,{"$f":"IF($F$20=\"\",\"\",$F$20)","v":"IKK2"},{"$f":"IF(G36=0,0,(1000*G36)/'Toimenpiteiden valitseminen'!$N$9)","v":9.6878363832077508}]
[null,{"$f":"IF($F$23=\"\",\"\",$F$23)","v":"VKM"},{"$f":"IF(C37=0,0,C37/'Toimenpiteiden valitseminen'!$N$9)","v":10.075349838536061},null,null,{"$f":"IF($F$23=\"\",\"\",$F$23)","v":"VKM"},{"$f":"IF(G37=0,0,(1000*G37)/'Toimenpiteiden valitseminen'!$N$9)","v":6.2432723358449946}]
[null,{"$f":"IF($F$26=\"\",\"\",$F$26)","v":"IV1"},{"$f":"IF(C38=0,0,C38/'Toimenpiteiden valitseminen'!$N$9)","v":16.878363832077504},null,null,{"$f":"IF($F$26=\"\",\"\",$F$26)","v":"IV1"},{"$f":"IF(G38=0,0,(1000*G38)/'Toimenpiteiden valitseminen'!$N$9)","v":47.448869752421956}]
[null,"YHTEENSÄ",{"$f":"SUM(C54:D58)","v":30.95715823466093},null,null,"YHTEENSÄ",{"$f":"SUM(G54:G58)","v":66.609257265877289}]
[]
[]
[null,null,"PERUS-\nRATKAISUT","EDELLISET\nVALINTATASOT","VIIMEISIMMÄT\nVALINTATASOT","YHTEENSÄ",null,null,"ENNEN KORJAUKSIA","PERUSRATKAISUJEN\nJÄLKEEN","LISÄVALINTOJEN\nJÄLKEEN"]
[null,"KUSTANNUS/\nLISÄKUSTANNUS",{"$f":"Temp!B44","v":986108},{"$f":"H29-(C63+E63)","v":12540},{"$f":"C39","v":143796},{"$f":"C63+D63+E63","v":1142444},null,"ENERGIAN-\nKULUTUS\n[MWh/a]",{"$f":"'Toimenpiteiden valitseminen'!E11","v":1179},{"$f":"(('Toimenpiteiden valitseminen'!E12*Lähtötiedot!G14)/1000)-C64","v":1334.2128749085589},{"$f":"('Toimenpiteiden valitseminen'!E12*Lähtötiedot!G14)/1000-(C64+D64+E64)","v":978.81287490855891}]
[null,"ENERGIANSÄÄSTÖ\n[MWh/a]",{"$f":"Temp!E44","v":226},{"$f":"-(I29+J29)-(C64+E64)","v":46},{"$f":"G39","v":309.39999999999998},{"$f":"C64+D64+E64","v":581.4},null,"ENERGIANKULUTUS / HUONEISTONELIÖ\n[kWh/hum2/a]",{"$f":"(1000*I63)/Lähtötiedot!K9","v":359.01339829476251},{"$f":"(1000*J63)/Lähtötiedot!G15","v":287.23635627740771},{"$f":"(1000*K63)/Lähtötiedot!G15","v":210.72397737536252}]
[null,"KUSTANNUS/\nENERGIANSÄÄSTÖ\n[€/(kWh/a)]",{"$f":"IF(C64=0,0,C63/(1000*C64))","v":4.3633097345132743},{"$f":"IF(D64=0,0,D63/(1000*D64))","v":0.27260869565217394},{"$f":"IF(E64=0,0,E63/(1000*E64))","v":0.46475759534583067},{"$f":"IF(F64=0,0,F63/(1000*F64))","v":1.9649879600963192},null,"ET-LUKU\n[kWh/brm2/a]",{"$f":"'Toimenpiteiden valitseminen'!E12","v":215.61814191660571},{"$f":"(1000*J63)/'Toimenpiteiden valitseminen'!$N$8","v":184.38541665402968},{"$f":"(1000*K63)/'Toimenpiteiden valitseminen'!$N$8","v":135.26988321013803}]
[null,"VUOSITTAISET\nKUSTANNUS-\nSÄÄSTÖT",{"$f":"Temp!F44","v":10516},{"$f":"-K29-(C66+E66)","v":2300},{"$f":"J39","v":23379},{"$f":"C66+D66+E66","v":36195},null,"ET-LUOKKA",{"$f":"IF(I65=\"\",\"\",IF(I65<=100,\"A\",IF(I65<=120,\"B\",IF(I65<=140,\"C\",IF(I65<=180,\"D\",IF(I65<=230,\"E\",IF(I65<=280,\"F\",\"G\")))))))","v":"E"},{"$f":"IF(J65=\"\",\"\",IF(J65<=100,\"A\",IF(J65<=120,\"B\",IF(J65<=140,\"C\",IF(J65<=180,\"D\",IF(J65<=230,\"E\",IF(J65<=280,\"F\",\"G\")))))))","v":"E"},{"$f":"IF(K65=\"\",\"\",IF(K65<=100,\"A\",IF(K65<=120,\"B\",IF(K65<=140,\"C\",IF(K65<=180,\"D\",IF(K65<=230,\"E\",IF(K65<=280,\"F\",\"G\")))))))","v":"C"}]
[null,null,null,null,null,null,null,"RAKENNUS-\nKUSTANNUKSET",0,{"$f":"C63","v":986108},{"$f":"C63+D63+E63","v":1142444}]
[null,null,null,null,null,null,null,"VUOSITTAISET\nKUSTANNUS-\nSÄÄSTÖT",0,{"$f":"C66","v":10516},{"$f":"C66+D66+E66","v":36195}]

{"sheet":"Kuvaajat","index":5,"n_rows":5,"n_cols":5,"rows_kept":5,"cut":false,"hidden":false,"merged":[[4,2,4,3],[0,1,0,20]]}
[]
[null,null,"KERROSTALOJEN KORJAUSTOIMINNAN ENERGIATALOUDELLISTEN VALINTOJEN VERTAILU"]
[null,null,null,null,"Rakenne- ja LVIS-teknisten energiansäästötoimenpiteiden valinta rakenne- ja laitetasolla"]
[]
[null,null,"Kuvaajat"]

{"sheet":"Temp","index":6,"n_rows":128,"n_cols":13,"rows_kept":128,"cut":false,"hidden":false,"merged":[[0,0,0,2]]}
["MUIDEN KUIN PERUSRATKAISUJEN"]
["TAKAISINMAKSUAJAT","TAKAISINMAKSUKERRAT\nPITOAIKANA","SISÄISET\nKOROT"]
[{"$f":"'Toimenpiteiden valitseminen'!N22","v":8.76},{"$f":"'Toimenpiteiden valitseminen'!O22","v":4.5662100456621006},{"$f":"'Toimenpiteiden valitseminen'!F22","v":0.11255324685591461},"YP1"]
[{"$f":"'Toimenpiteiden valitseminen'!N24","v":27.04},{"$f":"'Toimenpiteiden valitseminen'!O24","v":1.4792899408284024},{"$f":"'Toimenpiteiden valitseminen'!F24","v":2.0663177460476936E-2},"YP2"]
[{"$f":"'Toimenpiteiden valitseminen'!N26","v":""},{"$f":"'Toimenpiteiden valitseminen'!O26","v":""},{"$f":"'Toimenpiteiden valitseminen'!F26","v":0},"YP3"]
[{"$f":"'Toimenpiteiden valitseminen'!N30","v":11.333333333333334},{"$f":"'Toimenpiteiden valitseminen'!O30","v":3.5294117647058822},{"$f":"'Toimenpiteiden valitseminen'!F30","v":8.4838772415913144E-2},"US1"]
[{"$f":"'Toimenpiteiden valitseminen'!N32","v":57.294117647058826},{"$f":"'Toimenpiteiden valitseminen'!O32","v":0.69815195071868585},{"$f":"'Toimenpiteiden valitseminen'!F32","v":-1.6494452522928145E-2},"US2"]
[{"$f":"'Toimenpiteiden valitseminen'!N34","v":""},{"$f":"'Toimenpiteiden valitseminen'!O34","v":""},{"$f":"'Toimenpiteiden valitseminen'!F34","v":0},"US3"]
[{"$f":"'Toimenpiteiden valitseminen'!N38","v":5.4521739130434783},{"$f":"'Toimenpiteiden valitseminen'!O38","v":5.5023923444976077},{"$f":"'Toimenpiteiden valitseminen'!F38","v":0.18220341625823658},"IKK1"]
[{"$f":"'Toimenpiteiden valitseminen'!N40","v":4.830222222222222},{"$f":"'Toimenpiteiden valitseminen'!O40","v":6.2108943687891056},{"$f":"'Toimenpiteiden valitseminen'!F40","v":0.20628414639059262},"IKK2"]
[{"$f":"'Toimenpiteiden valitseminen'!N42","v":""},{"$f":"'Toimenpiteiden valitseminen'!O42","v":""},{"$f":"'Toimenpiteiden valitseminen'!F42","v":0},"IKK3"]
[{"$f":"'Toimenpiteiden valitseminen'!N45","v":4.1390289201379673},{"$f":"'Toimenpiteiden valitseminen'!O45","v":3.6240384615384618},{"$f":"'Toimenpiteiden valitseminen'!F45","v":0.23089228481829616},"VKM"]
[{"$f":"'Toimenpiteiden valitseminen'!N48","v":8.6419753086419746},{"$f":"'Toimenpiteiden valitseminen'!O48","v":3.4714285714285715},{"$f":"'Toimenpiteiden valitseminen'!F48","v":0.11076264665508979},"IV1"]
[{"$f":"'Toimenpiteiden valitseminen'!N49","v":11.824324324324325},{"$f":"'Toimenpiteiden valitseminen'!O49","v":2.5371428571428569},{"$f":"'Toimenpiteiden valitseminen'!F49","v":7.4878886376319134E-2},"IV2"]
[{"$f":"'Toimenpiteiden valitseminen'!N50","v":""},{"$f":"'Toimenpiteiden valitseminen'!O50","v":""},{"$f":"'Toimenpiteiden valitseminen'!F50","v":0},"IV3"]
[]
[]
[{"$f":"Vertailu!C11","v":"VALINTA-\nJÄRJESTYS"},{"$f":"Vertailu!D11","v":"SISÄINEN\nKORKO"},{"$f":"Vertailu!E11","v":"TOIMENPITEEN\nTUNNUS"},{"$f":"Vertailu!F11","v":"KUSTANNUSTEN\nMUUTOS\n[€]"},{"$f":"Vertailu!G11","v":"LÄMMITYSENERGIAN \nKULUTUKSEN\nMUUTOS [MWh/a]"},{"$f":"Vertailu!H11","v":"SÄHKÖENERGIAN\nKULUTUKSEN\nMUUTOS [MWh/a]"},{"$f":"Vertailu!J11","v":"KUSTANNUSTEN VUOSIMUUTOS\n[€/a]"},{"$f":"Vertailu!K11","v":"PITOAIKA\n[a]"},{"$f":"Vertailu!L11","v":"KUSTANNUS /\nENERGIANSÄÄSTÖ\n[€/(kWh/a)]"}]
[{"$f":"RANK(I19,$I$19:$I$35,1)","v":17},{"$f":"IF(Vertailu!D12=\"\",0,Vertailu!D12)","v":0.23089228481829616},{"$f":"IF(Vertailu!E12=\"\",0,Vertailu!E12)","v":"VKM"},{"$f":"IF(Vertailu!F12=\"\",0,Vertailu!F12)","v":46800},{"$f":"IF(Vertailu!G12=\"\",0,Vertailu!G12)","v":-29},{"$f":"IF(Vertailu!H12=\"\",0,Vertailu!H12)","v":0},{"$f":"IF(Vertailu!J12=\"\",0,Vertailu!J12)","v":-11307},{"$f":"IF(Vertailu!K12=\"\",0,Vertailu!K12)","v":15},{"$f":"IF(Vertailu!L12=\"\",0,Vertailu!L12)","v":1.6137931034482758}]
[{"$f":"RANK(I20,$I$19:$I$35,1)","v":10},{"$f":"IF(Vertailu!D13=\"\",0,Vertailu!D13)","v":0.20628414639059262},{"$f":"IF(Vertailu!E13=\"\",0,Vertailu!E13)","v":"IKK2"},{"$f":"IF(Vertailu!F13=\"\",0,Vertailu!F13)","v":10868},{"$f":"IF(Vertailu!G13=\"\",0,Vertailu!G13)","v":-45},{"$f":"IF(Vertailu!H13=\"\",0,Vertailu!H13)","v":0},{"$f":"IF(Vertailu!J13=\"\",0,Vertailu!J13)","v":-2250},{"$f":"IF(Vertailu!K13=\"\",0,Vertailu!K13)","v":30},{"$f":"IF(Vertailu!L13=\"\",0,Vertailu!L13)","v":0.24151111111111112}]
[11,{"$f":"IF(Vertailu!D14=\"\",0,Vertailu!D14)","v":0.18220341625823658},{"$f":"IF(Vertailu!E14=\"\",0,Vertailu!E14)","v":"IKK1"},{"$f":"IF(Vertailu!F14=\"\",0,Vertailu!F14)","v":12540},{"$f":"IF(Vertailu!G14=\"\",0,Vertailu!G14)","v":-46},{"$f":"IF(Vertailu!H14=\"\",0,Vertailu!H14)","v":0},{"$f":"IF(Vertailu!J14=\"\",0,Vertailu!J14)","v":-2300},{"$f":"IF(Vertailu!K14=\"\",0,Vertailu!K14)","v":30},{"$f":"IF(Vertailu!L14=\"\",0,Vertailu!L14)","v":0.27260869565217394}]
[13,{"$f":"IF(Vertailu!D15=\"\",0,Vertailu!D15)","v":0.11255324685591461},{"$f":"IF(Vertailu!E15=\"\",0,Vertailu!E15)","v":"YP1"},{"$f":"IF(Vertailu!F15=\"\",0,Vertailu!F15)","v":2628},{"$f":"IF(Vertailu!G15=\"\",0,Vertailu!G15)","v":-6},{"$f":"IF(Vertailu!H15=\"\",0,Vertailu!H15)","v":0},{"$f":"IF(Vertailu!J15=\"\",0,Vertailu!J15)","v":-300},{"$f":"IF(Vertailu!K15=\"\",0,Vertailu!K15)","v":40},{"$f":"IF(Vertailu!L15=\"\",0,Vertailu!L15)","v":0.438}]
[12,{"$f":"IF(Vertailu!D16=\"\",0,Vertailu!D16)","v":0.11076264665508979},{"$f":"IF(Vertailu!E16=\"\",0,Vertailu!E16)","v":"IV1"},{"$f":"IF(Vertailu!F16=\"\",0,Vertailu!F16)","v":78400},{"$f":"IF(Vertailu!G16=\"\",0,Vertailu!G16)","v":-259},{"$f":"IF(Vertailu!H16=\"\",0,Vertailu!H16)","v":38.6},{"$f":"IF(Vertailu!J16=\"\",0,Vertailu!J16)","v":-9072},{"$f":"IF(Vertailu!K16=\"\",0,Vertailu!K16)","v":30},{"$f":"IF(Vertailu!L16=\"\",0,Vertailu!L16)","v":0.35571687840290384}]
[15,{"$f":"IF(Vertailu!D17=\"\",0,Vertailu!D17)","v":8.4838772415913144E-2},{"$f":"IF(Vertailu!E17=\"\",0,Vertailu!E17)","v":"US1"},{"$f":"IF(Vertailu!F17=\"\",0,Vertailu!F17)","v":5100},{"$f":"IF(Vertailu!G17=\"\",0,Vertailu!G17)","v":-9},{"$f":"IF(Vertailu!H17=\"\",0,Vertailu!H17)","v":0},{"$f":"IF(Vertailu!J17=\"\",0,Vertailu!J17)","v":-450},{"$f":"IF(Vertailu!K17=\"\",0,Vertailu!K17)","v":40},{"$f":"IF(Vertailu!L17=\"\",0,Vertailu!L17)","v":0.56666666666666665}]
[14,{"$f":"IF(Vertailu!D18=\"\",0,Vertailu!D18)","v":7.4878886376319134E-2},{"$f":"IF(Vertailu!E18=\"\",0,Vertailu!E18)","v":"IV2"},{"$f":"IF(Vertailu!F18=\"\",0,Vertailu!F18)","v":98000},{"$f":"IF(Vertailu!G18=\"\",0,Vertailu!G18)","v":-259},{"$f":"IF(Vertailu!H18=\"\",0,Vertailu!H18)","v":38.6},{"$f":"IF(Vertailu!J18=\"\",0,Vertailu!J18)","v":-8288},{"$f":"IF(Vertailu!K18=\"\",0,Vertailu!K18)","v":30},{"$f":"IF(Vertailu!L18=\"\",0,Vertailu!L18)","v":0.44464609800362975}]
[16,{"$f":"IF(Vertailu!D19=\"\",0,Vertailu!D19)","v":2.0663177460476936E-2},{"$f":"IF(Vertailu!E19=\"\",0,Vertailu!E19)","v":"YP2"},{"$f":"IF(Vertailu!F19=\"\",0,Vertailu!F19)","v":5408},{"$f":"IF(Vertailu!G19=\"\",0,Vertailu!G19)","v":-4},{"$f":"IF(Vertailu!H19=\"\",0,Vertailu!H19)","v":0},{"$f":"IF(Vertailu!J19=\"\",0,Vertailu!J19)","v":-200},{"$f":"IF(Vertailu!K19=\"\",0,Vertailu!K19)","v":40},{"$f":"IF(Vertailu!L19=\"\",0,Vertailu!L19)","v":1.3520000000000001}]
[1,{"$f":"IF(Vertailu!D20=\"\",0,Vertailu!D20)","v":0},{"$f":"IF(Vertailu!E20=\"\",0,Vertailu!E20)","v":0},{"$f":"IF(Vertailu!F20=\"\",0,Vertailu!F20)","v":0},{"$f":"IF(Vertailu!G20=\"\",0,Vertailu!G20)","v":0},{"$f":"IF(Vertailu!H20=\"\",0,Vertailu!H20)","v":0},{"$f":"IF(Vertailu!J20=\"\",0,Vertailu!J20)","v":0},{"$f":"IF(Vertailu!K20=\"\",0,Vertailu!K20)","v":0},{"$f":"IF(Vertailu!L20=\"\",0,Vertailu!L20)","v":0}]
[1,{"$f":"IF(Vertailu!D21=\"\",0,Vertailu!D21)","v":0},{"$f":"IF(Vertailu!E21=\"\",0,Vertailu!E21)","v":0},{"$f":"IF(Vertailu!F21=\"\",0,Vertailu!F21)","v":0},{"$f":"IF(Vertailu!G21=\"\",0,Vertailu!G21)","v":0},{"$f":"IF(Vertailu!H21=\"\",0,Vertailu!H21)","v":0},{"$f":"IF(Vertailu!J21=\"\",0,Vertailu!J21)","v":0},{"$f":"IF(Vertailu!K21=\"\",0,Vertailu!K21)","v":0},{"$f":"IF(Vertailu!L21=\"\",0,Vertailu!L21)","v":0}]
[1,{"$f":"IF(Vertailu!D22=\"\",0,Vertailu!D22)","v":0},{"$f":"IF(Vertailu!E22=\"\",0,Vertailu!E22)","v":0},{"$f":"IF(Vertailu!F22=\"\",0,Vertailu!F22)","v":0},{"$f":"IF(Vertailu!G22=\"\",0,Vertailu!G22)","v":0},{"$f":"IF(Vertailu!H22=\"\",0,Vertailu!H22)","v":0},{"$f":"IF(Vertailu!J22=\"\",0,Vertailu!J22)","v":0},{"$f":"IF(Vertailu!K22=\"\",0,Vertailu!K22)","v":0},{"$f":"IF(Vertailu!L22=\"\",0,Vertailu!L22)","v":0}]
[1,{"$f":"IF(Vertailu!D23=\"\",0,Vertailu!D23)","v":0},{"$f":"IF(Vertailu!E23=\"\",0,Vertailu!E23)","v":0},{"$f":"IF(Vertailu!F23=\"\",0,Vertailu!F23)","v":0},{"$f":"IF(Vertailu!G23=\"\",0,Vertailu!G23)","v":0},{"$f":"IF(Vertailu!H23=\"\",0,Vertailu!H23)","v":0},{"$f":"IF(Vertailu!J23=\"\",0,Vertailu!J23)","v":0},{"$f":"IF(Vertailu!K23=\"\",0,Vertailu!K23)","v":0},{"$f":"IF(Vertailu!L23=\"\",0,Vertailu!L23)","v":0}]
[1,{"$f":"IF(Vertailu!D24=\"\",0,Vertailu!D24)","v":0},{"$f":"IF(Vertailu!E24=\"\",0,Vertailu!E24)","v":0},{"$f":"IF(Vertailu!F24=\"\",0,Vertailu!F24)","v":0},{"$f":"IF(Vertailu!G24=\"\",0,Vertailu!G24)","v":0},{"$f":"IF(Vertailu!H24=\"\",0,Vertailu!H24)","v":0},{"$f":"IF(Vertailu!J24=\"\",0,Vertailu!J24)","v":0},{"$f":"IF(Vertailu!K24=\"\",0,Vertailu!K24)","v":0},{"$f":"IF(Vertailu!L24=\"\",0,Vertailu!L24)","v":0}]
[1,{"$f":"IF(Vertailu!D25=\"\",0,Vertailu!D25)","v":0},{"$f":"IF(Vertailu!E25=\"\",0,Vertailu!E25)","v":0},{"$f":"IF(Vertailu!F25=\"\",0,Vertailu!F25)","v":0},{"$f":"IF(Vertailu!G25=\"\",0,Vertailu!G25)","v":0},{"$f":"IF(Vertailu!H25=\"\",0,Vertailu!H25)","v":0},{"$f":"IF(Vertailu!J25=\"\",0,Vertailu!J25)","v":0},{"$f":"IF(Vertailu!K25=\"\",0,Vertailu!K25)","v":0},{"$f":"IF(Vertailu!L25=\"\",0,Vertailu!L25)","v":0}]
[1,{"$f":"IF(Vertailu!D26=\"\",0,Vertailu!D26)","v":0},{"$f":"IF(Vertailu!E26=\"\",0,Vertailu!E26)","v":0},{"$f":"IF(Vertailu!F26=\"\",0,Vertailu!F26)","v":0},{"$f":"IF(Vertailu!G26=\"\",0,Vertailu!G26)","v":0},{"$f":"IF(Vertailu!H26=\"\",0,Vertailu!H26)","v":0},{"$f":"IF(Vertailu!J26=\"\",0,Vertailu!J26)","v":0},{"$f":"IF(Vertailu!K26=\"\",0,Vertailu!K26)","v":0},{"$f":"IF(Vertailu!L26=\"\",0,Vertailu!L26)","v":0}]
[1,{"$f":"IF(Vertailu!D27=\"\",0,Vertailu!D27)","v":0},{"$f":"IF(Vertailu!E27=\"\",0,Vertailu!E27)","v":0},{"$f":"IF(Vertailu!F27=\"\",0,Vertailu!F27)","v":0},{"$f":"IF(Vertailu!G27=\"\",0,Vertailu!G27)","v":0},{"$f":"IF(Vertailu!H27=\"\",0,Vertailu!H27)","v":0},{"$f":"IF(Vertailu!J27=\"\",0,Vertailu!J27)","v":0},{"$f":"IF(Vertailu!K27=\"\",0,Vertailu!K27)","v":0},{"$f":"IF(Vertailu!L27=\"\",0,Vertailu!L27)","v":0}]
[1,{"$f":"IF(Vertailu!D28=\"\",0,Vertailu!D28)","v":0},{"$f":"IF(Vertailu!E28=\"\",0,Vertailu!E28)","v":0},{"$f":"IF(Vertailu!F28=\"\",0,Vertailu!F28)","v":0},{"$f":"IF(Vertailu!G28=\"\",0,Vertailu!G28)","v":0},{"$f":"IF(Vertailu!H28=\"\",0,Vertailu!H28)","v":0},{"$f":"IF(Vertailu!J28=\"\",0,Vertailu!J28)","v":0},{"$f":"IF(Vertailu!K28=\"\",0,Vertailu!K28)","v":0},{"$f":"IF(Vertailu!L28=\"\",0,Vertailu!L28)","v":0}]
[]
[]
["PERUSRATKAISUT"]
[null,"RAKENNUSKUSTANNUS","LÄMMITYSENERGIA","SÄHKÖENERGIA","ENERGIANSÄÄSTÖ","KUSTANNUSMUUTOS"]
["PYP",{"$f":"Lähtötiedot!E20","v":102828},{"$f":"Lähtötiedot!F20","v":-35},{"$f":"Lähtötiedot!G20","v":0},{"$f":"-(C40+D40)","v":35},{"$f":"-'Toimenpiteiden valitseminen'!L21","v":1750}]
["PUS",{"$f":"Lähtötiedot!E31","v":484600},{"$f":"Lähtötiedot!F31","v":-87},{"$f":"Lähtötiedot!G31","v":0},{"$f":"-(C41+D41)","v":87},{"$f":"-'Toimenpiteiden valitseminen'!L29","v":4350}]
["PIKK",{"$f":"Lähtötiedot!E42","v":359480},{"$f":"Lähtötiedot!F42","v":-104},{"$f":"Lähtötiedot!G42","v":0},104,{"$f":"-'Toimenpiteiden valitseminen'!L37","v":5200}]
["PIV",{"$f":"Lähtötiedot!E58","v":39200},{"$f":"Lähtötiedot!F58","v":0},{"$f":"Lähtötiedot!G58","v":0},0,{"$f":"-'Toimenpiteiden valitseminen'!L47","v":-784}]
[null,{"$f":"SUM(B40:B43)","v":986108},{"$f":"SUM(C40:C43)","v":-226},{"$f":"SUM(D40:D43)","v":0},{"$f":"SUM(E40:E43)","v":226},{"$f":"SUM(F40:F43)","v":10516}]
[]
[]
[]
[]
["VALINTA-\nJÄRJESTYS","SISÄINEN\nKORKO","TOIMENPITEEN\nTUNNUS","KUSTANNUSTEN\nMUUTOS\n[€]","LÄMMITYSENERGIAN \nKULUTUKSEN\nMUUTOS [MWh/a]","SÄHKÖENERGIAN\nKULUTUKSEN\nMUUTOS [MWh/a]","VUOSITTAINEN\nKOKONAIS-\nENERGIANSÄÄSTÖ\n[MWh/a]","KUSTANNUSTEN VUOSIMUUTOS\n[€/a]","PITOAIKA\n[a]","KUSTANNUS /\nENERGIANSÄÄSTÖ\n[€/(kWh/a)]","KUMULATIIVINEN KUSTANNUS","KUMULATIIVINEN ENERGIANSÄÄSTÖ","KUSTANNUSTEN VUOSISÄÄSTÖT\n[€/a]"]
[0,0,0,0,0,0,0,0,0,0,{"$f":"0/Lähtötiedot!G14","v":0},0,{"$f":"-H50","v":0}]
[1,0.20628414639059262,"IKK2",10868,-45,0,45,-2250,30,0.24151111111111112,{"$f":"D51/Lähtötiedot!G14","v":1.5019347705914869},{"$f":"(1000*G51)/Lähtötiedot!G14","v":6.2189054726368163},{"$f":"-H51","v":2250}]
[2,0.18220341625823658,"IKK1",12540,-46,0,46,-2300,30,0.27260869565217394,{"$f":"K51+(D52/Lähtötiedot!$G$14)","v":3.2349364289662796},{"$f":"L51+((1000*G52)/Lähtötiedot!G14)","v":12.576008844665562},{"$f":"-H52","v":2300}]
[3,0.11076264665508979,"IV1",78400,-259,38.6,220.4,-9072,30,0.35571687840290384,{"$f":"K52+(D53/Lähtötiedot!$G$14)","v":14.069651741293534},{"$f":"L52+((1000*G53)/Lähtötiedot!G14)","v":43.03482587064677},9072]
[4,0.11255324685591461,"YP1",2628,-6,0,6,-300,40,0.438,{"$f":"K53+(D54/Lähtötiedot!$G$14)","v":14.432835820895523},{"$f":"L53+((1000*G54)/Lähtötiedot!G14)","v":43.864013266998349},300]
[5,7.4878886376319134E-2,"IV2",98000,-259,38.6,220.4,-8288,30,0.44464609800362975,{"$f":"K54","v":14.432835820895523},{"$f":"L54","v":43.864013266998349},8288]
[6,8.4838772415913144E-2,"US1",5100,-9,0,9,-450,40,0.56666666666666665,{"$f":"K55+(D56/Lähtötiedot!$G$14)","v":15.137645107794363},{"$f":"L55+((1000*G56)/Lähtötiedot!G14)","v":45.107794361525713},450]
[7,2.0663177460476936E-2,"YP2",5408,-4,0,4,-200,40,1.3520000000000001,{"$f":"K56+(D57/Lähtötiedot!$G$14)","v":15.885019347705915},{"$f":"L56+((1000*G57)/Lähtötiedot!G14)","v":45.660585959093432},200]
[8,0.23089228481829616,"VKM",46800,-29,0,29,-11307,15,1.6137931034482758,{"$f":"K57+(D58/Lähtötiedot!$G$14)","v":22.352681039248203},{"$f":"L57+((1000*G58)/Lähtötiedot!G14)","v":49.668325041459383},11307]
[null,null,null,null,null,null,null,null,null,null,{"$f":"K58+(D59/Lähtötiedot!$G$14)","v":22.352681039248203},{"$f":"L58+((1000*G59)/Lähtötiedot!G14)","v":49.668325041459383},0]
[null,null,null,null,null,null,null,null,null,null,{"$f":"K59+(D60/Lähtötiedot!$G$14)","v":22.352681039248203},{"$f":"L59+((1000*G60)/Lähtötiedot!G14)","v":49.668325041459383},0]
[null,null,null,null,null,null,null,null,null,null,{"$f":"K60+(D61/Lähtötiedot!$G$14)","v":22.352681039248203},{"$f":"L60+((1000*G61)/Lähtötiedot!G14)","v":49.668325041459383},0]
[null,null,null,null,null,null,null,null,null,null,{"$f":"K61+(D62/Lähtötiedot!$G$14)","v":22.352681039248203},{"$f":"L61+((1000*G62)/Lähtötiedot!G14)","v":49.668325041459383},0]
[null,null,null,null,null,null,null,null,null,null,{"$f":"K62+(D63/Lähtötiedot!$G$14)","v":22.352681039248203},{"$f":"L62+((1000*G63)/Lähtötiedot!G14)","v":49.668325041459383},0]
[null,null,null,null,null,null,null,null,null,null,{"$f":"K63+(D64/Lähtötiedot!$G$14)","v":22.352681039248203},{"$f":"L63+((1000*G64)/Lähtötiedot!G14)","v":49.668325041459383},0]
[null,null,null,null,null,null,null,null,null,null,{"$f":"K64+(D65/Lähtötiedot!$G$14)","v":22.352681039248203},{"$f":"L64+((1000*G65)/Lähtötiedot!G14)","v":49.668325041459383},0]
[null,null,null,null,null,null,null,null,null,null,{"$f":"K65+(D66/Lähtötiedot!$G$14)","v":22.352681039248203},{"$f":"L65+((1000*G66)/Lähtötiedot!G14)","v":49.668325041459383},0]
[null,null,null,null,null,null,null,null,null,null,{"$f":"K66+(D67/Lähtötiedot!$G$14)","v":22.352681039248203},{"$f":"L66+((1000*G67)/Lähtötiedot!G14)","v":49.668325041459383},0]
[]
[]
[]
["VALINTA-\nJÄRJESTYS","SISÄINEN\nKORKO","TOIMENPITEEN\nTUNNUS","KUSTANNUSTEN\nMUUTOS\n[€]","LÄMMITYSENERGIAN \nKULUTUKSEN\nMUUTOS [MWh/a]","SÄHKÖENERGIAN\nKULUTUKSEN\nMUUTOS [MWh/a]","VUOSITTAINEN\nKOKONAIS-\nENERGIANSÄÄSTÖ\n[MWh/a]","KUSTANNUSTEN VUOSIMUUTOS\n[€/a]","PITOAIKA\n[a]","KUSTANNUS /\nENERGIANSÄÄSTÖ\n[€/(kWh/a)]","KUSTANNUSTEN VUOSISÄÄSTÖT\n[€/a]","TAKAISINMAKSUAIKA","TAKAISINMAKSU-\nKERRAT\nPITOAIKANA"]
[{"$f":"IF(ISNA(VLOOKUP(1,'Toimenpiteiden valitseminen'!$D$21:$O$50,1,FALSE)),\"\",VLOOKUP(1,'Toimenpiteiden valitseminen'!$D$21:$O$50,1,FALSE))","v":1},{"$f":"IF(ISNA(VLOOKUP(1,'Toimenpiteiden valitseminen'!$D$21:$O$50,3,FALSE)),\"\",VLOOKUP(1,'Toimenpiteiden valitseminen'!$D$21:$O$50,3,FALSE))","v":0.23089228481829616},{"$f":"IF(ISNA(VLOOKUP(1,'Toimenpiteiden valitseminen'!$D$21:$O$50,4,FALSE)),\"\",VLOOKUP(1,'Toimenpiteiden valitseminen'!$D$21:$O$50,4,FALSE))","v":"VKM"},{"$f":"IF(ISNA(VLOOKUP(1,'Toimenpiteiden valitseminen'!$D$21:$O$50,6,FALSE)),\"\",VLOOKUP(1,'Toimenpiteiden valitseminen'!$D$21:$O$50,6,FALSE))","v":46800},{"$f":"IF(ISNA(VLOOKUP(1,'Toimenpiteiden valitseminen'!$D$21:$O$50,7,FALSE)),\"\",VLOOKUP(1,'Toimenpiteiden valitseminen'!$D$21:$O$50,7,FALSE))","v":-29},{"$f":"IF(ISNA(VLOOKUP(1,'Toimenpiteiden valitseminen'!$D$21:$O$50,8,FALSE)),\"\",VLOOKUP(1,'Toimenpiteiden valitseminen'!$D$21:$O$50,8,FALSE))","v":0},{"$f":"IF(AND(E72=\"\",F72=\"\"),\"\",-(E72+F72))","v":29},{"$f":"IF(ISNA(VLOOKUP(1,'Toimenpiteiden valitseminen'!$D$21:$O$50,9,FALSE)),\"\",VLOOKUP(1,'Toimenpiteiden valitseminen'!$D$21:$O$50,9,FALSE))","v":-11307},{"$f":"IF(ISNA(VLOOKUP(1,'Toimenpiteiden valitseminen'!$D$21:$O$50,10,FALSE)),\"\",VLOOKUP(1,'Toimenpiteiden valitseminen'!$D$21:$O$50,10,FALSE))","v":15},{"$f":"IF(AND(E72=\"\",F72=\"\"),\"\",D72/(1000*G72))","v":1.6137931034482758},{"$f":"-H72","v":11307},{"$f":"D72/K72","v":4.1390289201379673},{"$f":"I72/L72","v":3.6240384615384618}]
[{"$f":"IF(ISNA(VLOOKUP(2,'Toimenpiteiden valitseminen'!$D$21:$O$50,1,FALSE)),\"\",VLOOKUP(2,'Toimenpiteiden valitseminen'!$D$21:$O$50,1,FALSE))","v":2},{"$f":"IF(ISNA(VLOOKUP(2,'Toimenpiteiden valitseminen'!$D$21:$O$50,3,FALSE)),\"\",VLOOKUP(2,'Toimenpiteiden valitseminen'!$D$21:$O$50,3,FALSE))","v":0.20628414639059262},{"$f":"IF(ISNA(VLOOKUP(2,'Toimenpiteiden valitseminen'!$D$21:$O$50,4,FALSE)),\"\",VLOOKUP(2,'Toimenpiteiden valitseminen'!$D$21:$O$50,4,FALSE))","v":"IKK2"},{"$f":"IF(ISNA(VLOOKUP(2,'Toimenpiteiden valitseminen'!$D$21:$O$50,6,FALSE)),\"\",VLOOKUP(2,'Toimenpiteiden valitseminen'!$D$21:$O$50,6,FALSE))","v":10868},{"$f":"IF(ISNA(VLOOKUP(2,'Toimenpiteiden valitseminen'!$D$21:$O$50,7,FALSE)),\"\",VLOOKUP(2,'Toimenpiteiden valitseminen'!$D$21:$O$50,7,FALSE))","v":-45},{"$f":"IF(ISNA(VLOOKUP(2,'Toimenpiteiden valitseminen'!$D$21:$O$50,8,FALSE)),\"\",VLOOKUP(2,'Toimenpiteiden valitseminen'!$D$21:$O$50,8,FALSE))","v":0},{"$f":"IF(AND(E73=\"\",F73=\"\"),\"\",-(E73+F73))","v":45},{"$f":"IF(ISNA(VLOOKUP(2,'Toimenpiteiden valitseminen'!$D$21:$O$50,9,FALSE)),\"\",VLOOKUP(2,'Toimenpiteiden valitseminen'!$D$21:$O$50,9,FALSE))","v":-2250},{"$f":"IF(ISNA(VLOOKUP(2,'Toimenpiteiden valitseminen'!$D$21:$O$50,10,FALSE)),\"\",VLOOKUP(2,'Toimenpiteiden valitseminen'!$D$21:$O$50,10,FALSE))","v":30},{"$f":"IF(AND(E73=\"\",F73=\"\"),\"\",D73/(1000*G73))","v":0.24151111111111112},{"$f":"-H73","v":2250},{"$f":"D73/K73","v":4.830222222222222},{"$f":"I73/L73","v":6.2108943687891056}]
[{"$f":"IF(ISNA(VLOOKUP(3,'Toimenpiteiden valitseminen'!$D$21:$O$50,1,FALSE)),\"\",VLOOKUP(3,'Toimenpiteiden valitseminen'!$D$21:$O$50,1,FALSE))","v":3},{"$f":"IF(ISNA(VLOOKUP(3,'Toimenpiteiden valitseminen'!$D$21:$O$50,3,FALSE)),\"\",VLOOKUP(3,'Toimenpiteiden valitseminen'!$D$21:$O$50,3,FALSE))","v":0.18220341625823658},{"$f":"IF(ISNA(VLOOKUP(3,'Toimenpiteiden valitseminen'!$D$21:$O$50,4,FALSE)),\"\",VLOOKUP(3,'Toimenpiteiden valitseminen'!$D$21:$O$50,4,FALSE))","v":"IKK1"},{"$f":"IF(ISNA(VLOOKUP(3,'Toimenpiteiden valitseminen'!$D$21:$O$50,6,FALSE)),\"\",VLOOKUP(3,'Toimenpiteiden valitseminen'!$D$21:$O$50,6,FALSE))","v":12540},{"$f":"IF(ISNA(VLOOKUP(3,'Toimenpiteiden valitseminen'!$D$21:$O$50,7,FALSE)),\"\",VLOOKUP(3,'Toimenpiteiden valitseminen'!$D$21:$O$50,7,FALSE))","v":-46},{"$f":"IF(ISNA(VLOOKUP(3,'Toimenpiteiden valitseminen'!$D$21:$O$50,8,FALSE)),\"\",VLOOKUP(3,'Toimenpiteiden valitseminen'!$D$21:$O$50,8,FALSE))","v":0},{"$f":"IF(AND(E74=\"\",F74=\"\"),\"\",-(E74+F74))","v":46},{"$f":"IF(ISNA(VLOOKUP(3,'Toimenpiteiden valitseminen'!$D$21:$O$50,9,FALSE)),\"\",VLOOKUP(3,'Toimenpiteiden valitseminen'!$D$21:$O$50,9,FALSE))","v":-2300},{"$f":"IF(ISNA(VLOOKUP(3,'Toimenpiteiden valitseminen'!$D$21:$O$50,10,FALSE)),\"\",VLOOKUP(3,'Toimenpiteiden valitseminen'!$D$21:$O$50,10,FALSE))","v":30},0.27260869565217394,2300,5.4521739130434783,5.5023923444976077]
[{"$f":"IF(ISNA(VLOOKUP(4,'Toimenpiteiden valitseminen'!$D$21:$O$50,1,FALSE)),\"\",VLOOKUP(4,'Toimenpiteiden valitseminen'!$D$21:$O$50,1,FALSE))","v":4},{"$f":"IF(ISNA(VLOOKUP(4,'Toimenpiteiden valitseminen'!$D$21:$O$50,3,FALSE)),\"\",VLOOKUP(4,'Toimenpiteiden valitseminen'!$D$21:$O$50,3,FALSE))","v":0.11255324685591461},{"$f":"IF(ISNA(VLOOKUP(4,'Toimenpiteiden valitseminen'!$D$21:$O$50,4,FALSE)),\"\",VLOOKUP(4,'Toimenpiteiden valitseminen'!$D$21:$O$50,4,FALSE))","v":"YP1"},{"$f":"IF(ISNA(VLOOKUP(4,'Toimenpiteiden valitseminen'!$D$21:$O$50,6,FALSE)),\"\",VLOOKUP(4,'Toimenpiteiden valitseminen'!$D$21:$O$50,6,FALSE))","v":2628},{"$f":"IF(ISNA(VLOOKUP(4,'Toimenpiteiden valitseminen'!$D$21:$O$50,7,FALSE)),\"\",VLOOKUP(4,'Toimenpiteiden valitseminen'!$D$21:$O$50,7,FALSE))","v":-6},{"$f":"IF(ISNA(VLOOKUP(4,'Toimenpiteiden valitseminen'!$D$21:$O$50,8,FALSE)),\"\",VLOOKUP(4,'Toimenpiteiden valitseminen'!$D$21:$O$50,8,FALSE))","v":0},6,{"$f":"IF(ISNA(VLOOKUP(4,'Toimenpiteiden valitseminen'!$D$21:$O$50,9,FALSE)),\"\",VLOOKUP(4,'Toimenpiteiden valitseminen'!$D$21:$O$50,9,FALSE))","v":-300},{"$f":"IF(ISNA(VLOOKUP(4,'Toimenpiteiden valitseminen'!$D$21:$O$50,10,FALSE)),\"\",VLOOKUP(4,'Toimenpiteiden valitseminen'!$D$21:$O$50,10,FALSE))","v":40},0.438,300,8.76,4.5662100456621006]
[{"$f":"IF(ISNA(VLOOKUP(5,'Toimenpiteiden valitseminen'!$D$21:$O$50,1,FALSE)),\"\",VLOOKUP(5,'Toimenpiteiden valitseminen'!$D$21:$O$50,1,FALSE))","v":5},{"$f":"IF(ISNA(VLOOKUP(5,'Toimenpiteiden valitseminen'!$D$21:$O$50,3,FALSE)),\"\",VLOOKUP(5,'Toimenpiteiden valitseminen'!$D$21:$O$50,3,FALSE))","v":0.11076264665508979},{"$f":"IF(ISNA(VLOOKUP(5,'Toimenpiteiden valitseminen'!$D$21:$O$50,4,FALSE)),\"\",VLOOKUP(5,'Toimenpiteiden valitseminen'!$D$21:$O$50,4,FALSE))","v":"IV1"},{"$f":"IF(ISNA(VLOOKUP(5,'Toimenpiteiden valitseminen'!$D$21:$O$50,6,FALSE)),\"\",VLOOKUP(5,'Toimenpiteiden valitseminen'!$D$21:$O$50,6,FALSE))","v":78400},{"$f":"IF(ISNA(VLOOKUP(5,'Toimenpiteiden valitseminen'!$D$21:$O$50,7,FALSE)),\"\",VLOOKUP(5,'Toimenpiteiden valitseminen'!$D$21:$O$50,7,FALSE))","v":-259},{"$f":"IF(ISNA(VLOOKUP(5,'Toimenpiteiden valitseminen'!$D$21:$O$50,8,FALSE)),\"\",VLOOKUP(5,'Toimenpiteiden valitseminen'!$D$21:$O$50,8,FALSE))","v":38.6},220.4,{"$f":"IF(ISNA(VLOOKUP(5,'Toimenpiteiden valitseminen'!$D$21:$O$50,9,FALSE)),\"\",VLOOKUP(5,'Toimenpiteiden valitseminen'!$D$21:$O$50,9,FALSE))","v":-9072},{"$f":"IF(ISNA(VLOOKUP(5,'Toimenpiteiden valitseminen'!$D$21:$O$50,10,FALSE)),\"\",VLOOKUP(5,'Toimenpiteiden valitseminen'!$D$21:$O$50,10,FALSE))","v":30},0.35571687840290384,9072,8.6419753086419746,3.4714285714285715]
[{"$f":"IF(ISNA(VLOOKUP(6,'Toimenpiteiden valitseminen'!$D$21:$O$50,1,FALSE)),\"\",VLOOKUP(6,'Toimenpiteiden valitseminen'!$D$21:$O$50,1,FALSE))","v":6},{"$f":"IF(ISNA(VLOOKUP(6,'Toimenpiteiden valitseminen'!$D$21:$O$50,3,FALSE)),\"\",VLOOKUP(6,'Toimenpiteiden valitseminen'!$D$21:$O$50,3,FALSE))","v":8.4838772415913144E-2},{"$f":"IF(ISNA(VLOOKUP(6,'Toimenpiteiden valitseminen'!$D$21:$O$50,4,FALSE)),\"\",VLOOKUP(6,'Toimenpiteiden valitseminen'!$D$21:$O$50,4,FALSE))","v":"US1"},{"$f":"IF(ISNA(VLOOKUP(6,'Toimenpiteiden valitseminen'!$D$21:$O$50,6,FALSE)),\"\",VLOOKUP(6,'Toimenpiteiden valitseminen'!$D$21:$O$50,6,FALSE))","v":5100},{"$f":"IF(ISNA(VLOOKUP(6,'Toimenpiteiden valitseminen'!$D$21:$O$50,7,FALSE)),\"\",VLOOKUP(6,'Toimenpiteiden valitseminen'!$D$21:$O$50,7,FALSE))","v":-9},{"$f":"IF(ISNA(VLOOKUP(6,'Toimenpiteiden valitseminen'!$D$21:$O$50,8,FALSE)),\"\",VLOOKUP(6,'Toimenpiteiden valitseminen'!$D$21:$O$50,8,FALSE))","v":0},9,{"$f":"IF(ISNA(VLOOKUP(6,'Toimenpiteiden valitseminen'!$D$21:$O$50,9,FALSE)),\"\",VLOOKUP(6,'Toimenpiteiden valitseminen'!$D$21:$O$50,9,FALSE))","v":-450},{"$f":"IF(ISNA(VLOOKUP(6,'Toimenpiteiden valitseminen'!$D$21:$O$50,10,FALSE)),\"\",VLOOKUP(6,'Toimenpiteiden valitseminen'!$D$21:$O$50,10,FALSE))","v":40},0.56666666666666665,450,11.333333333333334,3.5294117647058822]
[{"$f":"IF(ISNA(VLOOKUP(7,'Toimenpiteiden valitseminen'!$D$21:$O$50,1,FALSE)),\"\",VLOOKUP(7,'Toimenpiteiden valitseminen'!$D$21:$O$50,1,FALSE))","v":7},{"$f":"IF(ISNA(VLOOKUP(7,'Toimenpiteiden valitseminen'!$D$21:$O$50,3,FALSE)),\"\",VLOOKUP(7,'Toimenpiteiden valitseminen'!$D$21:$O$50,3,FALSE))","v":7.4878886376319134E-2},{"$f":"IF(ISNA(VLOOKUP(7,'Toimenpiteiden valitseminen'!$D$21:$O$50,4,FALSE)),\"\",VLOOKUP(7,'Toimenpiteiden valitseminen'!$D$21:$O$50,4,FALSE))","v":"IV2"},{"$f":"IF(ISNA(VLOOKUP(7,'Toimenpiteiden valitseminen'!$D$21:$O$50,6,FALSE)),\"\",VLOOKUP(7,'Toimenpiteiden valitseminen'!$D$21:$O$50,6,FALSE))","v":98000},{"$f":"IF(ISNA(VLOOKUP(7,'Toimenpiteiden valitseminen'!$D$21:$O$50,7,FALSE)),\"\",VLOOKUP(7,'Toimenpiteiden valitseminen'!$D$21:$O$50,7,FALSE))","v":-259},{"$f":"IF(ISNA(VLOOKUP(7,'Toimenpiteiden valitseminen'!$D$21:$O$50,8,FALSE)),\"\",VLOOKUP(7,'Toimenpiteiden valitseminen'!$D$21:$O$50,8,FALSE))","v":38.6},220.4,{"$f":"IF(ISNA(VLOOKUP(7,'Toimenpiteiden valitseminen'!$D$21:$O$50,9,FALSE)),\"\",VLOOKUP(7,'Toimenpiteiden valitseminen'!$D$21:$O$50,9,FALSE))","v":-8288},{"$f":"IF(ISNA(VLOOKUP(7,'Toimenpiteiden valitseminen'!$D$21:$O$50,10,FALSE)),\"\",VLOOKUP(7,'Toimenpiteiden valitseminen'!$D$21:$O$50,10,FALSE))","v":30},0.44464609800362975,8288,11.824324324324325,2.5371428571428569]
[{"$f":"IF(ISNA(VLOOKUP(8,'Toimenpiteiden valitseminen'!$D$21:$O$50,1,FALSE)),\"\",VLOOKUP(8,'Toimenpiteiden valitseminen'!$D$21:$O$50,1,FALSE))","v":8},{"$f":"IF(ISNA(VLOOKUP(8,'Toimenpiteiden valitseminen'!$D$21:$O$50,3,FALSE)),\"\",VLOOKUP(8,'Toimenpiteiden valitseminen'!$D$21:$O$50,3,FALSE))","v":2.0663177460476936E-2},{"$f":"IF(ISNA(VLOOKUP(8,'Toimenpiteiden valitseminen'!$D$21:$O$50,4,FALSE)),\"\",VLOOKUP(8,'Toimenpiteiden valitseminen'!$D$21:$O$50,4,FALSE))","v":"YP2"},{"$f":"IF(ISNA(VLOOKUP(8,'Toimenpiteiden valitseminen'!$D$21:$O$50,6,FALSE)),\"\",VLOOKUP(8,'Toimenpiteiden valitseminen'!$D$21:$O$50,6,FALSE))","v":5408},{"$f":"IF(ISNA(VLOOKUP(8,'Toimenpiteiden valitseminen'!$D$21:$O$50,7,FALSE)),\"\",VLOOKUP(8,'Toimenpiteiden valitseminen'!$D$21:$O$50,7,FALSE))","v":-4},{"$f":"IF(ISNA(VLOOKUP(8,'Toimenpiteiden valitseminen'!$D$21:$O$50,8,FALSE)),\"\",VLOOKUP(8,'Toimenpiteiden valitseminen'!$D$21:$O$50,8,FALSE))","v":0},4,{"$f":"IF(ISNA(VLOOKUP(8,'Toimenpiteiden valitseminen'!$D$21:$O$50,9,FALSE)),\"\",VLOOKUP(8,'Toimenpiteiden valitseminen'!$D$21:$O$50,9,FALSE))","v":-200},{"$f":"IF(ISNA(VLOOKUP(8,'Toimenpiteiden valitseminen'!$D$21:$O$50,10,FALSE)),\"\",VLOOKUP(8,'Toimenpiteiden valitseminen'!$D$21:$O$50,10,FALSE))","v":40},1.3520000000000001,200,27.04,1.4792899408284024]
[{"$f":"IF(ISNA(VLOOKUP(9,'Toimenpiteiden valitseminen'!$D$21:$O$50,1,FALSE)),\"\",VLOOKUP(9,'Toimenpiteiden valitseminen'!$D$21:$O$50,1,FALSE))","v":""},{"$f":"IF(ISNA(VLOOKUP(9,'Toimenpiteiden valitseminen'!$D$21:$O$50,3,FALSE)),\"\",VLOOKUP(9,'Toimenpiteiden valitseminen'!$D$21:$O$50,3,FALSE))","v":""},{"$f":"IF(ISNA(VLOOKUP(9,'Toimenpiteiden valitseminen'!$D$21:$O$50,4,FALSE)),\"\",VLOOKUP(9,'Toimenpiteiden valitseminen'!$D$21:$O$50,4,FALSE))","v":""},{"$f":"IF(ISNA(VLOOKUP(9,'Toimenpiteiden valitseminen'!$D$21:$O$50,6,FALSE)),\"\",VLOOKUP(9,'Toimenpiteiden valitseminen'!$D$21:$O$50,6,FALSE))","v":""},{"$f":"IF(ISNA(VLOOKUP(9,'Toimenpiteiden valitseminen'!$D$21:$O$50,7,FALSE)),\"\",VLOOKUP(9,'Toimenpiteiden valitseminen'!$D$21:$O$50,7,FALSE))","v":""},{"$f":"IF(ISNA(VLOOKUP(9,'Toimenpiteiden valitseminen'!$D$21:$O$50,8,FALSE)),\"\",VLOOKUP(9,'Toimenpiteiden valitseminen'!$D$21:$O$50,8,FALSE))","v":""},"",{"$f":"IF(ISNA(VLOOKUP(9,'Toimenpiteiden valitseminen'!$D$21:$O$50,9,FALSE)),\"\",VLOOKUP(9,'Toimenpiteiden valitseminen'!$D$21:$O$50,9,FALSE))","v":""},{"$f":"IF(ISNA(VLOOKUP(9,'Toimenpiteiden valitseminen'!$D$21:$O$50,10,FALSE)),\"\",VLOOKUP(9,'Toimenpiteiden valitseminen'!$D$21:$O$50,10,FALSE))","v":""},"",{"$error":"#VALUE!"},{"$error":"#VALUE!"},{"$error":"#VALUE!"}]
[{"$f":"IF(ISNA(VLOOKUP(10,'Toimenpiteiden valitseminen'!$D$21:$O$50,1,FALSE)),\"\",VLOOKUP(10,'Toimenpiteiden valitseminen'!$D$21:$O$50,1,FALSE))","v":""},{"$f":"IF(ISNA(VLOOKUP(10,'Toimenpiteiden valitseminen'!$D$21:$O$50,3,FALSE)),\"\",VLOOKUP(10,'Toimenpiteiden valitseminen'!$D$21:$O$50,3,FALSE))","v":""},{"$f":"IF(ISNA(VLOOKUP(10,'Toimenpiteiden valitseminen'!$D$21:$O$50,4,FALSE)),\"\",VLOOKUP(10,'Toimenpiteiden valitseminen'!$D$21:$O$50,4,FALSE))","v":""},{"$f":"IF(ISNA(VLOOKUP(10,'Toimenpiteiden valitseminen'!$D$21:$O$50,6,FALSE)),\"\",VLOOKUP(10,'Toimenpiteiden valitseminen'!$D$21:$O$50,6,FALSE))","v":""},{"$f":"IF(ISNA(VLOOKUP(10,'Toimenpiteiden valitseminen'!$D$21:$O$50,7,FALSE)),\"\",VLOOKUP(10,'Toimenpiteiden valitseminen'!$D$21:$O$50,7,FALSE))","v":""},{"$f":"IF(ISNA(VLOOKUP(10,'Toimenpiteiden valitseminen'!$D$21:$O$50,8,FALSE)),\"\",VLOOKUP(10,'Toimenpiteiden valitseminen'!$D$21:$O$50,8,FALSE))","v":""},"",{"$f":"IF(ISNA(VLOOKUP(10,'Toimenpiteiden valitseminen'!$D$21:$O$50,9,FALSE)),\"\",VLOOKUP(10,'Toimenpiteiden valitseminen'!$D$21:$O$50,9,FALSE))","v":""},{"$f":"IF(ISNA(VLOOKUP(10,'Toimenpiteiden valitseminen'!$D$21:$O$50,10,FALSE)),\"\",VLOOKUP(10,'Toimenpiteiden valitseminen'!$D$21:$O$50,10,FALSE))","v":""},"",{"$error":"#VALUE!"},{"$error":"#VALUE!"},{"$error":"#VALUE!"}]
[{"$f":"IF(ISNA(VLOOKUP(11,'Toimenpiteiden valitseminen'!$D$21:$O$50,1,FALSE)),\"\",VLOOKUP(11,'Toimenpiteiden valitseminen'!$D$21:$O$50,1,FALSE))","v":""},{"$f":"IF(ISNA(VLOOKUP(11,'Toimenpiteiden valitseminen'!$D$21:$O$50,3,FALSE)),\"\",VLOOKUP(11,'Toimenpiteiden valitseminen'!$D$21:$O$50,3,FALSE))","v":""},{"$f":"IF(ISNA(VLOOKUP(11,'Toimenpiteiden valitseminen'!$D$21:$O$50,4,FALSE)),\"\",VLOOKUP(11,'Toimenpiteiden valitseminen'!$D$21:$O$50,4,FALSE))","v":""},{"$f":"IF(ISNA(VLOOKUP(11,'Toimenpiteiden valitseminen'!$D$21:$O$50,6,FALSE)),\"\",VLOOKUP(11,'Toimenpiteiden valitseminen'!$D$21:$O$50,6,FALSE))","v":""},{"$f":"IF(ISNA(VLOOKUP(11,'Toimenpiteiden valitseminen'!$D$21:$O$50,7,FALSE)),\"\",VLOOKUP(11,'Toimenpiteiden valitseminen'!$D$21:$O$50,7,FALSE))","v":""},{"$f":"IF(ISNA(VLOOKUP(11,'Toimenpiteiden valitseminen'!$D$21:$O$50,8,FALSE)),\"\",VLOOKUP(11,'Toimenpiteiden valitseminen'!$D$21:$O$50,8,FALSE))","v":""},"",{"$f":"IF(ISNA(VLOOKUP(11,'Toimenpiteiden valitseminen'!$D$21:$O$50,9,FALSE)),\"\",VLOOKUP(11,'Toimenpiteiden valitseminen'!$D$21:$O$50,9,FALSE))","v":""},{"$f":"IF(ISNA(VLOOKUP(11,'Toimenpiteiden valitseminen'!$D$21:$O$50,10,FALSE)),\"\",VLOOKUP(11,'Toimenpiteiden valitseminen'!$D$21:$O$50,10,FALSE))","v":""},"",{"$error":"#VALUE!"},{"$error":"#VALUE!"},{"$error":"#VALUE!"}]
[{"$f":"IF(ISNA(VLOOKUP(12,'Toimenpiteiden valitseminen'!$D$21:$O$50,1,FALSE)),\"\",VLOOKUP(12,'Toimenpiteiden valitseminen'!$D$21:$O$50,1,FALSE))","v":""},{"$f":"IF(ISNA(VLOOKUP(12,'Toimenpiteiden valitseminen'!$D$21:$O$50,3,FALSE)),\"\",VLOOKUP(12,'Toimenpiteiden valitseminen'!$D$21:$O$50,3,FALSE))","v":""},{"$f":"IF(ISNA(VLOOKUP(12,'Toimenpiteiden valitseminen'!$D$21:$O$50,4,FALSE)),\"\",VLOOKUP(12,'Toimenpiteiden valitseminen'!$D$21:$O$50,4,FALSE))","v":""},{"$f":"IF(ISNA(VLOOKUP(12,'Toimenpiteiden valitseminen'!$D$21:$O$50,6,FALSE)),\"\",VLOOKUP(12,'Toimenpiteiden valitseminen'!$D$21:$O$50,6,FALSE))","v":""},{"$f":"IF(ISNA(VLOOKUP(12,'Toimenpiteiden valitseminen'!$D$21:$O$50,7,FALSE)),\"\",VLOOKUP(12,'Toimenpiteiden valitseminen'!$D$21:$O$50,7,FALSE))","v":""},{"$f":"IF(ISNA(VLOOKUP(12,'Toimenpiteiden valitseminen'!$D$21:$O$50,8,FALSE)),\"\",VLOOKUP(12,'Toimenpiteiden valitseminen'!$D$21:$O$50,8,FALSE))","v":""},"",{"$f":"IF(ISNA(VLOOKUP(12,'Toimenpiteiden valitseminen'!$D$21:$O$50,9,FALSE)),\"\",VLOOKUP(12,'Toimenpiteiden valitseminen'!$D$21:$O$50,9,FALSE))","v":""},{"$f":"IF(ISNA(VLOOKUP(12,'Toimenpiteiden valitseminen'!$D$21:$O$50,10,FALSE)),\"\",VLOOKUP(12,'Toimenpiteiden valitseminen'!$D$21:$O$50,10,FALSE))","v":""},"",{"$error":"#VALUE!"},{"$error":"#VALUE!"},{"$error":"#VALUE!"}]
[{"$f":"IF(ISNA(VLOOKUP(13,'Toimenpiteiden valitseminen'!$D$21:$O$50,1,FALSE)),\"\",VLOOKUP(13,'Toimenpiteiden valitseminen'!$D$21:$O$50,1,FALSE))","v":""},{"$f":"IF(ISNA(VLOOKUP(13,'Toimenpiteiden valitseminen'!$D$21:$O$50,3,FALSE)),\"\",VLOOKUP(13,'Toimenpiteiden valitseminen'!$D$21:$O$50,3,FALSE))","v":""},{"$f":"IF(ISNA(VLOOKUP(13,'Toimenpiteiden valitseminen'!$D$21:$O$50,4,FALSE)),\"\",VLOOKUP(13,'Toimenpiteiden valitseminen'!$D$21:$O$50,4,FALSE))","v":""},{"$f":"IF(ISNA(VLOOKUP(13,'Toimenpiteiden valitseminen'!$D$21:$O$50,6,FALSE)),\"\",VLOOKUP(13,'Toimenpiteiden valitseminen'!$D$21:$O$50,6,FALSE))","v":""},{"$f":"IF(ISNA(VLOOKUP(13,'Toimenpiteiden valitseminen'!$D$21:$O$50,7,FALSE)),\"\",VLOOKUP(13,'Toimenpiteiden valitseminen'!$D$21:$O$50,7,FALSE))","v":""},{"$f":"IF(ISNA(VLOOKUP(13,'Toimenpiteiden valitseminen'!$D$21:$O$50,8,FALSE)),\"\",VLOOKUP(13,'Toimenpiteiden valitseminen'!$D$21:$O$50,8,FALSE))","v":""},"",{"$f":"IF(ISNA(VLOOKUP(13,'Toimenpiteiden valitseminen'!$D$21:$O$50,9,FALSE)),\"\",VLOOKUP(13,'Toimenpiteiden valitseminen'!$D$21:$O$50,9,FALSE))","v":""},{"$f":"IF(ISNA(VLOOKUP(13,'Toimenpiteiden valitseminen'!$D$21:$O$50,10,FALSE)),\"\",VLOOKUP(13,'Toimenpiteiden valitseminen'!$D$21:$O$50,10,FALSE))","v":""},"",{"$error":"#VALUE!"},{"$error":"#VALUE!"},{"$error":"#VALUE!"}]
[{"$f":"IF(ISNA(VLOOKUP(14,'Toimenpiteiden valitseminen'!$D$21:$O$50,1,FALSE)),\"\",VLOOKUP(14,'Toimenpiteiden valitseminen'!$D$21:$O$50,1,FALSE))","v":""},{"$f":"IF(ISNA(VLOOKUP(14,'Toimenpiteiden valitseminen'!$D$21:$O$50,3,FALSE)),\"\",VLOOKUP(14,'Toimenpiteiden valitseminen'!$D$21:$O$50,3,FALSE))","v":""},{"$f":"IF(ISNA(VLOOKUP(14,'Toimenpiteiden valitseminen'!$D$21:$O$50,4,FALSE)),\"\",VLOOKUP(14,'Toimenpiteiden valitseminen'!$D$21:$O$50,4,FALSE))","v":""},{"$f":"IF(ISNA(VLOOKUP(14,'Toimenpiteiden valitseminen'!$D$21:$O$50,6,FALSE)),\"\",VLOOKUP(14,'Toimenpiteiden valitseminen'!$D$21:$O$50,6,FALSE))","v":""},{"$f":"IF(ISNA(VLOOKUP(14,'Toimenpiteiden valitseminen'!$D$21:$O$50,7,FALSE)),\"\",VLOOKUP(14,'Toimenpiteiden valitseminen'!$D$21:$O$50,7,FALSE))","v":""},{"$f":"IF(ISNA(VLOOKUP(14,'Toimenpiteiden valitseminen'!$D$21:$O$50,8,FALSE)),\"\",VLOOKUP(14,'Toimenpiteiden valitseminen'!$D$21:$O$50,8,FALSE))","v":""},"",{"$f":"IF(ISNA(VLOOKUP(14,'Toimenpiteiden valitseminen'!$D$21:$O$50,9,FALSE)),\"\",VLOOKUP(14,'Toimenpiteiden valitseminen'!$D$21:$O$50,9,FALSE))","v":""},{"$f":"IF(ISNA(VLOOKUP(14,'Toimenpiteiden valitseminen'!$D$21:$O$50,10,FALSE)),\"\",VLOOKUP(14,'Toimenpiteiden valitseminen'!$D$21:$O$50,10,FALSE))","v":""},"",{"$error":"#VALUE!"},{"$error":"#VALUE!"},{"$error":"#VALUE!"}]
[{"$f":"IF(ISNA(VLOOKUP(15,'Toimenpiteiden valitseminen'!$D$21:$O$50,1,FALSE)),\"\",VLOOKUP(15,'Toimenpiteiden valitseminen'!$D$21:$O$50,1,FALSE))","v":""},{"$f":"IF(ISNA(VLOOKUP(15,'Toimenpiteiden valitseminen'!$D$21:$O$50,3,FALSE)),\"\",VLOOKUP(15,'Toimenpiteiden valitseminen'!$D$21:$O$50,3,FALSE))","v":""},{"$f":"IF(ISNA(VLOOKUP(15,'Toimenpiteiden valitseminen'!$D$21:$O$50,4,FALSE)),\"\",VLOOKUP(15,'Toimenpiteiden valitseminen'!$D$21:$O$50,4,FALSE))","v":""},{"$f":"IF(ISNA(VLOOKUP(15,'Toimenpiteiden valitseminen'!$D$21:$O$50,6,FALSE)),\"\",VLOOKUP(15,'Toimenpiteiden valitseminen'!$D$21:$O$50,6,FALSE))","v":""},{"$f":"IF(ISNA(VLOOKUP(15,'Toimenpiteiden valitseminen'!$D$21:$O$50,7,FALSE)),\"\",VLOOKUP(15,'Toimenpiteiden valitseminen'!$D$21:$O$50,7,FALSE))","v":""},{"$f":"IF(ISNA(VLOOKUP(15,'Toimenpiteiden valitseminen'!$D$21:$O$50,8,FALSE)),\"\",VLOOKUP(15,'Toimenpiteiden valitseminen'!$D$21:$O$50,8,FALSE))","v":""},"",{"$f":"IF(ISNA(VLOOKUP(15,'Toimenpiteiden valitseminen'!$D$21:$O$50,9,FALSE)),\"\",VLOOKUP(15,'Toimenpiteiden valitseminen'!$D$21:$O$50,9,FALSE))","v":""},{"$f":"IF(ISNA(VLOOKUP(15,'Toimenpiteiden valitseminen'!$D$21:$O$50,10,FALSE)),\"\",VLOOKUP(15,'Toimenpiteiden valitseminen'!$D$21:$O$50,10,FALSE))","v":""},"",{"$error":"#VALUE!"},{"$error":"#VALUE!"},{"$error":"#VALUE!"}]
[{"$f":"IF(ISNA(VLOOKUP(16,'Toimenpiteiden valitseminen'!$D$21:$O$50,1,FALSE)),\"\",VLOOKUP(16,'Toimenpiteiden valitseminen'!$D$21:$O$50,1,FALSE))","v":""},{"$f":"IF(ISNA(VLOOKUP(16,'Toimenpiteiden valitseminen'!$D$21:$O$50,3,FALSE)),\"\",VLOOKUP(16,'Toimenpiteiden valitseminen'!$D$21:$O$50,3,FALSE))","v":""},{"$f":"IF(ISNA(VLOOKUP(16,'Toimenpiteiden valitseminen'!$D$21:$O$50,4,FALSE)),\"\",VLOOKUP(16,'Toimenpiteiden valitseminen'!$D$21:$O$50,4,FALSE))","v":""},{"$f":"IF(ISNA(VLOOKUP(16,'Toimenpiteiden valitseminen'!$D$21:$O$50,6,FALSE)),\"\",VLOOKUP(16,'Toimenpiteiden valitseminen'!$D$21:$O$50,6,FALSE))","v":""},{"$f":"IF(ISNA(VLOOKUP(16,'Toimenpiteiden valitseminen'!$D$21:$O$50,7,FALSE)),\"\",VLOOKUP(16,'Toimenpiteiden valitseminen'!$D$21:$O$50,7,FALSE))","v":""},{"$f":"IF(ISNA(VLOOKUP(16,'Toimenpiteiden valitseminen'!$D$21:$O$50,8,FALSE)),\"\",VLOOKUP(16,'Toimenpiteiden valitseminen'!$D$21:$O$50,8,FALSE))","v":""},"",{"$f":"IF(ISNA(VLOOKUP(16,'Toimenpiteiden valitseminen'!$D$21:$O$50,9,FALSE)),\"\",VLOOKUP(16,'Toimenpiteiden valitseminen'!$D$21:$O$50,9,FALSE))","v":""},{"$f":"IF(ISNA(VLOOKUP(16,'Toimenpiteiden valitseminen'!$D$21:$O$50,10,FALSE)),\"\",VLOOKUP(16,'Toimenpiteiden valitseminen'!$D$21:$O$50,10,FALSE))","v":""},"",{"$error":"#VALUE!"},{"$error":"#VALUE!"},{"$error":"#VALUE!"}]
[{"$f":"IF(ISNA(VLOOKUP(17,'Toimenpiteiden valitseminen'!$D$21:$O$50,1,FALSE)),\"\",VLOOKUP(17,'Toimenpiteiden valitseminen'!$D$21:$O$50,1,FALSE))","v":""},{"$f":"IF(ISNA(VLOOKUP(17,'Toimenpiteiden valitseminen'!$D$21:$O$50,3,FALSE)),\"\",VLOOKUP(17,'Toimenpiteiden valitseminen'!$D$21:$O$50,3,FALSE))","v":""},{"$f":"IF(ISNA(VLOOKUP(17,'Toimenpiteiden valitseminen'!$D$21:$O$50,4,FALSE)),\"\",VLOOKUP(17,'Toimenpiteiden valitseminen'!$D$21:$O$50,4,FALSE))","v":""},{"$f":"IF(ISNA(VLOOKUP(17,'Toimenpiteiden valitseminen'!$D$21:$O$50,6,FALSE)),\"\",VLOOKUP(17,'Toimenpiteiden valitseminen'!$D$21:$O$50,6,FALSE))","v":""},{"$f":"IF(ISNA(VLOOKUP(17,'Toimenpiteiden valitseminen'!$D$21:$O$50,7,FALSE)),\"\",VLOOKUP(17,'Toimenpiteiden valitseminen'!$D$21:$O$50,7,FALSE))","v":""},{"$f":"IF(ISNA(VLOOKUP(17,'Toimenpiteiden valitseminen'!$D$21:$O$50,8,FALSE)),\"\",VLOOKUP(17,'Toimenpiteiden valitseminen'!$D$21:$O$50,8,FALSE))","v":""},"",{"$f":"IF(ISNA(VLOOKUP(17,'Toimenpiteiden valitseminen'!$D$21:$O$50,9,FALSE)),\"\",VLOOKUP(17,'Toimenpiteiden valitseminen'!$D$21:$O$50,9,FALSE))","v":""},{"$f":"IF(ISNA(VLOOKUP(17,'Toimenpiteiden valitseminen'!$D$21:$O$50,10,FALSE)),\"\",VLOOKUP(17,'Toimenpiteiden valitseminen'!$D$21:$O$50,10,FALSE))","v":""},"",{"$error":"#VALUE!"},{"$error":"#VALUE!"},{"$error":"#VALUE!"}]
[]
[]
["VALINTA-\nJÄRJESTYS","TAKAISIN-\nMAKSU-\nAIKA","TOIMENPITEEN\nTUNNUS","KUSTANNUSTEN\nMUUTOS\n[€]","LÄMMITYSENERGIAN \nKULUTUKSEN\nMUUTOS [MWh/a]","SÄHKÖENERGIAN\nKULUTUKSEN\nMUUTOS [MWh/a]","VUOSITTAINEN\nKOKONAIS-\nENERGIANSÄÄSTÖ\n[MWh/a]","KUSTANNUSTEN VUOSIMUUTOS\n[€/a]","PITOAIKA\n[a]","KUSTANNUS /\nENERGIANSÄÄSTÖ\n[€/(kWh/a)]","KUSTANNUSTEN VUOSISÄÄSTÖT\n[€/a]"]
[{"$f":"IF(ISNA(VLOOKUP(1,'Toimenpiteiden valitseminen'!$B$21:$O$50,1,FALSE)),\"\",VLOOKUP(1,'Toimenpiteiden valitseminen'!$B$21:$O$50,1,FALSE))","v":1},{"$f":"IF(ISNA(VLOOKUP(1,'Toimenpiteiden valitseminen'!$B$21:$O$50,13,FALSE)),\"\",VLOOKUP(1,'Toimenpiteiden valitseminen'!$B$21:$O$50,13,FALSE))","v":4.1390289201379673},{"$f":"IF(ISNA(VLOOKUP(1,'Toimenpiteiden valitseminen'!$B$21:$O$50,6,FALSE)),\"\",VLOOKUP(1,'Toimenpiteiden valitseminen'!$B$21:$O$50,6,FALSE))","v":"VKM"},{"$f":"IF(ISNA(VLOOKUP(1,'Toimenpiteiden valitseminen'!$B$21:$O$50,8,FALSE)),\"\",VLOOKUP(1,'Toimenpiteiden valitseminen'!$B$21:$O$50,8,FALSE))","v":46800},{"$f":"IF(ISNA(VLOOKUP(1,'Toimenpiteiden valitseminen'!$B$21:$O$50,9,FALSE)),\"\",VLOOKUP(1,'Toimenpiteiden valitseminen'!$B$21:$O$50,9,FALSE))","v":-29},{"$f":"IF(ISNA(VLOOKUP(1,'Toimenpiteiden valitseminen'!$B$21:$O$50,10,FALSE)),\"\",VLOOKUP(1,'Toimenpiteiden valitseminen'!$B$21:$O$50,10,FALSE))","v":0},{"$f":"IF(AND(E92=\"\",F92=\"\"),\"\",-(E92+F92))","v":29},{"$f":"IF(ISNA(VLOOKUP(1,'Toimenpiteiden valitseminen'!$B$21:$O$50,11,FALSE)),\"\",VLOOKUP(1,'Toimenpiteiden valitseminen'!$B$21:$O$50,11,FALSE))","v":-11307},{"$f":"IF(ISNA(VLOOKUP(1,'Toimenpiteiden valitseminen'!$B$21:$O$50,12,FALSE)),\"\",VLOOKUP(1,'Toimenpiteiden valitseminen'!$B$21:$O$50,12,FALSE))","v":15},{"$f":"IF(AND(E92=\"\",F92=\"\"),\"\",D92/(1000*G92))","v":1.6137931034482758},{"$f":"-H92","v":11307}]
[{"$f":"IF(ISNA(VLOOKUP(2,'Toimenpiteiden valitseminen'!$B$21:$O$50,1,FALSE)),\"\",VLOOKUP(2,'Toimenpiteiden valitseminen'!$B$21:$O$50,1,FALSE))","v":2},{"$f":"IF(ISNA(VLOOKUP(2,'Toimenpiteiden valitseminen'!$B$21:$O$50,13,FALSE)),\"\",VLOOKUP(2,'Toimenpiteiden valitseminen'!$B$21:$O$50,13,FALSE))","v":4.830222222222222},{"$f":"IF(ISNA(VLOOKUP(2,'Toimenpiteiden valitseminen'!$B$21:$O$50,6,FALSE)),\"\",VLOOKUP(2,'Toimenpiteiden valitseminen'!$B$21:$O$50,6,FALSE))","v":"IKK2"},{"$f":"IF(ISNA(VLOOKUP(2,'Toimenpiteiden valitseminen'!$B$21:$O$50,8,FALSE)),\"\",VLOOKUP(2,'Toimenpiteiden valitseminen'!$B$21:$O$50,8,FALSE))","v":10868},{"$f":"IF(ISNA(VLOOKUP(2,'Toimenpiteiden valitseminen'!$B$21:$O$50,9,FALSE)),\"\",VLOOKUP(2,'Toimenpiteiden valitseminen'!$B$21:$O$50,9,FALSE))","v":-45},{"$f":"IF(ISNA(VLOOKUP(2,'Toimenpiteiden valitseminen'!$B$21:$O$50,10,FALSE)),\"\",VLOOKUP(2,'Toimenpiteiden valitseminen'!$B$21:$O$50,10,FALSE))","v":0},{"$f":"IF(AND(E93=\"\",F93=\"\"),\"\",-(E93+F93))","v":45},{"$f":"IF(ISNA(VLOOKUP(2,'Toimenpiteiden valitseminen'!$B$21:$O$50,11,FALSE)),\"\",VLOOKUP(2,'Toimenpiteiden valitseminen'!$B$21:$O$50,11,FALSE))","v":-2250},{"$f":"IF(ISNA(VLOOKUP(2,'Toimenpiteiden valitseminen'!$B$21:$O$50,12,FALSE)),\"\",VLOOKUP(2,'Toimenpiteiden valitseminen'!$B$21:$O$50,12,FALSE))","v":30},{"$f":"IF(AND(E93=\"\",F93=\"\"),\"\",D93/(1000*G93))","v":0.24151111111111112},{"$f":"-H93","v":2250}]
[{"$f":"IF(ISNA(VLOOKUP(3,'Toimenpiteiden valitseminen'!$B$21:$O$50,1,FALSE)),\"\",VLOOKUP(3,'Toimenpiteiden valitseminen'!$B$21:$O$50,1,FALSE))","v":3},{"$f":"IF(ISNA(VLOOKUP(3,'Toimenpiteiden valitseminen'!$B$21:$O$50,13,FALSE)),\"\",VLOOKUP(3,'Toimenpiteiden valitseminen'!$B$21:$O$50,13,FALSE))","v":5.4521739130434783},{"$f":"IF(ISNA(VLOOKUP(3,'Toimenpiteiden valitseminen'!$B$21:$O$50,6,FALSE)),\"\",VLOOKUP(3,'Toimenpiteiden valitseminen'!$B$21:$O$50,6,FALSE))","v":"IKK1"},{"$f":"IF(ISNA(VLOOKUP(3,'Toimenpiteiden valitseminen'!$B$21:$O$50,8,FALSE)),\"\",VLOOKUP(3,'Toimenpiteiden valitseminen'!$B$21:$O$50,8,FALSE))","v":12540},{"$f":"IF(ISNA(VLOOKUP(3,'Toimenpiteiden valitseminen'!$B$21:$O$50,9,FALSE)),\"\",VLOOKUP(3,'Toimenpiteiden valitseminen'!$B$21:$O$50,9,FALSE))","v":-46},{"$f":"IF(ISNA(VLOOKUP(3,'Toimenpiteiden valitseminen'!$B$21:$O$50,10,FALSE)),\"\",VLOOKUP(3,'Toimenpiteiden valitseminen'!$B$21:$O$50,10,FALSE))","v":0},{"$f":"IF(AND(E94=\"\",F94=\"\"),\"\",-(E94+F94))","v":46},{"$f":"IF(ISNA(VLOOKUP(3,'Toimenpiteiden valitseminen'!$B$21:$O$50,11,FALSE)),\"\",VLOOKUP(3,'Toimenpiteiden valitseminen'!$B$21:$O$50,11,FALSE))","v":-2300},{"$f":"IF(ISNA(VLOOKUP(3,'Toimenpiteiden valitseminen'!$B$21:$O$50,12,FALSE)),\"\",VLOOKUP(3,'Toimenpiteiden valitseminen'!$B$21:$O$50,12,FALSE))","v":30},0.27260869565217394,2300]
[{"$f":"IF(ISNA(VLOOKUP(4,'Toimenpiteiden valitseminen'!$B$21:$O$50,1,FALSE)),\"\",VLOOKUP(4,'Toimenpiteiden valitseminen'!$B$21:$O$50,1,FALSE))","v":4},{"$f":"IF(ISNA(VLOOKUP(4,'Toimenpiteiden valitseminen'!$B$21:$O$50,13,FALSE)),\"\",VLOOKUP(4,'Toimenpiteiden valitseminen'!$B$21:$O$50,13,FALSE))","v":8.6419753086419746},{"$f":"IF(ISNA(VLOOKUP(4,'Toimenpiteiden valitseminen'!$B$21:$O$50,6,FALSE)),\"\",VLOOKUP(4,'Toimenpiteiden valitseminen'!$B$21:$O$50,6,FALSE))","v":"IV1"},{"$f":"IF(ISNA(VLOOKUP(4,'Toimenpiteiden valitseminen'!$B$21:$O$50,8,FALSE)),\"\",VLOOKUP(4,'Toimenpiteiden valitseminen'!$B$21:$O$50,8,FALSE))","v":78400},{"$f":"IF(ISNA(VLOOKUP(4,'Toimenpiteiden valitseminen'!$B$21:$O$50,9,FALSE)),\"\",VLOOKUP(4,'Toimenpiteiden valitseminen'!$B$21:$O$50,9,FALSE))","v":-259},{"$f":"IF(ISNA(VLOOKUP(4,'Toimenpiteiden valitseminen'!$B$21:$O$50,10,FALSE)),\"\",VLOOKUP(4,'Toimenpiteiden valitseminen'!$B$21:$O$50,10,FALSE))","v":38.6},220.4,{"$f":"IF(ISNA(VLOOKUP(4,'Toimenpiteiden valitseminen'!$B$21:$O$50,11,FALSE)),\"\",VLOOKUP(4,'Toimenpiteiden valitseminen'!$B$21:$O$50,11,FALSE))","v":-9072},{"$f":"IF(ISNA(VLOOKUP(4,'Toimenpiteiden valitseminen'!$B$21:$O$50,12,FALSE)),\"\",VLOOKUP(4,'Toimenpiteiden valitseminen'!$B$21:$O$50,12,FALSE))","v":30},0.35571687840290384,9072]
[{"$f":"IF(ISNA(VLOOKUP(5,'Toimenpiteiden valitseminen'!$B$21:$O$50,1,FALSE)),\"\",VLOOKUP(5,'Toimenpiteiden valitseminen'!$B$21:$O$50,1,FALSE))","v":5},{"$f":"IF(ISNA(VLOOKUP(5,'Toimenpiteiden valitseminen'!$B$21:$O$50,13,FALSE)),\"\",VLOOKUP(5,'Toimenpiteiden valitseminen'!$B$21:$O$50,13,FALSE))","v":8.76},{"$f":"IF(ISNA(VLOOKUP(5,'Toimenpiteiden valitseminen'!$B$21:$O$50,6,FALSE)),\"\",VLOOKUP(5,'Toimenpiteiden valitseminen'!$B$21:$O$50,6,FALSE))","v":"YP1"},{"$f":"IF(ISNA(VLOOKUP(5,'Toimenpiteiden valitseminen'!$B$21:$O$50,8,FALSE)),\"\",VLOOKUP(5,'Toimenpiteiden valitseminen'!$B$21:$O$50,8,FALSE))","v":2628},{"$f":"IF(ISNA(VLOOKUP(5,'Toimenpiteiden valitseminen'!$B$21:$O$50,9,FALSE)),\"\",VLOOKUP(5,'Toimenpiteiden valitseminen'!$B$21:$O$50,9,FALSE))","v":-6},{"$f":"IF(ISNA(VLOOKUP(5,'Toimenpiteiden valitseminen'!$B$21:$O$50,10,FALSE)),\"\",VLOOKUP(5,'Toimenpiteiden valitseminen'!$B$21:$O$50,10,FALSE))","v":0},6,{"$f":"IF(ISNA(VLOOKUP(5,'Toimenpiteiden valitseminen'!$B$21:$O$50,11,FALSE)),\"\",VLOOKUP(5,'Toimenpiteiden valitseminen'!$B$21:$O$50,11,FALSE))","v":-300},{"$f":"IF(ISNA(VLOOKUP(5,'Toimenpiteiden valitseminen'!$B$21:$O$50,12,FALSE)),\"\",VLOOKUP(5,'Toimenpiteiden valitseminen'!$B$21:$O$50,12,FALSE))","v":40},0.438,300]
[{"$f":"IF(ISNA(VLOOKUP(6,'Toimenpiteiden valitseminen'!$B$21:$O$50,1,FALSE)),\"\",VLOOKUP(6,'Toimenpiteiden valitseminen'!$B$21:$O$50,1,FALSE))","v":6},{"$f":"IF(ISNA(VLOOKUP(6,'Toimenpiteiden valitseminen'!$B$21:$O$50,13,FALSE)),\"\",VLOOKUP(6,'Toimenpiteiden valitseminen'!$B$21:$O$50,13,FALSE))","v":11.333333333333334},{"$f":"IF(ISNA(VLOOKUP(6,'Toimenpiteiden valitseminen'!$B$21:$O$50,6,FALSE)),\"\",VLOOKUP(6,'Toimenpiteiden valitseminen'!$B$21:$O$50,6,FALSE))","v":"US1"},{"$f":"IF(ISNA(VLOOKUP(6,'Toimenpiteiden valitseminen'!$B$21:$O$50,8,FALSE)),\"\",VLOOKUP(6,'Toimenpiteiden valitseminen'!$B$21:$O$50,8,FALSE))","v":5100},{"$f":"IF(ISNA(VLOOKUP(6,'Toimenpiteiden valitseminen'!$B$21:$O$50,9,FALSE)),\"\",VLOOKUP(6,'Toimenpiteiden valitseminen'!$B$21:$O$50,9,FALSE))","v":-9},{"$f":"IF(ISNA(VLOOKUP(6,'Toimenpiteiden valitseminen'!$B$21:$O$50,10,FALSE)),\"\",VLOOKUP(6,'Toimenpiteiden valitseminen'!$B$21:$O$50,10,FALSE))","v":0},9,{"$f":"IF(ISNA(VLOOKUP(6,'Toimenpiteiden valitseminen'!$B$21:$O$50,11,FALSE)),\"\",VLOOKUP(6,'Toimenpiteiden valitseminen'!$B$21:$O$50,11,FALSE))","v":-450},{"$f":"IF(ISNA(VLOOKUP(6,'Toimenpiteiden valitseminen'!$B$21:$O$50,12,FALSE)),\"\",VLOOKUP(6,'Toimenpiteiden valitseminen'!$B$21:$O$50,12,FALSE))","v":40},0.56666666666666665,450]
[{"$f":"IF(ISNA(VLOOKUP(7,'Toimenpiteiden valitseminen'!$B$21:$O$50,1,FALSE)),\"\",VLOOKUP(7,'Toimenpiteiden valitseminen'!$B$21:$O$50,1,FALSE))","v":7},{"$f":"IF(ISNA(VLOOKUP(7,'Toimenpiteiden valitseminen'!$B$21:$O$50,13,FALSE)),\"\",VLOOKUP(7,'Toimenpiteiden valitseminen'!$B$21:$O$50,13,FALSE))","v":11.824324324324325},{"$f":"IF(ISNA(VLOOKUP(7,'Toimenpiteiden valitseminen'!$B$21:$O$50,6,FALSE)),\"\",VLOOKUP(7,'Toimenpiteiden valitseminen'!$B$21:$O$50,6,FALSE))","v":"IV2"},{"$f":"IF(ISNA(VLOOKUP(7,'Toimenpiteiden valitseminen'!$B$21:$O$50,8,FALSE)),\"\",VLOOKUP(7,'Toimenpiteiden valitseminen'!$B$21:$O$50,8,FALSE))","v":98000},{"$f":"IF(ISNA(VLOOKUP(7,'Toimenpiteiden valitseminen'!$B$21:$O$50,9,FALSE)),\"\",VLOOKUP(7,'Toimenpiteiden valitseminen'!$B$21:$O$50,9,FALSE))","v":-259},{"$f":"IF(ISNA(VLOOKUP(7,'Toimenpiteiden valitseminen'!$B$21:$O$50,10,FALSE)),\"\",VLOOKUP(7,'Toimenpiteiden valitseminen'!$B$21:$O$50,10,FALSE))","v":38.6},220.4,{"$f":"IF(ISNA(VLOOKUP(7,'Toimenpiteiden valitseminen'!$B$21:$O$50,11,FALSE)),\"\",VLOOKUP(7,'Toimenpiteiden valitseminen'!$B$21:$O$50,11,FALSE))","v":-8288},{"$f":"IF(ISNA(VLOOKUP(7,'Toimenpiteiden valitseminen'!$B$21:$O$50,12,FALSE)),\"\",VLOOKUP(7,'Toimenpiteiden valitseminen'!$B$21:$O$50,12,FALSE))","v":30},0.44464609800362975,8288]
[{"$f":"IF(ISNA(VLOOKUP(8,'Toimenpiteiden valitseminen'!$B$21:$O$50,1,FALSE)),\"\",VLOOKUP(8,'Toimenpiteiden valitseminen'!$B$21:$O$50,1,FALSE))","v":8},{"$f":"IF(ISNA(VLOOKUP(8,'Toimenpiteiden valitseminen'!$B$21:$O$50,13,FALSE)),\"\",VLOOKUP(8,'Toimenpiteiden valitseminen'!$B$21:$O$50,13,FALSE))","v":27.04},{"$f":"IF(ISNA(VLOOKUP(8,'Toimenpiteiden valitseminen'!$B$21:$O$50,6,FALSE)),\"\",VLOOKUP(8,'Toimenpiteiden valitseminen'!$B$21:$O$50,6,FALSE))","v":"YP2"},{"$f":"IF(ISNA(VLOOKUP(8,'Toimenpiteiden valitseminen'!$B$21:$O$50,8,FALSE)),\"\",VLOOKUP(8,'Toimenpiteiden valitseminen'!$B$21:$O$50,8,FALSE))","v":5408},{"$f":"IF(ISNA(VLOOKUP(8,'Toimenpiteiden valitseminen'!$B$21:$O$50,9,FALSE)),\"\",VLOOKUP(8,'Toimenpiteiden valitseminen'!$B$21:$O$50,9,FALSE))","v":-4},{"$f":"IF(ISNA(VLOOKUP(8,'Toimenpiteiden valitseminen'!$B$21:$O$50,10,FALSE)),\"\",VLOOKUP(8,'Toimenpiteiden valitseminen'!$B$21:$O$50,10,FALSE))","v":0},4,{"$f":"IF(ISNA(VLOOKUP(8,'Toimenpiteiden valitseminen'!$B$21:$O$50,11,FALSE)),\"\",VLOOKUP(8,'Toimenpiteiden valitseminen'!$B$21:$O$50,11,FALSE))","v":-200},{"$f":"IF(ISNA(VLOOKUP(8,'Toimenpiteiden valitseminen'!$B$21:$O$50,12,FALSE)),\"\",VLOOKUP(8,'Toimenpiteiden valitseminen'!$B$21:$O$50,12,FALSE))","v":40},1.3520000000000001,200]
[{"$f":"IF(ISNA(VLOOKUP(9,'Toimenpiteiden valitseminen'!$B$21:$O$50,1,FALSE)),\"\",VLOOKUP(9,'Toimenpiteiden valitseminen'!$B$21:$O$50,1,FALSE))","v":9},{"$f":"IF(ISNA(VLOOKUP(9,'Toimenpiteiden valitseminen'!$B$21:$O$50,13,FALSE)),\"\",VLOOKUP(9,'Toimenpiteiden valitseminen'!$B$21:$O$50,13,FALSE))","v":57.294117647058826},{"$f":"IF(ISNA(VLOOKUP(9,'Toimenpiteiden valitseminen'!$B$21:$O$50,6,FALSE)),\"\",VLOOKUP(9,'Toimenpiteiden valitseminen'!$B$21:$O$50,6,FALSE))","v":"US2"},{"$f":"IF(ISNA(VLOOKUP(9,'Toimenpiteiden valitseminen'!$B$21:$O$50,8,FALSE)),\"\",VLOOKUP(9,'Toimenpiteiden valitseminen'!$B$21:$O$50,8,FALSE))","v":48700},{"$f":"IF(ISNA(VLOOKUP(9,'Toimenpiteiden valitseminen'!$B$21:$O$50,9,FALSE)),\"\",VLOOKUP(9,'Toimenpiteiden valitseminen'!$B$21:$O$50,9,FALSE))","v":-17},{"$f":"IF(ISNA(VLOOKUP(9,'Toimenpiteiden valitseminen'!$B$21:$O$50,10,FALSE)),\"\",VLOOKUP(9,'Toimenpiteiden valitseminen'!$B$21:$O$50,10,FALSE))","v":0},17,{"$f":"IF(ISNA(VLOOKUP(9,'Toimenpiteiden valitseminen'!$B$21:$O$50,11,FALSE)),\"\",VLOOKUP(9,'Toimenpiteiden valitseminen'!$B$21:$O$50,11,FALSE))","v":-850},{"$f":"IF(ISNA(VLOOKUP(9,'Toimenpiteiden valitseminen'!$B$21:$O$50,12,FALSE)),\"\",VLOOKUP(9,'Toimenpiteiden valitseminen'!$B$21:$O$50,12,FALSE))","v":40},2.8647058823529412,850]
[{"$f":"IF(ISNA(VLOOKUP(10,'Toimenpiteiden valitseminen'!$B$21:$O$50,1,FALSE)),\"\",VLOOKUP(10,'Toimenpiteiden valitseminen'!$B$21:$O$50,1,FALSE))","v":""},{"$f":"IF(ISNA(VLOOKUP(10,'Toimenpiteiden valitseminen'!$B$21:$O$50,13,FALSE)),\"\",VLOOKUP(10,'Toimenpiteiden valitseminen'!$B$21:$O$50,13,FALSE))","v":""},{"$f":"IF(ISNA(VLOOKUP(10,'Toimenpiteiden valitseminen'!$B$21:$O$50,6,FALSE)),\"\",VLOOKUP(10,'Toimenpiteiden valitseminen'!$B$21:$O$50,6,FALSE))","v":""},{"$f":"IF(ISNA(VLOOKUP(10,'Toimenpiteiden valitseminen'!$B$21:$O$50,8,FALSE)),\"\",VLOOKUP(10,'Toimenpiteiden valitseminen'!$B$21:$O$50,8,FALSE))","v":""},{"$f":"IF(ISNA(VLOOKUP(10,'Toimenpiteiden valitseminen'!$B$21:$O$50,9,FALSE)),\"\",VLOOKUP(10,'Toimenpiteiden valitseminen'!$B$21:$O$50,9,FALSE))","v":""},{"$f":"IF(ISNA(VLOOKUP(10,'Toimenpiteiden valitseminen'!$B$21:$O$50,10,FALSE)),\"\",VLOOKUP(10,'Toimenpiteiden valitseminen'!$B$21:$O$50,10,FALSE))","v":""},"",{"$f":"IF(ISNA(VLOOKUP(10,'Toimenpiteiden valitseminen'!$B$21:$O$50,11,FALSE)),\"\",VLOOKUP(10,'Toimenpiteiden valitseminen'!$B$21:$O$50,11,FALSE))","v":""},{"$f":"IF(ISNA(VLOOKUP(10,'Toimenpiteiden valitseminen'!$B$21:$O$50,12,FALSE)),\"\",VLOOKUP(10,'Toimenpiteiden valitseminen'!$B$21:$O$50,12,FALSE))","v":""},"",{"$error":"#VALUE!"}]
[{"$f":"IF(ISNA(VLOOKUP(11,'Toimenpiteiden valitseminen'!$B$21:$O$50,1,FALSE)),\"\",VLOOKUP(11,'Toimenpiteiden valitseminen'!$B$21:$O$50,1,FALSE))","v":""},{"$f":"IF(ISNA(VLOOKUP(11,'Toimenpiteiden valitseminen'!$B$21:$O$50,13,FALSE)),\"\",VLOOKUP(11,'Toimenpiteiden valitseminen'!$B$21:$O$50,13,FALSE))","v":""},{"$f":"IF(ISNA(VLOOKUP(11,'Toimenpiteiden valitseminen'!$B$21:$O$50,6,FALSE)),\"\",VLOOKUP(11,'Toimenpiteiden valitseminen'!$B$21:$O$50,6,FALSE))","v":""},{"$f":"IF(ISNA(VLOOKUP(11,'Toimenpiteiden valitseminen'!$B$21:$O$50,8,FALSE)),\"\",VLOOKUP(11,'Toimenpiteiden valitseminen'!$B$21:$O$50,8,FALSE))","v":""},{"$f":"IF(ISNA(VLOOKUP(11,'Toimenpiteiden valitseminen'!$B$21:$O$50,9,FALSE)),\"\",VLOOKUP(11,'Toimenpiteiden valitseminen'!$B$21:$O$50,9,FALSE))","v":""},{"$f":"IF(ISNA(VLOOKUP(11,'Toimenpiteiden valitseminen'!$B$21:$O$50,10,FALSE)),\"\",VLOOKUP(11,'Toimenpiteiden valitseminen'!$B$21:$O$50,10,FALSE))","v":""},"",{"$f":"IF(ISNA(VLOOKUP(11,'Toimenpiteiden valitseminen'!$B$21:$O$50,11,FALSE)),\"\",VLOOKUP(11,'Toimenpiteiden valitseminen'!$B$21:$O$50,11,FALSE))","v":""},{"$f":"IF(ISNA(VLOOKUP(11,'Toimenpiteiden valitseminen'!$B$21:$O$50,12,FALSE)),\"\",VLOOKUP(11,'Toimenpiteiden valitseminen'!$B$21:$O$50,12,FALSE))","v":""},"",{"$error":"#VALUE!"}]
[{"$f":"IF(ISNA(VLOOKUP(12,'Toimenpiteiden valitseminen'!$B$21:$O$50,1,FALSE)),\"\",VLOOKUP(12,'Toimenpiteiden valitseminen'!$B$21:$O$50,1,FALSE))","v":""},{"$f":"IF(ISNA(VLOOKUP(12,'Toimenpiteiden valitseminen'!$B$21:$O$50,13,FALSE)),\"\",VLOOKUP(12,'Toimenpiteiden valitseminen'!$B$21:$O$50,13,FALSE))","v":""},{"$f":"IF(ISNA(VLOOKUP(12,'Toimenpiteiden valitseminen'!$B$21:$O$50,6,FALSE)),\"\",VLOOKUP(12,'Toimenpiteiden valitseminen'!$B$21:$O$50,6,FALSE))","v":""},{"$f":"IF(ISNA(VLOOKUP(12,'Toimenpiteiden valitseminen'!$B$21:$O$50,8,FALSE)),\"\",VLOOKUP(12,'Toimenpiteiden valitseminen'!$B$21:$O$50,8,FALSE))","v":""},{"$f":"IF(ISNA(VLOOKUP(12,'Toimenpiteiden valitseminen'!$B$21:$O$50,9,FALSE)),\"\",VLOOKUP(12,'Toimenpiteiden valitseminen'!$B$21:$O$50,9,FALSE))","v":""},{"$f":"IF(ISNA(VLOOKUP(12,'Toimenpiteiden valitseminen'!$B$21:$O$50,10,FALSE)),\"\",VLOOKUP(12,'Toimenpiteiden valitseminen'!$B$21:$O$50,10,FALSE))","v":""},"",{"$f":"IF(ISNA(VLOOKUP(12,'Toimenpiteiden valitseminen'!$B$21:$O$50,11,FALSE)),\"\",VLOOKUP(12,'Toimenpiteiden valitseminen'!$B$21:$O$50,11,FALSE))","v":""},{"$f":"IF(ISNA(VLOOKUP(12,'Toimenpiteiden valitseminen'!$B$21:$O$50,12,FALSE)),\"\",VLOOKUP(12,'Toimenpiteiden valitseminen'!$B$21:$O$50,12,FALSE))","v":""},"",{"$error":"#VALUE!"}]
[{"$f":"IF(ISNA(VLOOKUP(13,'Toimenpiteiden valitseminen'!$B$21:$O$50,1,FALSE)),\"\",VLOOKUP(13,'Toimenpiteiden valitseminen'!$B$21:$O$50,1,FALSE))","v":""},{"$f":"IF(ISNA(VLOOKUP(13,'Toimenpiteiden valitseminen'!$B$21:$O$50,13,FALSE)),\"\",VLOOKUP(13,'Toimenpiteiden valitseminen'!$B$21:$O$50,13,FALSE))","v":""},{"$f":"IF(ISNA(VLOOKUP(13,'Toimenpiteiden valitseminen'!$B$21:$O$50,6,FALSE)),\"\",VLOOKUP(13,'Toimenpiteiden valitseminen'!$B$21:$O$50,6,FALSE))","v":""},{"$f":"IF(ISNA(VLOOKUP(13,'Toimenpiteiden valitseminen'!$B$21:$O$50,8,FALSE)),\"\",VLOOKUP(13,'Toimenpiteiden valitseminen'!$B$21:$O$50,8,FALSE))","v":""},{"$f":"IF(ISNA(VLOOKUP(13,'Toimenpiteiden valitseminen'!$B$21:$O$50,9,FALSE)),\"\",VLOOKUP(13,'Toimenpiteiden valitseminen'!$B$21:$O$50,9,FALSE))","v":""},{"$f":"IF(ISNA(VLOOKUP(13,'Toimenpiteiden valitseminen'!$B$21:$O$50,10,FALSE)),\"\",VLOOKUP(13,'Toimenpiteiden valitseminen'!$B$21:$O$50,10,FALSE))","v":""},"",{"$f":"IF(ISNA(VLOOKUP(13,'Toimenpiteiden valitseminen'!$B$21:$O$50,11,FALSE)),\"\",VLOOKUP(13,'Toimenpiteiden valitseminen'!$B$21:$O$50,11,FALSE))","v":""},{"$f":"IF(ISNA(VLOOKUP(13,'Toimenpiteiden valitseminen'!$B$21:$O$50,12,FALSE)),\"\",VLOOKUP(13,'Toimenpiteiden valitseminen'!$B$21:$O$50,12,FALSE))","v":""},"",{"$error":"#VALUE!"}]
[{"$f":"IF(ISNA(VLOOKUP(14,'Toimenpiteiden valitseminen'!$B$21:$O$50,1,FALSE)),\"\",VLOOKUP(14,'Toimenpiteiden valitseminen'!$B$21:$O$50,1,FALSE))","v":""},{"$f":"IF(ISNA(VLOOKUP(14,'Toimenpiteiden valitseminen'!$B$21:$O$50,13,FALSE)),\"\",VLOOKUP(14,'Toimenpiteiden valitseminen'!$B$21:$O$50,13,FALSE))","v":""},{"$f":"IF(ISNA(VLOOKUP(14,'Toimenpiteiden valitseminen'!$B$21:$O$50,6,FALSE)),\"\",VLOOKUP(14,'Toimenpiteiden valitseminen'!$B$21:$O$50,6,FALSE))","v":""},{"$f":"IF(ISNA(VLOOKUP(14,'Toimenpiteiden valitseminen'!$B$21:$O$50,8,FALSE)),\"\",VLOOKUP(14,'Toimenpiteiden valitseminen'!$B$21:$O$50,8,FALSE))","v":""},{"$f":"IF(ISNA(VLOOKUP(14,'Toimenpiteiden valitseminen'!$B$21:$O$50,9,FALSE)),\"\",VLOOKUP(14,'Toimenpiteiden valitseminen'!$B$21:$O$50,9,FALSE))","v":""},{"$f":"IF(ISNA(VLOOKUP(14,'Toimenpiteiden valitseminen'!$B$21:$O$50,10,FALSE)),\"\",VLOOKUP(14,'Toimenpiteiden valitseminen'!$B$21:$O$50,10,FALSE))","v":""},"",{"$f":"IF(ISNA(VLOOKUP(14,'Toimenpiteiden valitseminen'!$B$21:$O$50,11,FALSE)),\"\",VLOOKUP(14,'Toimenpiteiden valitseminen'!$B$21:$O$50,11,FALSE))","v":""},{"$f":"IF(ISNA(VLOOKUP(14,'Toimenpiteiden valitseminen'!$B$21:$O$50,12,FALSE)),\"\",VLOOKUP(14,'Toimenpiteiden valitseminen'!$B$21:$O$50,12,FALSE))","v":""},"",{"$error":"#VALUE!"}]
[{"$f":"IF(ISNA(VLOOKUP(15,'Toimenpiteiden valitseminen'!$B$21:$O$50,1,FALSE)),\"\",VLOOKUP(15,'Toimenpiteiden valitseminen'!$B$21:$O$50,1,FALSE))","v":""},{"$f":"IF(ISNA(VLOOKUP(15,'Toimenpiteiden valitseminen'!$B$21:$O$50,13,FALSE)),\"\",VLOOKUP(15,'Toimenpiteiden valitseminen'!$B$21:$O$50,13,FALSE))","v":""},{"$f":"IF(ISNA(VLOOKUP(15,'Toimenpiteiden valitseminen'!$B$21:$O$50,6,FALSE)),\"\",VLOOKUP(15,'Toimenpiteiden valitseminen'!$B$21:$O$50,6,FALSE))","v":""},{"$f":"IF(ISNA(VLOOKUP(15,'Toimenpiteiden valitseminen'!$B$21:$O$50,8,FALSE)),\"\",VLOOKUP(15,'Toimenpiteiden valitseminen'!$B$21:$O$50,8,FALSE))","v":""},{"$f":"IF(ISNA(VLOOKUP(15,'Toimenpiteiden valitseminen'!$B$21:$O$50,9,FALSE)),\"\",VLOOKUP(15,'Toimenpiteiden valitseminen'!$B$21:$O$50,9,FALSE))","v":""},{"$f":"IF(ISNA(VLOOKUP(15,'Toimenpiteiden valitseminen'!$B$21:$O$50,10,FALSE)),\"\",VLOOKUP(15,'Toimenpiteiden valitseminen'!$B$21:$O$50,10,FALSE))","v":""},"",{"$f":"IF(ISNA(VLOOKUP(15,'Toimenpiteiden valitseminen'!$B$21:$O$50,11,FALSE)),\"\",VLOOKUP(15,'Toimenpiteiden valitseminen'!$B$21:$O$50,11,FALSE))","v":""},{"$f":"IF(ISNA(VLOOKUP(15,'Toimenpiteiden valitseminen'!$B$21:$O$50,12,FALSE)),\"\",VLOOKUP(15,'Toimenpiteiden valitseminen'!$B$21:$O$50,12,FALSE))","v":""},"",{"$error":"#VALUE!"}]
[{"$f":"IF(ISNA(VLOOKUP(16,'Toimenpiteiden valitseminen'!$B$21:$O$50,1,FALSE)),\"\",VLOOKUP(16,'Toimenpiteiden valitseminen'!$B$21:$O$50,1,FALSE))","v":""},{"$f":"IF(ISNA(VLOOKUP(16,'Toimenpiteiden valitseminen'!$B$21:$O$50,13,FALSE)),\"\",VLOOKUP(16,'Toimenpiteiden valitseminen'!$B$21:$O$50,13,FALSE))","v":""},{"$f":"IF(ISNA(VLOOKUP(16,'Toimenpiteiden valitseminen'!$B$21:$O$50,6,FALSE)),\"\",VLOOKUP(16,'Toimenpiteiden valitseminen'!$B$21:$O$50,6,FALSE))","v":""},{"$f":"IF(ISNA(VLOOKUP(16,'Toimenpiteiden valitseminen'!$B$21:$O$50,8,FALSE)),\"\",VLOOKUP(16,'Toimenpiteiden valitseminen'!$B$21:$O$50,8,FALSE))","v":""},{"$f":"IF(ISNA(VLOOKUP(16,'Toimenpiteiden valitseminen'!$B$21:$O$50,9,FALSE)),\"\",VLOOKUP(16,'Toimenpiteiden valitseminen'!$B$21:$O$50,9,FALSE))","v":""},{"$f":"IF(ISNA(VLOOKUP(16,'Toimenpiteiden valitseminen'!$B$21:$O$50,10,FALSE)),\"\",VLOOKUP(16,'Toimenpiteiden valitseminen'!$B$21:$O$50,10,FALSE))","v":""},"",{"$f":"IF(ISNA(VLOOKUP(16,'Toimenpiteiden valitseminen'!$B$21:$O$50,11,FALSE)),\"\",VLOOKUP(16,'Toimenpiteiden valitseminen'!$B$21:$O$50,11,FALSE))","v":""},{"$f":"IF(ISNA(VLOOKUP(16,'Toimenpiteiden valitseminen'!$B$21:$O$50,12,FALSE)),\"\",VLOOKUP(16,'Toimenpiteiden valitseminen'!$B$21:$O$50,12,FALSE))","v":""},"",{"$error":"#VALUE!"}]
[{"$f":"IF(ISNA(VLOOKUP(17,'Toimenpiteiden valitseminen'!$B$21:$O$50,1,FALSE)),\"\",VLOOKUP(17,'Toimenpiteiden valitseminen'!$B$21:$O$50,1,FALSE))","v":""},{"$f":"IF(ISNA(VLOOKUP(17,'Toimenpiteiden valitseminen'!$B$21:$O$50,13,FALSE)),\"\",VLOOKUP(17,'Toimenpiteiden valitseminen'!$B$21:$O$50,13,FALSE))","v":""},{"$f":"IF(ISNA(VLOOKUP(17,'Toimenpiteiden valitseminen'!$B$21:$O$50,6,FALSE)),\"\",VLOOKUP(17,'Toimenpiteiden valitseminen'!$B$21:$O$50,6,FALSE))","v":""},{"$f":"IF(ISNA(VLOOKUP(17,'Toimenpiteiden valitseminen'!$B$21:$O$50,8,FALSE)),\"\",VLOOKUP(17,'Toimenpiteiden valitseminen'!$B$21:$O$50,8,FALSE))","v":""},{"$f":"IF(ISNA(VLOOKUP(17,'Toimenpiteiden valitseminen'!$B$21:$O$50,9,FALSE)),\"\",VLOOKUP(17,'Toimenpiteiden valitseminen'!$B$21:$O$50,9,FALSE))","v":""},{"$f":"IF(ISNA(VLOOKUP(17,'Toimenpiteiden valitseminen'!$B$21:$O$50,10,FALSE)),\"\",VLOOKUP(17,'Toimenpiteiden valitseminen'!$B$21:$O$50,10,FALSE))","v":""},"",{"$f":"IF(ISNA(VLOOKUP(17,'Toimenpiteiden valitseminen'!$B$21:$O$50,11,FALSE)),\"\",VLOOKUP(17,'Toimenpiteiden valitseminen'!$B$21:$O$50,11,FALSE))","v":""},{"$f":"IF(ISNA(VLOOKUP(17,'Toimenpiteiden valitseminen'!$B$21:$O$50,12,FALSE)),\"\",VLOOKUP(17,'Toimenpiteiden valitseminen'!$B$21:$O$50,12,FALSE))","v":""},"",{"$error":"#VALUE!"}]
[]
[]
["VALINTA-\nJÄRJESTYS","TAKAISIN-\nMAKSU-\nKERRAT\nPITOAIKANA","TOIMENPITEEN\nTUNNUS","KUSTANNUSTEN\nMUUTOS\n[€]","LÄMMITYSENERGIAN \nKULUTUKSEN\nMUUTOS [MWh/a]","SÄHKÖENERGIAN\nKULUTUKSEN\nMUUTOS [MWh/a]","VUOSITTAINEN\nKOKONAIS-\nENERGIANSÄÄSTÖ\n[MWh/a]","KUSTANNUSTEN VUOSIMUUTOS\n[€/a]","PITOAIKA\n[a]","KUSTANNUS /\nENERGIANSÄÄSTÖ\n[€/(kWh/a)]","KUSTANNUSTEN VUOSISÄÄSTÖT\n[€/a]"]
[{"$f":"IF(ISNA(VLOOKUP(1,'Toimenpiteiden valitseminen'!$C$21:$O$50,1,FALSE)),\"\",VLOOKUP(1,'Toimenpiteiden valitseminen'!$C$21:$O$50,1,FALSE))","v":1},{"$f":"IF(ISNA(VLOOKUP(1,'Toimenpiteiden valitseminen'!$C$21:$O$50,13,FALSE)),\"\",VLOOKUP(1,'Toimenpiteiden valitseminen'!$C$21:$O$50,13,FALSE))","v":6.2108943687891056},{"$f":"IF(ISNA(VLOOKUP(1,'Toimenpiteiden valitseminen'!$C$21:$O$50,5,FALSE)),\"\",VLOOKUP(1,'Toimenpiteiden valitseminen'!$C$21:$O$50,5,FALSE))","v":"IKK2"},{"$f":"IF(ISNA(VLOOKUP(1,'Toimenpiteiden valitseminen'!$C$21:$O$50,7,FALSE)),\"\",VLOOKUP(1,'Toimenpiteiden valitseminen'!$C$21:$O$50,7,FALSE))","v":10868},{"$f":"IF(ISNA(VLOOKUP(1,'Toimenpiteiden valitseminen'!$C$21:$O$50,8,FALSE)),\"\",VLOOKUP(1,'Toimenpiteiden valitseminen'!$C$21:$O$50,8,FALSE))","v":-45},{"$f":"IF(ISNA(VLOOKUP(1,'Toimenpiteiden valitseminen'!$C$21:$O$50,9,FALSE)),\"\",VLOOKUP(1,'Toimenpiteiden valitseminen'!$C$21:$O$50,9,FALSE))","v":0},{"$f":"IF(AND(E112=\"\",F112=\"\"),\"\",-(E112+F112))","v":45},{"$f":"IF(ISNA(VLOOKUP(1,'Toimenpiteiden valitseminen'!$C$21:$O$50,10,FALSE)),\"\",VLOOKUP(1,'Toimenpiteiden valitseminen'!$C$21:$O$50,10,FALSE))","v":-2250},{"$f":"IF(ISNA(VLOOKUP(1,'Toimenpiteiden valitseminen'!$C$21:$O$50,11,FALSE)),\"\",VLOOKUP(1,'Toimenpiteiden valitseminen'!$C$21:$O$50,11,FALSE))","v":30},{"$f":"IF(AND(E112=\"\",F112=\"\"),\"\",D112/(1000*G112))","v":0.24151111111111112},{"$f":"-H112","v":2250}]
[{"$f":"IF(ISNA(VLOOKUP(2,'Toimenpiteiden valitseminen'!$C$21:$O$50,1,FALSE)),\"\",VLOOKUP(2,'Toimenpiteiden valitseminen'!$C$21:$O$50,1,FALSE))","v":2},{"$f":"IF(ISNA(VLOOKUP(2,'Toimenpiteiden valitseminen'!$C$21:$O$50,13,FALSE)),\"\",VLOOKUP(2,'Toimenpiteiden valitseminen'!$C$21:$O$50,13,FALSE))","v":5.5023923444976077},{"$f":"IF(ISNA(VLOOKUP(2,'Toimenpiteiden valitseminen'!$C$21:$O$50,5,FALSE)),\"\",VLOOKUP(2,'Toimenpiteiden valitseminen'!$C$21:$O$50,5,FALSE))","v":"IKK1"},{"$f":"IF(ISNA(VLOOKUP(2,'Toimenpiteiden valitseminen'!$C$21:$O$50,7,FALSE)),\"\",VLOOKUP(2,'Toimenpiteiden valitseminen'!$C$21:$O$50,7,FALSE))","v":12540},{"$f":"IF(ISNA(VLOOKUP(2,'Toimenpiteiden valitseminen'!$C$21:$O$50,8,FALSE)),\"\",VLOOKUP(2,'Toimenpiteiden valitseminen'!$C$21:$O$50,8,FALSE))","v":-46},{"$f":"IF(ISNA(VLOOKUP(2,'Toimenpiteiden valitseminen'!$C$21:$O$50,9,FALSE)),\"\",VLOOKUP(2,'Toimenpiteiden valitseminen'!$C$21:$O$50,9,FALSE))","v":0},{"$f":"IF(AND(E113=\"\",F113=\"\"),\"\",-(E113+F113))","v":46},{"$f":"IF(ISNA(VLOOKUP(2,'Toimenpiteiden valitseminen'!$C$21:$O$50,10,FALSE)),\"\",VLOOKUP(2,'Toimenpiteiden valitseminen'!$C$21:$O$50,10,FALSE))","v":-2300},{"$f":"IF(ISNA(VLOOKUP(2,'Toimenpiteiden valitseminen'!$C$21:$O$50,11,FALSE)),\"\",VLOOKUP(2,'Toimenpiteiden valitseminen'!$C$21:$O$50,11,FALSE))","v":30},{"$f":"IF(AND(E113=\"\",F113=\"\"),\"\",D113/(1000*G113))","v":0.27260869565217394},{"$f":"-H113","v":2300}]
[{"$f":"IF(ISNA(VLOOKUP(3,'Toimenpiteiden valitseminen'!$C$21:$O$50,1,FALSE)),\"\",VLOOKUP(3,'Toimenpiteiden valitseminen'!$C$21:$O$50,1,FALSE))","v":3},{"$f":"IF(ISNA(VLOOKUP(3,'Toimenpiteiden valitseminen'!$C$21:$O$50,13,FALSE)),\"\",VLOOKUP(3,'Toimenpiteiden valitseminen'!$C$21:$O$50,13,FALSE))","v":4.5662100456621006},{"$f":"IF(ISNA(VLOOKUP(3,'Toimenpiteiden valitseminen'!$C$21:$O$50,5,FALSE)),\"\",VLOOKUP(3,'Toimenpiteiden valitseminen'!$C$21:$O$50,5,FALSE))","v":"YP1"},{"$f":"IF(ISNA(VLOOKUP(3,'Toimenpiteiden valitseminen'!$C$21:$O$50,7,FALSE)),\"\",VLOOKUP(3,'Toimenpiteiden valitseminen'!$C$21:$O$50,7,FALSE))","v":2628},{"$f":"IF(ISNA(VLOOKUP(3,'Toimenpiteiden valitseminen'!$C$21:$O$50,8,FALSE)),\"\",VLOOKUP(3,'Toimenpiteiden valitseminen'!$C$21:$O$50,8,FALSE))","v":-6},{"$f":"IF(ISNA(VLOOKUP(3,'Toimenpiteiden valitseminen'!$C$21:$O$50,9,FALSE)),\"\",VLOOKUP(3,'Toimenpiteiden valitseminen'!$C$21:$O$50,9,FALSE))","v":0},{"$f":"IF(AND(E114=\"\",F114=\"\"),\"\",-(E114+F114))","v":6},{"$f":"IF(ISNA(VLOOKUP(3,'Toimenpiteiden valitseminen'!$C$21:$O$50,10,FALSE)),\"\",VLOOKUP(3,'Toimenpiteiden valitseminen'!$C$21:$O$50,10,FALSE))","v":-300},{"$f":"IF(ISNA(VLOOKUP(3,'Toimenpiteiden valitseminen'!$C$21:$O$50,11,FALSE)),\"\",VLOOKUP(3,'Toimenpiteiden valitseminen'!$C$21:$O$50,11,FALSE))","v":40},0.438,300]
[{"$f":"IF(ISNA(VLOOKUP(4,'Toimenpiteiden valitseminen'!$C$21:$O$50,1,FALSE)),\"\",VLOOKUP(4,'Toimenpiteiden valitseminen'!$C$21:$O$50,1,FALSE))","v":4},{"$f":"IF(ISNA(VLOOKUP(4,'Toimenpiteiden valitseminen'!$C$21:$O$50,13,FALSE)),\"\",VLOOKUP(4,'Toimenpiteiden valitseminen'!$C$21:$O$50,13,FALSE))","v":3.6240384615384618},{"$f":"IF(ISNA(VLOOKUP(4,'Toimenpiteiden valitseminen'!$C$21:$O$50,5,FALSE)),\"\",VLOOKUP(4,'Toimenpiteiden valitseminen'!$C$21:$O$50,5,FALSE))","v":"VKM"},{"$f":"IF(ISNA(VLOOKUP(4,'Toimenpiteiden valitseminen'!$C$21:$O$50,7,FALSE)),\"\",VLOOKUP(4,'Toimenpiteiden valitseminen'!$C$21:$O$50,7,FALSE))","v":46800},{"$f":"IF(ISNA(VLOOKUP(4,'Toimenpiteiden valitseminen'!$C$21:$O$50,8,FALSE)),\"\",VLOOKUP(4,'Toimenpiteiden valitseminen'!$C$21:$O$50,8,FALSE))","v":-29},{"$f":"IF(ISNA(VLOOKUP(4,'Toimenpiteiden valitseminen'!$C$21:$O$50,9,FALSE)),\"\",VLOOKUP(4,'Toimenpiteiden valitseminen'!$C$21:$O$50,9,FALSE))","v":0},29,{"$f":"IF(ISNA(VLOOKUP(4,'Toimenpiteiden valitseminen'!$C$21:$O$50,10,FALSE)),\"\",VLOOKUP(4,'Toimenpiteiden valitseminen'!$C$21:$O$50,10,FALSE))","v":-11307},{"$f":"IF(ISNA(VLOOKUP(4,'Toimenpiteiden valitseminen'!$C$21:$O$50,11,FALSE)),\"\",VLOOKUP(4,'Toimenpiteiden valitseminen'!$C$21:$O$50,11,FALSE))","v":15},1.6137931034482758,11307]
[{"$f":"IF(ISNA(VLOOKUP(5,'Toimenpiteiden valitseminen'!$C$21:$O$50,1,FALSE)),\"\",VLOOKUP(5,'Toimenpiteiden valitseminen'!$C$21:$O$50,1,FALSE))","v":5},{"$f":"IF(ISNA(VLOOKUP(5,'Toimenpiteiden valitseminen'!$C$21:$O$50,13,FALSE)),\"\",VLOOKUP(5,'Toimenpiteiden valitseminen'!$C$21:$O$50,13,FALSE))","v":3.5294117647058822},{"$f":"IF(ISNA(VLOOKUP(5,'Toimenpiteiden valitseminen'!$C$21:$O$50,5,FALSE)),\"\",VLOOKUP(5,'Toimenpiteiden valitseminen'!$C$21:$O$50,5,FALSE))","v":"US1"},{"$f":"IF(ISNA(VLOOKUP(5,'Toimenpiteiden valitseminen'!$C$21:$O$50,7,FALSE)),\"\",VLOOKUP(5,'Toimenpiteiden valitseminen'!$C$21:$O$50,7,FALSE))","v":5100},{"$f":"IF(ISNA(VLOOKUP(5,'Toimenpiteiden valitseminen'!$C$21:$O$50,8,FALSE)),\"\",VLOOKUP(5,'Toimenpiteiden valitseminen'!$C$21:$O$50,8,FALSE))","v":-9},{"$f":"IF(ISNA(VLOOKUP(5,'Toimenpiteiden valitseminen'!$C$21:$O$50,9,FALSE)),\"\",VLOOKUP(5,'Toimenpiteiden valitseminen'!$C$21:$O$50,9,FALSE))","v":0},9,{"$f":"IF(ISNA(VLOOKUP(5,'Toimenpiteiden valitseminen'!$C$21:$O$50,10,FALSE)),\"\",VLOOKUP(5,'Toimenpiteiden valitseminen'!$C$21:$O$50,10,FALSE))","v":-450},{"$f":"IF(ISNA(VLOOKUP(5,'Toimenpiteiden valitseminen'!$C$21:$O$50,11,FALSE)),\"\",VLOOKUP(5,'Toimenpiteiden valitseminen'!$C$21:$O$50,11,FALSE))","v":40},0.56666666666666665,450]
[{"$f":"IF(ISNA(VLOOKUP(6,'Toimenpiteiden valitseminen'!$C$21:$O$50,1,FALSE)),\"\",VLOOKUP(6,'Toimenpiteiden valitseminen'!$C$21:$O$50,1,FALSE))","v":6},{"$f":"IF(ISNA(VLOOKUP(6,'Toimenpiteiden valitseminen'!$C$21:$O$50,13,FALSE)),\"\",VLOOKUP(6,'Toimenpiteiden valitseminen'!$C$21:$O$50,13,FALSE))","v":3.4714285714285715},{"$f":"IF(ISNA(VLOOKUP(6,'Toimenpiteiden valitseminen'!$C$21:$O$50,5,FALSE)),\"\",VLOOKUP(6,'Toimenpiteiden valitseminen'!$C$21:$O$50,5,FALSE))","v":"IV1"},{"$f":"IF(ISNA(VLOOKUP(6,'Toimenpiteiden valitseminen'!$C$21:$O$50,7,FALSE)),\"\",VLOOKUP(6,'Toimenpiteiden valitseminen'!$C$21:$O$50,7,FALSE))","v":78400},{"$f":"IF(ISNA(VLOOKUP(6,'Toimenpiteiden valitseminen'!$C$21:$O$50,8,FALSE)),\"\",VLOOKUP(6,'Toimenpiteiden valitseminen'!$C$21:$O$50,8,FALSE))","v":-259},{"$f":"IF(ISNA(VLOOKUP(6,'Toimenpiteiden valitseminen'!$C$21:$O$50,9,FALSE)),\"\",VLOOKUP(6,'Toimenpiteiden valitseminen'!$C$21:$O$50,9,FALSE))","v":38.6},220.4,{"$f":"IF(ISNA(VLOOKUP(6,'Toimenpiteiden valitseminen'!$C$21:$O$50,10,FALSE)),\"\",VLOOKUP(6,'Toimenpiteiden valitseminen'!$C$21:$O$50,10,FALSE))","v":-9072},{"$f":"IF(ISNA(VLOOKUP(6,'Toimenpiteiden valitseminen'!$C$21:$O$50,11,FALSE)),\"\",VLOOKUP(6,'Toimenpiteiden valitseminen'!$C$21:$O$50,11,FALSE))","v":30},0.35571687840290384,9072]
[{"$f":"IF(ISNA(VLOOKUP(7,'Toimenpiteiden valitseminen'!$C$21:$O$50,1,FALSE)),\"\",VLOOKUP(7,'Toimenpiteiden valitseminen'!$C$21:$O$50,1,FALSE))","v":7},{"$f":"IF(ISNA(VLOOKUP(7,'Toimenpiteiden valitseminen'!$C$21:$O$50,13,FALSE)),\"\",VLOOKUP(7,'Toimenpiteiden valitseminen'!$C$21:$O$50,13,FALSE))","v":2.5371428571428569},{"$f":"IF(ISNA(VLOOKUP(7,'Toimenpiteiden valitseminen'!$C$21:$O$50,5,FALSE)),\"\",VLOOKUP(7,'Toimenpiteiden valitseminen'!$C$21:$O$50,5,FALSE))","v":"IV2"},{"$f":"IF(ISNA(VLOOKUP(7,'Toimenpiteiden valitseminen'!$C$21:$O$50,7,FALSE)),\"\",VLOOKUP(7,'Toimenpiteiden valitseminen'!$C$21:$O$50,7,FALSE))","v":98000},{"$f":"IF(ISNA(VLOOKUP(7,'Toimenpiteiden valitseminen'!$C$21:$O$50,8,FALSE)),\"\",VLOOKUP(7,'Toimenpiteiden valitseminen'!$C$21:$O$50,8,FALSE))","v":-259},{"$f":"IF(ISNA(VLOOKUP(7,'Toimenpiteiden valitseminen'!$C$21:$O$50,9,FALSE)),\"\",VLOOKUP(7,'Toimenpiteiden valitseminen'!$C$21:$O$50,9,FALSE))","v":38.6},220.4,{"$f":"IF(ISNA(VLOOKUP(7,'Toimenpiteiden valitseminen'!$C$21:$O$50,10,FALSE)),\"\",VLOOKUP(7,'Toimenpiteiden valitseminen'!$C$21:$O$50,10,FALSE))","v":-8288},{"$f":"IF(ISNA(VLOOKUP(7,'Toimenpiteiden valitseminen'!$C$21:$O$50,11,FALSE)),\"\",VLOOKUP(7,'Toimenpiteiden valitseminen'!$C$21:$O$50,11,FALSE))","v":30},0.44464609800362975,8288]
[{"$f":"IF(ISNA(VLOOKUP(8,'Toimenpiteiden valitseminen'!$C$21:$O$50,1,FALSE)),\"\",VLOOKUP(8,'Toimenpiteiden valitseminen'!$C$21:$O$50,1,FALSE))","v":8},{"$f":"IF(ISNA(VLOOKUP(8,'Toimenpiteiden valitseminen'!$C$21:$O$50,13,FALSE)),\"\",VLOOKUP(8,'Toimenpiteiden valitseminen'!$C$21:$O$50,13,FALSE))","v":1.4792899408284024},{"$f":"IF(ISNA(VLOOKUP(8,'Toimenpiteiden valitseminen'!$C$21:$O$50,5,FALSE)),\"\",VLOOKUP(8,'Toimenpiteiden valitseminen'!$C$21:$O$50,5,FALSE))","v":"YP2"},{"$f":"IF(ISNA(VLOOKUP(8,'Toimenpiteiden valitseminen'!$C$21:$O$50,7,FALSE)),\"\",VLOOKUP(8,'Toimenpiteiden valitseminen'!$C$21:$O$50,7,FALSE))","v":5408},{"$f":"IF(ISNA(VLOOKUP(8,'Toimenpiteiden valitseminen'!$C$21:$O$50,8,FALSE)),\"\",VLOOKUP(8,'Toimenpiteiden valitseminen'!$C$21:$O$50,8,FALSE))","v":-4},{"$f":"IF(ISNA(VLOOKUP(8,'Toimenpiteiden valitseminen'!$C$21:$O$50,9,FALSE)),\"\",VLOOKUP(8,'Toimenpiteiden valitseminen'!$C$21:$O$50,9,FALSE))","v":0},4,{"$f":"IF(ISNA(VLOOKUP(8,'Toimenpiteiden valitseminen'!$C$21:$O$50,10,FALSE)),\"\",VLOOKUP(8,'Toimenpiteiden valitseminen'!$C$21:$O$50,10,FALSE))","v":-200},{"$f":"IF(ISNA(VLOOKUP(8,'Toimenpiteiden valitseminen'!$C$21:$O$50,11,FALSE)),\"\",VLOOKUP(8,'Toimenpiteiden valitseminen'!$C$21:$O$50,11,FALSE))","v":40},1.3520000000000001,200]
[{"$f":"IF(ISNA(VLOOKUP(9,'Toimenpiteiden valitseminen'!$C$21:$O$50,1,FALSE)),\"\",VLOOKUP(9,'Toimenpiteiden valitseminen'!$C$21:$O$50,1,FALSE))","v":9},{"$f":"IF(ISNA(VLOOKUP(9,'Toimenpiteiden valitseminen'!$C$21:$O$50,13,FALSE)),\"\",VLOOKUP(9,'Toimenpiteiden valitseminen'!$C$21:$O$50,13,FALSE))","v":0.69815195071868585},{"$f":"IF(ISNA(VLOOKUP(9,'Toimenpiteiden valitseminen'!$C$21:$O$50,5,FALSE)),\"\",VLOOKUP(9,'Toimenpiteiden valitseminen'!$C$21:$O$50,5,FALSE))","v":"US2"},{"$f":"IF(ISNA(VLOOKUP(9,'Toimenpiteiden valitseminen'!$C$21:$O$50,7,FALSE)),\"\",VLOOKUP(9,'Toimenpiteiden valitseminen'!$C$21:$O$50,7,FALSE))","v":48700},{"$f":"IF(ISNA(VLOOKUP(9,'Toimenpiteiden valitseminen'!$C$21:$O$50,8,FALSE)),\"\",VLOOKUP(9,'Toimenpiteiden valitseminen'!$C$21:$O$50,8,FALSE))","v":-17},{"$f":"IF(ISNA(VLOOKUP(9,'Toimenpiteiden valitseminen'!$C$21:$O$50,9,FALSE)),\"\",VLOOKUP(9,'Toimenpiteiden valitseminen'!$C$21:$O$50,9,FALSE))","v":0},17,{"$f":"IF(ISNA(VLOOKUP(9,'Toimenpiteiden valitseminen'!$C$21:$O$50,10,FALSE)),\"\",VLOOKUP(9,'Toimenpiteiden valitseminen'!$C$21:$O$50,10,FALSE))","v":-850},{"$f":"IF(ISNA(VLOOKUP(9,'Toimenpiteiden valitseminen'!$C$21:$O$50,11,FALSE)),\"\",VLOOKUP(9,'Toimenpiteiden valitseminen'!$C$21:$O$50,11,FALSE))","v":40},2.8647058823529412,850]
[{"$f":"IF(ISNA(VLOOKUP(10,'Toimenpiteiden valitseminen'!$C$21:$O$50,1,FALSE)),\"\",VLOOKUP(10,'Toimenpiteiden valitseminen'!$C$21:$O$50,1,FALSE))","v":""},{"$f":"IF(ISNA(VLOOKUP(10,'Toimenpiteiden valitseminen'!$C$21:$O$50,13,FALSE)),\"\",VLOOKUP(10,'Toimenpiteiden valitseminen'!$C$21:$O$50,13,FALSE))","v":""},{"$f":"IF(ISNA(VLOOKUP(10,'Toimenpiteiden valitseminen'!$C$21:$O$50,5,FALSE)),\"\",VLOOKUP(10,'Toimenpiteiden valitseminen'!$C$21:$O$50,5,FALSE))","v":""},{"$f":"IF(ISNA(VLOOKUP(10,'Toimenpiteiden valitseminen'!$C$21:$O$50,7,FALSE)),\"\",VLOOKUP(10,'Toimenpiteiden valitseminen'!$C$21:$O$50,7,FALSE))","v":""},{"$f":"IF(ISNA(VLOOKUP(10,'Toimenpiteiden valitseminen'!$C$21:$O$50,8,FALSE)),\"\",VLOOKUP(10,'Toimenpiteiden valitseminen'!$C$21:$O$50,8,FALSE))","v":""},{"$f":"IF(ISNA(VLOOKUP(10,'Toimenpiteiden valitseminen'!$C$21:$O$50,9,FALSE)),\"\",VLOOKUP(10,'Toimenpiteiden valitseminen'!$C$21:$O$50,9,FALSE))","v":""},"",{"$f":"IF(ISNA(VLOOKUP(10,'Toimenpiteiden valitseminen'!$C$21:$O$50,10,FALSE)),\"\",VLOOKUP(10,'Toimenpiteiden valitseminen'!$C$21:$O$50,10,FALSE))","v":""},{"$f":"IF(ISNA(VLOOKUP(10,'Toimenpiteiden valitseminen'!$C$21:$O$50,11,FALSE)),\"\",VLOOKUP(10,'Toimenpiteiden valitseminen'!$C$21:$O$50,11,FALSE))","v":""},"",{"$error":"#VALUE!"}]
[{"$f":"IF(ISNA(VLOOKUP(11,'Toimenpiteiden valitseminen'!$C$21:$O$50,1,FALSE)),\"\",VLOOKUP(11,'Toimenpiteiden valitseminen'!$C$21:$O$50,1,FALSE))","v":""},{"$f":"IF(ISNA(VLOOKUP(11,'Toimenpiteiden valitseminen'!$C$21:$O$50,13,FALSE)),\"\",VLOOKUP(11,'Toimenpiteiden valitseminen'!$C$21:$O$50,13,FALSE))","v":""},{"$f":"IF(ISNA(VLOOKUP(11,'Toimenpiteiden valitseminen'!$C$21:$O$50,5,FALSE)),\"\",VLOOKUP(11,'Toimenpiteiden valitseminen'!$C$21:$O$50,5,FALSE))","v":""},{"$f":"IF(ISNA(VLOOKUP(11,'Toimenpiteiden valitseminen'!$C$21:$O$50,7,FALSE)),\"\",VLOOKUP(11,'Toimenpiteiden valitseminen'!$C$21:$O$50,7,FALSE))","v":""},{"$f":"IF(ISNA(VLOOKUP(11,'Toimenpiteiden valitseminen'!$C$21:$O$50,8,FALSE)),\"\",VLOOKUP(11,'Toimenpiteiden valitseminen'!$C$21:$O$50,8,FALSE))","v":""},{"$f":"IF(ISNA(VLOOKUP(11,'Toimenpiteiden valitseminen'!$C$21:$O$50,9,FALSE)),\"\",VLOOKUP(11,'Toimenpiteiden valitseminen'!$C$21:$O$50,9,FALSE))","v":""},"",{"$f":"IF(ISNA(VLOOKUP(11,'Toimenpiteiden valitseminen'!$C$21:$O$50,10,FALSE)),\"\",VLOOKUP(11,'Toimenpiteiden valitseminen'!$C$21:$O$50,10,FALSE))","v":""},{"$f":"IF(ISNA(VLOOKUP(11,'Toimenpiteiden valitseminen'!$C$21:$O$50,11,FALSE)),\"\",VLOOKUP(11,'Toimenpiteiden valitseminen'!$C$21:$O$50,11,FALSE))","v":""},"",{"$error":"#VALUE!"}]
[{"$f":"IF(ISNA(VLOOKUP(12,'Toimenpiteiden valitseminen'!$C$21:$O$50,1,FALSE)),\"\",VLOOKUP(12,'Toimenpiteiden valitseminen'!$C$21:$O$50,1,FALSE))","v":""},{"$f":"IF(ISNA(VLOOKUP(12,'Toimenpiteiden valitseminen'!$C$21:$O$50,13,FALSE)),\"\",VLOOKUP(12,'Toimenpiteiden valitseminen'!$C$21:$O$50,13,FALSE))","v":""},{"$f":"IF(ISNA(VLOOKUP(12,'Toimenpiteiden valitseminen'!$C$21:$O$50,5,FALSE)),\"\",VLOOKUP(12,'Toimenpiteiden valitseminen'!$C$21:$O$50,5,FALSE))","v":""},{"$f":"IF(ISNA(VLOOKUP(12,'Toimenpiteiden valitseminen'!$C$21:$O$50,7,FALSE)),\"\",VLOOKUP(12,'Toimenpiteiden valitseminen'!$C$21:$O$50,7,FALSE))","v":""},{"$f":"IF(ISNA(VLOOKUP(12,'Toimenpiteiden valitseminen'!$C$21:$O$50,8,FALSE)),\"\",VLOOKUP(12,'Toimenpiteiden valitseminen'!$C$21:$O$50,8,FALSE))","v":""},{"$f":"IF(ISNA(VLOOKUP(12,'Toimenpiteiden valitseminen'!$C$21:$O$50,9,FALSE)),\"\",VLOOKUP(12,'Toimenpiteiden valitseminen'!$C$21:$O$50,9,FALSE))","v":""},"",{"$f":"IF(ISNA(VLOOKUP(12,'Toimenpiteiden valitseminen'!$C$21:$O$50,10,FALSE)),\"\",VLOOKUP(12,'Toimenpiteiden valitseminen'!$C$21:$O$50,10,FALSE))","v":""},{"$f":"IF(ISNA(VLOOKUP(12,'Toimenpiteiden valitseminen'!$C$21:$O$50,11,FALSE)),\"\",VLOOKUP(12,'Toimenpiteiden valitseminen'!$C$21:$O$50,11,FALSE))","v":""},"",{"$error":"#VALUE!"}]
[{"$f":"IF(ISNA(VLOOKUP(13,'Toimenpiteiden valitseminen'!$C$21:$O$50,1,FALSE)),\"\",VLOOKUP(13,'Toimenpiteiden valitseminen'!$C$21:$O$50,1,FALSE))","v":""},{"$f":"IF(ISNA(VLOOKUP(13,'Toimenpiteiden valitseminen'!$C$21:$O$50,13,FALSE)),\"\",VLOOKUP(13,'Toimenpiteiden valitseminen'!$C$21:$O$50,13,FALSE))","v":""},{"$f":"IF(ISNA(VLOOKUP(13,'Toimenpiteiden valitseminen'!$C$21:$O$50,5,FALSE)),\"\",VLOOKUP(13,'Toimenpiteiden valitseminen'!$C$21:$O$50,5,FALSE))","v":""},{"$f":"IF(ISNA(VLOOKUP(13,'Toimenpiteiden valitseminen'!$C$21:$O$50,7,FALSE)),\"\",VLOOKUP(13,'Toimenpiteiden valitseminen'!$C$21:$O$50,7,FALSE))","v":""},{"$f":"IF(ISNA(VLOOKUP(13,'Toimenpiteiden valitseminen'!$C$21:$O$50,8,FALSE)),\"\",VLOOKUP(13,'Toimenpiteiden valitseminen'!$C$21:$O$50,8,FALSE))","v":""},{"$f":"IF(ISNA(VLOOKUP(13,'Toimenpiteiden valitseminen'!$C$21:$O$50,9,FALSE)),\"\",VLOOKUP(13,'Toimenpiteiden valitseminen'!$C$21:$O$50,9,FALSE))","v":""},"",{"$f":"IF(ISNA(VLOOKUP(13,'Toimenpiteiden valitseminen'!$C$21:$O$50,10,FALSE)),\"\",VLOOKUP(13,'Toimenpiteiden valitseminen'!$C$21:$O$50,10,FALSE))","v":""},{"$f":"IF(ISNA(VLOOKUP(13,'Toimenpiteiden valitseminen'!$C$21:$O$50,11,FALSE)),\"\",VLOOKUP(13,'Toimenpiteiden valitseminen'!$C$21:$O$50,11,FALSE))","v":""},"",{"$error":"#VALUE!"}]
[{"$f":"IF(ISNA(VLOOKUP(14,'Toimenpiteiden valitseminen'!$C$21:$O$50,1,FALSE)),\"\",VLOOKUP(14,'Toimenpiteiden valitseminen'!$C$21:$O$50,1,FALSE))","v":""},{"$f":"IF(ISNA(VLOOKUP(14,'Toimenpiteiden valitseminen'!$C$21:$O$50,13,FALSE)),\"\",VLOOKUP(14,'Toimenpiteiden valitseminen'!$C$21:$O$50,13,FALSE))","v":""},{"$f":"IF(ISNA(VLOOKUP(14,'Toimenpiteiden valitseminen'!$C$21:$O$50,5,FALSE)),\"\",VLOOKUP(14,'Toimenpiteiden valitseminen'!$C$21:$O$50,5,FALSE))","v":""},{"$f":"IF(ISNA(VLOOKUP(14,'Toimenpiteiden valitseminen'!$C$21:$O$50,7,FALSE)),\"\",VLOOKUP(14,'Toimenpiteiden valitseminen'!$C$21:$O$50,7,FALSE))","v":""},{"$f":"IF(ISNA(VLOOKUP(14,'Toimenpiteiden valitseminen'!$C$21:$O$50,8,FALSE)),\"\",VLOOKUP(14,'Toimenpiteiden valitseminen'!$C$21:$O$50,8,FALSE))","v":""},{"$f":"IF(ISNA(VLOOKUP(14,'Toimenpiteiden valitseminen'!$C$21:$O$50,9,FALSE)),\"\",VLOOKUP(14,'Toimenpiteiden valitseminen'!$C$21:$O$50,9,FALSE))","v":""},"",{"$f":"IF(ISNA(VLOOKUP(14,'Toimenpiteiden valitseminen'!$C$21:$O$50,10,FALSE)),\"\",VLOOKUP(14,'Toimenpiteiden valitseminen'!$C$21:$O$50,10,FALSE))","v":""},{"$f":"IF(ISNA(VLOOKUP(14,'Toimenpiteiden valitseminen'!$C$21:$O$50,11,FALSE)),\"\",VLOOKUP(14,'Toimenpiteiden valitseminen'!$C$21:$O$50,11,FALSE))","v":""},"",{"$error":"#VALUE!"}]
[{"$f":"IF(ISNA(VLOOKUP(15,'Toimenpiteiden valitseminen'!$C$21:$O$50,1,FALSE)),\"\",VLOOKUP(15,'Toimenpiteiden valitseminen'!$C$21:$O$50,1,FALSE))","v":""},{"$f":"IF(ISNA(VLOOKUP(15,'Toimenpiteiden valitseminen'!$C$21:$O$50,13,FALSE)),\"\",VLOOKUP(15,'Toimenpiteiden valitseminen'!$C$21:$O$50,13,FALSE))","v":""},{"$f":"IF(ISNA(VLOOKUP(15,'Toimenpiteiden valitseminen'!$C$21:$O$50,5,FALSE)),\"\",VLOOKUP(15,'Toimenpiteiden valitseminen'!$C$21:$O$50,5,FALSE))","v":""},{"$f":"IF(ISNA(VLOOKUP(15,'Toimenpiteiden valitseminen'!$C$21:$O$50,7,FALSE)),\"\",VLOOKUP(15,'Toimenpiteiden valitseminen'!$C$21:$O$50,7,FALSE))","v":""},{"$f":"IF(ISNA(VLOOKUP(15,'Toimenpiteiden valitseminen'!$C$21:$O$50,8,FALSE)),\"\",VLOOKUP(15,'Toimenpiteiden valitseminen'!$C$21:$O$50,8,FALSE))","v":""},{"$f":"IF(ISNA(VLOOKUP(15,'Toimenpiteiden valitseminen'!$C$21:$O$50,9,FALSE)),\"\",VLOOKUP(15,'Toimenpiteiden valitseminen'!$C$21:$O$50,9,FALSE))","v":""},"",{"$f":"IF(ISNA(VLOOKUP(15,'Toimenpiteiden valitseminen'!$C$21:$O$50,10,FALSE)),\"\",VLOOKUP(15,'Toimenpiteiden valitseminen'!$C$21:$O$50,10,FALSE))","v":""},{"$f":"IF(ISNA(VLOOKUP(15,'Toimenpiteiden valitseminen'!$C$21:$O$50,11,FALSE)),\"\",VLOOKUP(15,'Toimenpiteiden valitseminen'!$C$21:$O$50,11,FALSE))","v":""},"",{"$error":"#VALUE!"}]
[{"$f":"IF(ISNA(VLOOKUP(16,'Toimenpiteiden valitseminen'!$C$21:$O$50,1,FALSE)),\"\",VLOOKUP(16,'Toimenpiteiden valitseminen'!$C$21:$O$50,1,FALSE))","v":""},{"$f":"IF(ISNA(VLOOKUP(16,'Toimenpiteiden valitseminen'!$C$21:$O$50,13,FALSE)),\"\",VLOOKUP(16,'Toimenpiteiden valitseminen'!$C$21:$O$50,13,FALSE))","v":""},{"$f":"IF(ISNA(VLOOKUP(16,'Toimenpiteiden valitseminen'!$C$21:$O$50,5,FALSE)),\"\",VLOOKUP(16,'Toimenpiteiden valitseminen'!$C$21:$O$50,5,FALSE))","v":""},{"$f":"IF(ISNA(VLOOKUP(16,'Toimenpiteiden valitseminen'!$C$21:$O$50,7,FALSE)),\"\",VLOOKUP(16,'Toimenpiteiden valitseminen'!$C$21:$O$50,7,FALSE))","v":""},{"$f":"IF(ISNA(VLOOKUP(16,'Toimenpiteiden valitseminen'!$C$21:$O$50,8,FALSE)),\"\",VLOOKUP(16,'Toimenpiteiden valitseminen'!$C$21:$O$50,8,FALSE))","v":""},{"$f":"IF(ISNA(VLOOKUP(16,'Toimenpiteiden valitseminen'!$C$21:$O$50,9,FALSE)),\"\",VLOOKUP(16,'Toimenpiteiden valitseminen'!$C$21:$O$50,9,FALSE))","v":""},"",{"$f":"IF(ISNA(VLOOKUP(16,'Toimenpiteiden valitseminen'!$C$21:$O$50,10,FALSE)),\"\",VLOOKUP(16,'Toimenpiteiden valitseminen'!$C$21:$O$50,10,FALSE))","v":""},{"$f":"IF(ISNA(VLOOKUP(16,'Toimenpiteiden valitseminen'!$C$21:$O$50,11,FALSE)),\"\",VLOOKUP(16,'Toimenpiteiden valitseminen'!$C$21:$O$50,11,FALSE))","v":""},"",{"$error":"#VALUE!"}]
[{"$f":"IF(ISNA(VLOOKUP(17,'Toimenpiteiden valitseminen'!$C$21:$O$50,1,FALSE)),\"\",VLOOKUP(17,'Toimenpiteiden valitseminen'!$C$21:$O$50,1,FALSE))","v":""},{"$f":"IF(ISNA(VLOOKUP(17,'Toimenpiteiden valitseminen'!$C$21:$O$50,13,FALSE)),\"\",VLOOKUP(17,'Toimenpiteiden valitseminen'!$C$21:$O$50,13,FALSE))","v":""},{"$f":"IF(ISNA(VLOOKUP(17,'Toimenpiteiden valitseminen'!$C$21:$O$50,5,FALSE)),\"\",VLOOKUP(17,'Toimenpiteiden valitseminen'!$C$21:$O$50,5,FALSE))","v":""},{"$f":"IF(ISNA(VLOOKUP(17,'Toimenpiteiden valitseminen'!$C$21:$O$50,7,FALSE)),\"\",VLOOKUP(17,'Toimenpiteiden valitseminen'!$C$21:$O$50,7,FALSE))","v":""},{"$f":"IF(ISNA(VLOOKUP(17,'Toimenpiteiden valitseminen'!$C$21:$O$50,8,FALSE)),\"\",VLOOKUP(17,'Toimenpiteiden valitseminen'!$C$21:$O$50,8,FALSE))","v":""},{"$f":"IF(ISNA(VLOOKUP(17,'Toimenpiteiden valitseminen'!$C$21:$O$50,9,FALSE)),\"\",VLOOKUP(17,'Toimenpiteiden valitseminen'!$C$21:$O$50,9,FALSE))","v":""},"",{"$f":"IF(ISNA(VLOOKUP(17,'Toimenpiteiden valitseminen'!$C$21:$O$50,10,FALSE)),\"\",VLOOKUP(17,'Toimenpiteiden valitseminen'!$C$21:$O$50,10,FALSE))","v":""},{"$f":"IF(ISNA(VLOOKUP(17,'Toimenpiteiden valitseminen'!$C$21:$O$50,11,FALSE)),\"\",VLOOKUP(17,'Toimenpiteiden valitseminen'!$C$21:$O$50,11,FALSE))","v":""},"",{"$error":"#VALUE!"}]